Workbook

Sheet Worksheet
E1: How do you write these lengths with a decimal point?
A2: Variables | I2: Whole number | L2: Mixed units | Q2: with Decimal point
A3: SHOW ANSWERS | D3: FALSE | E3: 1 | F3: 65 | G3: Molly | H3: high jump | I3: 106 | J3: cm | K3: = | L3: 1 | M3: m | N3: 6 | O3: cm | P3: = | Q3: 1.06 | R3: m | T3: 3
A4: Numbers | E4: 2 | F4: 3 | G4: Lydia | H4: long jump | I4: 564 | J4: cm | K4: = | L4: 5 | M4: m | N4: 64 | O4: cm | P4: = | Q4: 5.64 | R4: m | T4: 3
A5: Maximum whole number in mixed units | D5: 5 | E5: 3 | F5: 26 | G5: Christopher | H5: long jump | I5: 434 | J5: cm | K5: = | L5: 4 | M5: m | N5: 34 | O5: cm | P5: = | Q5: 4.34 | R5: m | T5: 3
A6: Which columns are visible | E6: 4 | F6: 51 | G6: Louise | H6: high jump | I6: 408 | J6: cm | K6: = | L6: 4 | M6: m | N6: 8 | O6: cm | P6: = | Q6: 4.08 | R6: m | T6: 3
A7: A mixture | D7: 3 | E7: 5 | F7: 36 | G7: Connor | H7: long jump | I7: 298 | J7: cm | K7: = | L7: 2 | M7: m | N7: 98 | O7: cm | P7: = | Q7: 2.98 | R7: m | T7: 3
A8: First column | E8: 6 | F8: 2 | G8: Connor | H8: long jump | I8: 504 | J8: cm | K8: = | L8: 5 | M8: m | N8: 4 | O8: cm | P8: = | Q8: 5.04 | R8: m | T8: 3
A9: Middle column | E9: 7 | F9: 8 | G9: Patrick | H9: high jump | I9: 580 | J9: cm | K9: = | L9: 5 | M9: m | N9: 80 | O9: cm | P9: = | Q9: 5.8 | R9: m | S9: (or 5.80 m) | T9: 3
A10: Final column | E10: 8 | F10: 59 | G10: Harriet | H10: shot putt | I10: 115 | J10: cm | K10: = | L10: 1 | M10: m | N10: 15 | O10: cm | P10: = | Q10: 1.15 | R10: m | T10: 3
A11: Which unit conversions to include: | E11: 9 | F11: 55 | G11: Abbie | H11: long jump | I11: 267 | J11: cm | K11: = | L11: 2 | M11: m | N11: 67 | O11: cm | P11: = | Q11: 2.67 | R11: m | T11: 3
A12: Length: cm/m | B12: TRUE | C12: Length: m/km | D12: FALSE | E12: 10 | F12: 50 | G12: Mitchell | H12: long jump | I12: 190 | J12: cm | K12: = | L12: 1 | M12: m | N12: 90 | O12: cm | P12: = | Q12: 1.9 | R12: m | S12: (or 1.90 m) | T12: 3
E13: 11 | F13: 12 | G13: Samuel | H13: high jump | I13: 330 | J13: cm | K13: = | L13: 3 | M13: m | N13: 30 | O13: cm | P13: = | Q13: 3.3 | R13: m | S13: (or 3.30 m) | T13: 3
E14: 12 | F14: 42 | G14: Kate | H14: high jump | I14: 401 | J14: cm | K14: = | L14: 4 | M14: m | N14: 1 | O14: cm | P14: = | Q14: 4.01 | R14: m | T14: 3
E15: 13 | F15: 23 | G15: Sophia | H15: high jump | I15: 352 | J15: cm | K15: = | L15: 3 | M15: m | N15: 52 | O15: cm | P15: = | Q15: 3.52 | R15: m | T15: 3
E16: 14 | F16: 77 | G16: Naomi | H16: high jump | I16: 307 | J16: cm | K16: = | L16: 3 | M16: m | N16: 7 | O16: cm | P16: = | Q16: 3.07 | R16: m | T16: 3
E17: 15 | F17: 22 | G17: Leah | H17: long jump | I17: 430 | J17: cm | K17: = | L17: 4 | M17: m | N17: 30 | O17: cm | P17: = | Q17: 4.3 | R17: m | S17: (or 4.30 m) | T17: 3
E18: 16 | F18: 72 | G18: Gemma | H18: high jump | I18: 505 | J18: cm | K18: = | L18: 5 | M18: m | N18: 5 | O18: cm | P18: = | Q18: 5.05 | R18: m | T18: 3
E19: 17 | F19: 14 | G19: Natasha | H19: shot putt | I19: 285 | J19: cm | K19: = | L19: 2 | M19: m | N19: 85 | O19: cm | P19: = | Q19: 2.85 | R19: m | T19: 3
E20: 18 | F20: 38 | G20: Natalie | H20: long jump | I20: 467 | J20: cm | K20: = | L20: 4 | M20: m | N20: 67 | O20: cm | P20: = | Q20: 4.67 | R20: m | T20: 3
E21: 19 | F21: 79 | G21: Luke | H21: shot putt | I21: 107 | J21: cm | K21: = | L21: 1 | M21: m | N21: 7 | O21: cm | P21: = | Q21: 1.07 | R21: m | T21: 3
E22: 20 | F22: 79 | G22: Eleanor | H22: high jump | I22: 107 | J22: cm | K22: = | L22: 1 | M22: m | N22: 7 | O22: cm | P22: = | Q22: 1.07 | R22: m | T22: 3
E23: 21 | F23: 53 | G23: Jacob | H23: long jump | I23: 520 | J23: cm | K23: = | L23: 5 | M23: m | N23: 20 | O23: cm | P23: = | Q23: 5.2 | R23: m | S23: (or 5.20 m) | T23: 3
E24: 22 | F24: 9 | G24: John | H24: high jump | I24: 174 | J24: cm | K24: = | L24: 1 | M24: m | N24: 74 | O24: cm | P24: = | Q24: 1.74 | R24: m | T24: 3
E25: 23 | F25: 46 | G25: Chloe | H25: high jump | I25: 206 | J25: cm | K25: = | L25: 2 | M25: m | N25: 6 | O25: cm | P25: = | Q25: 2.06 | R25: m | T25: 3
E26: 24 | F26: 21 | G26: Abbie | H26: long jump | I26: 550 | J26: cm | K26: = | L26: 5 | M26: m | N26: 50 | O26: cm | P26: = | Q26: 5.5 | R26: m | S26: (or 5.50 m) | T26: 3
E27: 25 | F27: 20 | G27: Anna | H27: high jump | I27: 493 | J27: cm | K27: = | L27: 4 | M27: m | N27: 93 | O27: cm | P27: = | Q27: 4.93 | R27: m | T27: 3
E28: 26 | F28: 67 | G28: Harvey | H28: long jump | I28: 292 | J28: cm | K28: = | L28: 2 | M28: m | N28: 92 | O28: cm | P28: = | Q28: 2.92 | R28: m | T28: 3

Sheet SYSTEM FORMULAE
P1: 1 | Q1: =RANDBETWEEN(1,MAX('SYSTEM FORMULAE'!$A$1:$A$161)) -> 30 | R1: =OFFSET($AJ$1,RANDBETWEEN(0,199),0) -> Amelia | S1: =CHOOSE(RANDBETWEEN(1,3),"long jump","high jump","shot putt") -> shot putt | T1: =IF(RIGHT(TEXT(VLOOKUP(Q1,'SYSTEM FORMULAE'!$A$1:$M$161,4),"#,##0.###"),1)=".",LEFT(TEXT(VLOOKUP(Q1,'SYSTEM FORMULAE'!$A$1:$M$161,4),"#,##0.###"),LEN(TEXT(VLOOKUP(Q1,'SYSTEM FORMULAE'!$A$1:$M$161,4),"#,##0.###"))-1),TEXT(VLOOKUP(Q1,'SYSTEM FORMULAE'!$A$1:$M$161,4),"#,##0.###")) -> 190 | U1: =VLOOKUP(Q1,'SYSTEM FORMULAE'!$A$1:$M$161,5) -> cm | V1: = | W1: =VLOOKUP($Q1,'SYSTEM FORMULAE'!$A$1:$M$161,7) -> 1 | X1: =VLOOKUP($Q1,'SYSTEM FORMULAE'!$A$1:$M$161,8) -> m | Y1: =VLOOKUP($Q1,'SYSTEM FORMULAE'!$A$1:$M$161,9) -> 90 | Z1: =VLOOKUP($Q1,'SYSTEM FORMULAE'!$A$1:$M$161,10) -> cm | AA1: = | AB1: =IF(RIGHT(TEXT(VLOOKUP(Q1,'SYSTEM FORMULAE'!$A$1:$M$161,12),"#,##0.###"),1)=".",LEFT(TEXT(VLOOKUP(Q1,'SYSTEM FORMULAE'!$A$1:$M$161,12),"#,##0.###"),LEN(TEXT(VLOOKUP(Q1,'SYSTEM FORMULAE'!$A$1:$M$161,12),"#,##0.###"))-1),TEXT(VLOOKUP(Q1,'SYSTEM FORMULAE'!$A$1:$M$161,12),"#,##0.###")) -> 1.9 | AC1: =VLOOKUP(Q1,'SYSTEM FORMULAE'!$A$1:$M$161,13) -> m | AD1: =IF(AND(U1="cm",NOT(AE1=4)),IF(INT(AB1*10)=(AB1*10),CONCATENATE("(or ",AB1,"0"," m)"),""),IF(AND(U1="m",NOT(AE1=4)),IF(INT(AB1*10)=(AB1*10),CONCATENATE("(or ",AB1,"00"," km)"),IF(INT(AB1*100)=(AB1*100),CONCATENATE("(or ",AB1,"0"," km)"),"")),"")) -> (or 1.90 m) | AE1: =IF(Worksheet!$D$7=1,RANDBETWEEN(3,4),Worksheet!$D$7) -> 3 | AJ1: Jack
A2: =IF(COUNTIF($B$1:B2,TRUE)=COUNTIF($B$1:B1,TRUE),"",COUNTIF($B$1:B2,TRUE)) -> 1 | B2: =Worksheet!$B$12 -> TRUE | C2: 100 | D2: =100*L2 -> 409 | E2: cm | F2: = | G2: =INT(L2) -> 4 | H2: m | I2: =IF((L2-INT(L2))*C2=0,0,(L2-INT(L2))*C2) -> 9 | J2: cm | K2: = | L2: =RANDBETWEEN(1,Worksheet!$D$5)+CHOOSE(RANDBETWEEN(1,LOG10(C2)),RANDBETWEEN(1,9)/10^RANDBETWEEN(1,LOG10(C2)),RANDBETWEEN(1,99)/10^RANDBETWEEN(2,LOG10(C2)),RANDBETWEEN(0,999)/10^RANDBETWEEN(3,LOG10(C2)),RANDBETWEEN(0,9999)/C2) -> 4.09 | M2: m | P2: =P1+1 -> 2 | Q2: =RANDBETWEEN(1,MAX('SYSTEM FORMULAE'!$A$1:$A$161)) -> 77 | R2: =OFFSET($AJ$1,RANDBETWEEN(0,199),0) -> Mohammad | S2: =CHOOSE(RANDBETWEEN(1,3),"long jump","high jump","shot putt") -> high jump | T2: =IF(RIGHT(TEXT(VLOOKUP(Q2,'SYSTEM FORMULAE'!$A$1:$M$161,4),"#,##0.###"),1)=".",LEFT(TEXT(VLOOKUP(Q2,'SYSTEM FORMULAE'!$A$1:$M$161,4),"#,##0.###"),LEN(TEXT(VLOOKUP(Q2,'SYSTEM FORMULAE'!$A$1:$M$161,4),"#,##0.###"))-1),TEXT(VLOOKUP(Q2,'SYSTEM FORMULAE'!$A$1:$M$161,4),"#,##0.###")) -> 288 | U2: =VLOOKUP(Q2,'SYSTEM FORMULAE'!$A$1:$M$161,5) -> cm | V2: = | W2: =VLOOKUP($Q2,'SYSTEM FORMULAE'!$A$1:$M$161,7) -> 2 | X2: =VLOOKUP($Q2,'SYSTEM FORMULAE'!$A$1:$M$161,8) -> m | Y2: =VLOOKUP($Q2,'SYSTEM FORMULAE'!$A$1:$M$161,9) -> 88 | Z2: =VLOOKUP($Q2,'SYSTEM FORMULAE'!$A$1:$M$161,10) -> cm | AA2: = | AB2: =IF(RIGHT(TEXT(VLOOKUP(Q2,'SYSTEM FORMULAE'!$A$1:$M$161,12),"#,##0.###"),1)=".",LEFT(TEXT(VLOOKUP(Q2,'SYSTEM FORMULAE'!$A$1:$M$161,12),"#,##0.###"),LEN(TEXT(VLOOKUP(Q2,'SYSTEM FORMULAE'!$A$1:$M$161,12),"#,##0.###"))-1),TEXT(VLOOKUP(Q2,'SYSTEM FORMULAE'!$A$1:$M$161,12),"#,##0.###")) -> 2.88 | AC2: =VLOOKUP(Q2,'SYSTEM FORMULAE'!$A$1:$M$161,13) -> m | AD2: =IF(AND(U2="cm",NOT(AE2=4)),IF(INT(AB2*10)=(AB2*10),CONCATENATE("(or ",AB2,"0"," m)"),""),IF(AND(U2="m",NOT(AE2=4)),IF(INT(AB2*10)=(AB2*10),CONCATENATE("(or ",AB2,"00"," km)"),IF(INT(AB2*100)=(AB2*100),CONCATENATE("(or ",AB2,"0"," km)"),"")),"")) ->  | AE2: =IF(Worksheet!$D$7=1,RANDBETWEEN(3,4),Worksheet!$D$7) -> 3 | AJ2: Thomas
A3: =IF(COUNTIF($B$1:B3,TRUE)=COUNTIF($B$1:B2,TRUE),"",COUNTIF($B$1:B3,TRUE)) ->  | B3: =Worksheet!$D$12 -> FALSE | C3: 1000 | D3: =1000*L3 -> 5054 | E3: m | F3: = | G3: 5 | H3: km | I3: 54 | J3: m | K3: = | L3: =RANDBETWEEN(1,Worksheet!$D$5)+CHOOSE(RANDBETWEEN(1,LOG10(C3)),RANDBETWEEN(1,9)/10^RANDBETWEEN(1,LOG10(C3)),RANDBETWEEN(1,99)/10^RANDBETWEEN(2,LOG10(C3)),RANDBETWEEN(0,999)/10^RANDBETWEEN(3,LOG10(C3)),RANDBETWEEN(0,9999)/C3) -> 5.054 | M3: km | P3: =P2+1 -> 3 | Q3: =RANDBETWEEN(1,MAX('SYSTEM FORMULAE'!$A$1:$A$161)) -> 77 | R3: Ross | S3: shot putt | T3: =IF(RIGHT(TEXT(VLOOKUP(Q3,'SYSTEM FORMULAE'!$A$1:$M$161,4),"#,##0.###"),1)=".",LEFT(TEXT(VLOOKUP(Q3,'SYSTEM FORMULAE'!$A$1:$M$161,4),"#,##0.###"),LEN(TEXT(VLOOKUP(Q3,'SYSTEM FORMULAE'!$A$1:$M$161,4),"#,##0.###"))-1),TEXT(VLOOKUP(Q3,'SYSTEM FORMULAE'!$A$1:$M$161,4),"#,##0.###")) -> 288 | U3: =VLOOKUP(Q3,'SYSTEM FORMULAE'!$A$1:$M$161,5) -> cm | V3: = | W3: =VLOOKUP($Q3,'SYSTEM FORMULAE'!$A$1:$M$161,7) -> 2 | X3: =VLOOKUP($Q3,'SYSTEM FORMULAE'!$A$1:$M$161,8) -> m | Y3: =VLOOKUP($Q3,'SYSTEM FORMULAE'!$A$1:$M$161,9) -> 88 | Z3: =VLOOKUP($Q3,'SYSTEM FORMULAE'!$A$1:$M$161,10) -> cm | AA3: = | AB3: =IF(RIGHT(TEXT(VLOOKUP(Q3,'SYSTEM FORMULAE'!$A$1:$M$161,12),"#,##0.###"),1)=".",LEFT(TEXT(VLOOKUP(Q3,'SYSTEM FORMULAE'!$A$1:$M$161,12),"#,##0.###"),LEN(TEXT(VLOOKUP(Q3,'SYSTEM FORMULAE'!$A$1:$M$161,12),"#,##0.###"))-1),TEXT(VLOOKUP(Q3,'SYSTEM FORMULAE'!$A$1:$M$161,12),"#,##0.###")) -> 2.88 | AC3: =VLOOKUP(Q3,'SYSTEM FORMULAE'!$A$1:$M$161,13) -> m | AE3: =IF(Worksheet!$D$7=1,RANDBETWEEN(3,4),Worksheet!$D$7) -> 3 | AJ3: James
A4: =IF(COUNTIF($B$1:B4,TRUE)=COUNTIF($B$1:B3,TRUE),"",COUNTIF($B$1:B4,TRUE)) -> 2 | B4: =Worksheet!$B$12 -> TRUE | C4: 100 | D4: =100*L4 -> 208 | E4: cm | F4: = | G4: =INT(L4) -> 2 | H4: m | I4: =IF((L4-INT(L4))*C4=0,0,(L4-INT(L4))*C4) -> 8 | J4: cm | K4: = | L4: =RANDBETWEEN(1,Worksheet!$D$5)+CHOOSE(RANDBETWEEN(1,LOG10(C4)),RANDBETWEEN(1,9)/10^RANDBETWEEN(1,LOG10(C4)),RANDBETWEEN(1,99)/10^RANDBETWEEN(2,LOG10(C4)),RANDBETWEEN(0,999)/10^RANDBETWEEN(3,LOG10(C4)),RANDBETWEEN(0,9999)/C4) -> 2.08 | M4: m | P4: 4 | Q4: =RANDBETWEEN(1,MAX('SYSTEM FORMULAE'!$A$1:$A$161)) -> 25 | R4: Jodie | S4: long jump | T4: =IF(RIGHT(TEXT(VLOOKUP(Q4,'SYSTEM FORMULAE'!$A$1:$M$161,4),"#,##0.###"),1)=".",LEFT(TEXT(VLOOKUP(Q4,'SYSTEM FORMULAE'!$A$1:$M$161,4),"#,##0.###"),LEN(TEXT(VLOOKUP(Q4,'SYSTEM FORMULAE'!$A$1:$M$161,4),"#,##0.###"))-1),TEXT(VLOOKUP(Q4,'SYSTEM FORMULAE'!$A$1:$M$161,4),"#,##0.###")) -> 140 | U4: =VLOOKUP(Q4,'SYSTEM FORMULAE'!$A$1:$M$161,5) -> cm | V4: = | W4: =VLOOKUP($Q4,'SYSTEM FORMULAE'!$A$1:$M$161,7) -> 1 | X4: =VLOOKUP($Q4,'SYSTEM FORMULAE'!$A$1:$M$161,8) -> m | Y4: =VLOOKUP($Q4,'SYSTEM FORMULAE'!$A$1:$M$161,9) -> 40 | Z4: =VLOOKUP($Q4,'SYSTEM FORMULAE'!$A$1:$M$161,10) -> cm | AA4: = | AB4: =IF(RIGHT(TEXT(VLOOKUP(Q4,'SYSTEM FORMULAE'!$A$1:$M$161,12),"#,##0.###"),1)=".",LEFT(TEXT(VLOOKUP(Q4,'SYSTEM FORMULAE'!$A$1:$M$161,12),"#,##0.###"),LEN(TEXT(VLOOKUP(Q4,'SYSTEM FORMULAE'!$A$1:$M$161,12),"#,##0.###"))-1),TEXT(VLOOKUP(Q4,'SYSTEM FORMULAE'!$A$1:$M$161,12),"#,##0.###")) -> 1.4 | AC4: =VLOOKUP(Q4,'SYSTEM FORMULAE'!$A$1:$M$161,13) -> m | AD4: (or 1.40 m) | AE4: =IF(Worksheet!$D$7=1,RANDBETWEEN(3,4),Worksheet!$D$7) -> 3 | AJ4: Daniel
A5: =IF(COUNTIF($B$1:B5,TRUE)=COUNTIF($B$1:B4,TRUE),"",COUNTIF($B$1:B5,TRUE)) ->  | B5: =Worksheet!$D$12 -> FALSE | C5: 1000 | D5: =1000*L5 -> 3617 | E5: m | F5: = | G5: 3 | H5: km | I5: 617 | J5: m | K5: = | L5: =RANDBETWEEN(1,Worksheet!$D$5)+CHOOSE(RANDBETWEEN(1,LOG10(C5)),RANDBETWEEN(1,9)/10^RANDBETWEEN(1,LOG10(C5)),RANDBETWEEN(1,99)/10^RANDBETWEEN(2,LOG10(C5)),RANDBETWEEN(0,999)/10^RANDBETWEEN(3,LOG10(C5)),RANDBETWEEN(0,9999)/C5) -> 3.617 | M5: km | P5: 5 | Q5: =RANDBETWEEN(1,MAX('SYSTEM FORMULAE'!$A$1:$A$161)) -> 53 | R5: Paige | S5: shot putt | T5: =IF(RIGHT(TEXT(VLOOKUP(Q5,'SYSTEM FORMULAE'!$A$1:$M$161,4),"#,##0.###"),1)=".",LEFT(TEXT(VLOOKUP(Q5,'SYSTEM FORMULAE'!$A$1:$M$161,4),"#,##0.###"),LEN(TEXT(VLOOKUP(Q5,'SYSTEM FORMULAE'!$A$1:$M$161,4),"#,##0.###"))-1),TEXT(VLOOKUP(Q5,'SYSTEM FORMULAE'!$A$1:$M$161,4),"#,##0.###")) -> 270 | U5: =VLOOKUP(Q5,'SYSTEM FORMULAE'!$A$1:$M$161,5) -> cm | V5: = | W5: =VLOOKUP($Q5,'SYSTEM FORMULAE'!$A$1:$M$161,7) -> 2 | X5: =VLOOKUP($Q5,'SYSTEM FORMULAE'!$A$1:$M$161,8) -> m | Y5: =VLOOKUP($Q5,'SYSTEM FORMULAE'!$A$1:$M$161,9) -> 70 | Z5: =VLOOKUP($Q5,'SYSTEM FORMULAE'!$A$1:$M$161,10) -> cm | AA5: = | AB5: =IF(RIGHT(TEXT(VLOOKUP(Q5,'SYSTEM FORMULAE'!$A$1:$M$161,12),"#,##0.###"),1)=".",LEFT(TEXT(VLOOKUP(Q5,'SYSTEM FORMULAE'!$A$1:$M$161,12),"#,##0.###"),LEN(TEXT(VLOOKUP(Q5,'SYSTEM FORMULAE'!$A$1:$M$161,12),"#,##0.###"))-1),TEXT(VLOOKUP(Q5,'SYSTEM FORMULAE'!$A$1:$M$161,12),"#,##0.###")) -> 2.7 | AC5: =VLOOKUP(Q5,'SYSTEM FORMULAE'!$A$1:$M$161,13) -> m | AD5: (or 2.70 m) | AE5: =IF(Worksheet!$D$7=1,RANDBETWEEN(3,4),Worksheet!$D$7) -> 3 | AJ5: Josh
A6: =IF(COUNTIF($B$1:B6,TRUE)=COUNTIF($B$1:B5,TRUE),"",COUNTIF($B$1:B6,TRUE)) -> 3 | B6: =Worksheet!$B$12 -> TRUE | C6: 100 | D6: =100*L6 -> 580 | E6: cm | F6: = | G6: 5 | H6: m | I6: 80 | J6: cm | K6: = | L6: =RANDBETWEEN(1,Worksheet!$D$5)+CHOOSE(RANDBETWEEN(1,LOG10(C6)),RANDBETWEEN(1,9)/10^RANDBETWEEN(1,LOG10(C6)),RANDBETWEEN(1,99)/10^RANDBETWEEN(2,LOG10(C6)),RANDBETWEEN(0,999)/10^RANDBETWEEN(3,LOG10(C6)),RANDBETWEEN(0,9999)/C6) -> 5.8 | M6: m | P6: 6 | Q6: =RANDBETWEEN(1,MAX('SYSTEM FORMULAE'!$A$1:$A$161)) -> 37 | R6: Madeleine | S6: high jump | T6: =IF(RIGHT(TEXT(VLOOKUP(Q6,'SYSTEM FORMULAE'!$A$1:$M$161,4),"#,##0.###"),1)=".",LEFT(TEXT(VLOOKUP(Q6,'SYSTEM FORMULAE'!$A$1:$M$161,4),"#,##0.###"),LEN(TEXT(VLOOKUP(Q6,'SYSTEM FORMULAE'!$A$1:$M$161,4),"#,##0.###"))-1),TEXT(VLOOKUP(Q6,'SYSTEM FORMULAE'!$A$1:$M$161,4),"#,##0.###")) -> 537 | U6: =VLOOKUP(Q6,'SYSTEM FORMULAE'!$A$1:$M$161,5) -> cm | V6: = | W6: =VLOOKUP($Q6,'SYSTEM FORMULAE'!$A$1:$M$161,7) -> 5 | X6: =VLOOKUP($Q6,'SYSTEM FORMULAE'!$A$1:$M$161,8) -> m | Y6: =VLOOKUP($Q6,'SYSTEM FORMULAE'!$A$1:$M$161,9) -> 37 | Z6: =VLOOKUP($Q6,'SYSTEM FORMULAE'!$A$1:$M$161,10) -> cm | AA6: = | AB6: =IF(RIGHT(TEXT(VLOOKUP(Q6,'SYSTEM FORMULAE'!$A$1:$M$161,12),"#,##0.###"),1)=".",LEFT(TEXT(VLOOKUP(Q6,'SYSTEM FORMULAE'!$A$1:$M$161,12),"#,##0.###"),LEN(TEXT(VLOOKUP(Q6,'SYSTEM FORMULAE'!$A$1:$M$161,12),"#,##0.###"))-1),TEXT(VLOOKUP(Q6,'SYSTEM FORMULAE'!$A$1:$M$161,12),"#,##0.###")) -> 5.37 | AC6: =VLOOKUP(Q6,'SYSTEM FORMULAE'!$A$1:$M$161,13) -> m | AE6: =IF(Worksheet!$D$7=1,RANDBETWEEN(3,4),Worksheet!$D$7) -> 3 | AJ6: Matthew
A7: =IF(COUNTIF($B$1:B7,TRUE)=COUNTIF($B$1:B6,TRUE),"",COUNTIF($B$1:B7,TRUE)) ->  | B7: =Worksheet!$D$12 -> FALSE | C7: 1000 | D7: =1000*L7 -> 2073 | E7: m | F7: = | G7: 2 | H7: km | I7: 73 | J7: m | K7: = | L7: =RANDBETWEEN(1,Worksheet!$D$5)+CHOOSE(RANDBETWEEN(1,LOG10(C7)),RANDBETWEEN(1,9)/10^RANDBETWEEN(1,LOG10(C7)),RANDBETWEEN(1,99)/10^RANDBETWEEN(2,LOG10(C7)),RANDBETWEEN(0,999)/10^RANDBETWEEN(3,LOG10(C7)),RANDBETWEEN(0,9999)/C7) -> 2.073 | M7: km | P7: 7 | Q7: =RANDBETWEEN(1,MAX('SYSTEM FORMULAE'!$A$1:$A$161)) -> 63 | R7: Emily | S7: high jump | T7: =IF(RIGHT(TEXT(VLOOKUP(Q7,'SYSTEM FORMULAE'!$A$1:$M$161,4),"#,##0.###"),1)=".",LEFT(TEXT(VLOOKUP(Q7,'SYSTEM FORMULAE'!$A$1:$M$161,4),"#,##0.###"),LEN(TEXT(VLOOKUP(Q7,'SYSTEM FORMULAE'!$A$1:$M$161,4),"#,##0.###"))-1),TEXT(VLOOKUP(Q7,'SYSTEM FORMULAE'!$A$1:$M$161,4),"#,##0.###")) -> 397 | U7: =VLOOKUP(Q7,'SYSTEM FORMULAE'!$A$1:$M$161,5) -> cm | V7: = | W7: =VLOOKUP($Q7,'SYSTEM FORMULAE'!$A$1:$M$161,7) -> 3 | X7: =VLOOKUP($Q7,'SYSTEM FORMULAE'!$A$1:$M$161,8) -> m | Y7: =VLOOKUP($Q7,'SYSTEM FORMULAE'!$A$1:$M$161,9) -> 97 | Z7: =VLOOKUP($Q7,'SYSTEM FORMULAE'!$A$1:$M$161,10) -> cm | AA7: = | AB7: =IF(RIGHT(TEXT(VLOOKUP(Q7,'SYSTEM FORMULAE'!$A$1:$M$161,12),"#,##0.###"),1)=".",LEFT(TEXT(VLOOKUP(Q7,'SYSTEM FORMULAE'!$A$1:$M$161,12),"#,##0.###"),LEN(TEXT(VLOOKUP(Q7,'SYSTEM FORMULAE'!$A$1:$M$161,12),"#,##0.###"))-1),TEXT(VLOOKUP(Q7,'SYSTEM FORMULAE'!$A$1:$M$161,12),"#,##0.###")) -> 3.97 | AC7: =VLOOKUP(Q7,'SYSTEM FORMULAE'!$A$1:$M$161,13) -> m | AE7: =IF(Worksheet!$D$7=1,RANDBETWEEN(3,4),Worksheet!$D$7) -> 3 | AJ7: Samuel
A8: =IF(COUNTIF($B$1:B8,TRUE)=COUNTIF($B$1:B7,TRUE),"",COUNTIF($B$1:B8,TRUE)) -> 4 | B8: =Worksheet!$B$12 -> TRUE | C8: 100 | D8: =100*L8 -> 409 | E8: cm | F8: = | G8: 4 | H8: m | I8: 9 | J8: cm | K8: = | L8: =RANDBETWEEN(1,Worksheet!$D$5)+CHOOSE(RANDBETWEEN(1,LOG10(C8)),RANDBETWEEN(1,9)/10^RANDBETWEEN(1,LOG10(C8)),RANDBETWEEN(1,99)/10^RANDBETWEEN(2,LOG10(C8)),RANDBETWEEN(0,999)/10^RANDBETWEEN(3,LOG10(C8)),RANDBETWEEN(0,9999)/C8) -> 4.09 | M8: m | P8: 8 | Q8: =RANDBETWEEN(1,MAX('SYSTEM FORMULAE'!$A$1:$A$161)) -> 34 | R8: Jacob | S8: shot putt | T8: =IF(RIGHT(TEXT(VLOOKUP(Q8,'SYSTEM FORMULAE'!$A$1:$M$161,4),"#,##0.###"),1)=".",LEFT(TEXT(VLOOKUP(Q8,'SYSTEM FORMULAE'!$A$1:$M$161,4),"#,##0.###"),LEN(TEXT(VLOOKUP(Q8,'SYSTEM FORMULAE'!$A$1:$M$161,4),"#,##0.###"))-1),TEXT(VLOOKUP(Q8,'SYSTEM FORMULAE'!$A$1:$M$161,4),"#,##0.###")) -> 201 | U8: =VLOOKUP(Q8,'SYSTEM FORMULAE'!$A$1:$M$161,5) -> cm | V8: = | W8: =VLOOKUP($Q8,'SYSTEM FORMULAE'!$A$1:$M$161,7) -> 2 | X8: =VLOOKUP($Q8,'SYSTEM FORMULAE'!$A$1:$M$161,8) -> m | Y8: =VLOOKUP($Q8,'SYSTEM FORMULAE'!$A$1:$M$161,9) -> 1 | Z8: =VLOOKUP($Q8,'SYSTEM FORMULAE'!$A$1:$M$161,10) -> cm | AA8: = | AB8: =IF(RIGHT(TEXT(VLOOKUP(Q8,'SYSTEM FORMULAE'!$A$1:$M$161,12),"#,##0.###"),1)=".",LEFT(TEXT(VLOOKUP(Q8,'SYSTEM FORMULAE'!$A$1:$M$161,12),"#,##0.###"),LEN(TEXT(VLOOKUP(Q8,'SYSTEM FORMULAE'!$A$1:$M$161,12),"#,##0.###"))-1),TEXT(VLOOKUP(Q8,'SYSTEM FORMULAE'!$A$1:$M$161,12),"#,##0.###")) -> 2.01 | AC8: =VLOOKUP(Q8,'SYSTEM FORMULAE'!$A$1:$M$161,13) -> m | AE8: =IF(Worksheet!$D$7=1,RANDBETWEEN(3,4),Worksheet!$D$7) -> 3 | AJ8: Callum
A9: =IF(COUNTIF($B$1:B9,TRUE)=COUNTIF($B$1:B8,TRUE),"",COUNTIF($B$1:B9,TRUE)) ->  | B9: =Worksheet!$D$12 -> FALSE | C9: 1000 | D9: =1000*L9 -> 4490 | E9: m | F9: = | G9: 4 | H9: km | I9: 490 | J9: m | K9: = | L9: =RANDBETWEEN(1,Worksheet!$D$5)+CHOOSE(RANDBETWEEN(1,LOG10(C9)),RANDBETWEEN(1,9)/10^RANDBETWEEN(1,LOG10(C9)),RANDBETWEEN(1,99)/10^RANDBETWEEN(2,LOG10(C9)),RANDBETWEEN(0,999)/10^RANDBETWEEN(3,LOG10(C9)),RANDBETWEEN(0,9999)/C9) -> 4.49 | M9: km | P9: 9 | Q9: =RANDBETWEEN(1,MAX('SYSTEM FORMULAE'!$A$1:$A$161)) -> 64 | R9: Kieran | S9: long jump | T9: =IF(RIGHT(TEXT(VLOOKUP(Q9,'SYSTEM FORMULAE'!$A$1:$M$161,4),"#,##0.###"),1)=".",LEFT(TEXT(VLOOKUP(Q9,'SYSTEM FORMULAE'!$A$1:$M$161,4),"#,##0.###"),LEN(TEXT(VLOOKUP(Q9,'SYSTEM FORMULAE'!$A$1:$M$161,4),"#,##0.###"))-1),TEXT(VLOOKUP(Q9,'SYSTEM FORMULAE'!$A$1:$M$161,4),"#,##0.###")) -> 277 | U9: =VLOOKUP(Q9,'SYSTEM FORMULAE'!$A$1:$M$161,5) -> cm | V9: = | W9: =VLOOKUP($Q9,'SYSTEM FORMULAE'!$A$1:$M$161,7) -> 2 | X9: =VLOOKUP($Q9,'SYSTEM FORMULAE'!$A$1:$M$161,8) -> m | Y9: =VLOOKUP($Q9,'SYSTEM FORMULAE'!$A$1:$M$161,9) -> 77 | Z9: =VLOOKUP($Q9,'SYSTEM FORMULAE'!$A$1:$M$161,10) -> cm | AA9: = | AB9: =IF(RIGHT(TEXT(VLOOKUP(Q9,'SYSTEM FORMULAE'!$A$1:$M$161,12),"#,##0.###"),1)=".",LEFT(TEXT(VLOOKUP(Q9,'SYSTEM FORMULAE'!$A$1:$M$161,12),"#,##0.###"),LEN(TEXT(VLOOKUP(Q9,'SYSTEM FORMULAE'!$A$1:$M$161,12),"#,##0.###"))-1),TEXT(VLOOKUP(Q9,'SYSTEM FORMULAE'!$A$1:$M$161,12),"#,##0.###")) -> 2.77 | AC9: =VLOOKUP(Q9,'SYSTEM FORMULAE'!$A$1:$M$161,13) -> m | AE9: =IF(Worksheet!$D$7=1,RANDBETWEEN(3,4),Worksheet!$D$7) -> 3 | AJ9: Joseph
A10: =IF(COUNTIF($B$1:B10,TRUE)=COUNTIF($B$1:B9,TRUE),"",COUNTIF($B$1:B10,TRUE)) -> 5 | B10: =Worksheet!$B$12 -> TRUE | C10: 100 | D10: =100*L10 -> 410 | E10: cm | F10: = | G10: 4 | H10: m | I10: 10 | J10: cm | K10: = | L10: =RANDBETWEEN(1,Worksheet!$D$5)+CHOOSE(RANDBETWEEN(1,LOG10(C10)),RANDBETWEEN(1,9)/10^RANDBETWEEN(1,LOG10(C10)),RANDBETWEEN(1,99)/10^RANDBETWEEN(2,LOG10(C10)),RANDBETWEEN(0,999)/10^RANDBETWEEN(3,LOG10(C10)),RANDBETWEEN(0,9999)/C10) -> 4.1 | M10: m | P10: 10 | Q10: =RANDBETWEEN(1,MAX('SYSTEM FORMULAE'!$A$1:$A$161)) -> 27 | R10: Isaac | S10: high jump | T10: =IF(RIGHT(TEXT(VLOOKUP(Q10,'SYSTEM FORMULAE'!$A$1:$M$161,4),"#,##0.###"),1)=".",LEFT(TEXT(VLOOKUP(Q10,'SYSTEM FORMULAE'!$A$1:$M$161,4),"#,##0.###"),LEN(TEXT(VLOOKUP(Q10,'SYSTEM FORMULAE'!$A$1:$M$161,4),"#,##0.###"))-1),TEXT(VLOOKUP(Q10,'SYSTEM FORMULAE'!$A$1:$M$161,4),"#,##0.###")) -> 107 | U10: =VLOOKUP(Q10,'SYSTEM FORMULAE'!$A$1:$M$161,5) -> cm | V10: = | W10: =VLOOKUP($Q10,'SYSTEM FORMULAE'!$A$1:$M$161,7) -> 1 | X10: =VLOOKUP($Q10,'SYSTEM FORMULAE'!$A$1:$M$161,8) -> m | Y10: =VLOOKUP($Q10,'SYSTEM FORMULAE'!$A$1:$M$161,9) -> 7 | Z10: =VLOOKUP($Q10,'SYSTEM FORMULAE'!$A$1:$M$161,10) -> cm | AA10: = | AB10: =IF(RIGHT(TEXT(VLOOKUP(Q10,'SYSTEM FORMULAE'!$A$1:$M$161,12),"#,##0.###"),1)=".",LEFT(TEXT(VLOOKUP(Q10,'SYSTEM FORMULAE'!$A$1:$M$161,12),"#,##0.###"),LEN(TEXT(VLOOKUP(Q10,'SYSTEM FORMULAE'!$A$1:$M$161,12),"#,##0.###"))-1),TEXT(VLOOKUP(Q10,'SYSTEM FORMULAE'!$A$1:$M$161,12),"#,##0.###")) -> 1.07 | AC10: =VLOOKUP(Q10,'SYSTEM FORMULAE'!$A$1:$M$161,13) -> m | AE10: =IF(Worksheet!$D$7=1,RANDBETWEEN(3,4),Worksheet!$D$7) -> 3 | AJ10: Jordan
A11: =IF(COUNTIF($B$1:B11,TRUE)=COUNTIF($B$1:B10,TRUE),"",COUNTIF($B$1:B11,TRUE)) ->  | B11: =Worksheet!$D$12 -> FALSE | C11: 1000 | D11: =1000*L11 -> 1001 | E11: m | F11: = | G11: 1 | H11: km | I11: 1 | J11: m | K11: = | L11: =RANDBETWEEN(1,Worksheet!$D$5)+CHOOSE(RANDBETWEEN(1,LOG10(C11)),RANDBETWEEN(1,9)/10^RANDBETWEEN(1,LOG10(C11)),RANDBETWEEN(1,99)/10^RANDBETWEEN(2,LOG10(C11)),RANDBETWEEN(0,999)/10^RANDBETWEEN(3,LOG10(C11)),RANDBETWEEN(0,9999)/C11) -> 1.001 | M11: km | P11: 11 | Q11: =RANDBETWEEN(1,MAX('SYSTEM FORMULAE'!$A$1:$A$161)) -> 68 | R11: Poppy | S11: high jump | T11: =IF(RIGHT(TEXT(VLOOKUP(Q11,'SYSTEM FORMULAE'!$A$1:$M$161,4),"#,##0.###"),1)=".",LEFT(TEXT(VLOOKUP(Q11,'SYSTEM FORMULAE'!$A$1:$M$161,4),"#,##0.###"),LEN(TEXT(VLOOKUP(Q11,'SYSTEM FORMULAE'!$A$1:$M$161,4),"#,##0.###"))-1),TEXT(VLOOKUP(Q11,'SYSTEM FORMULAE'!$A$1:$M$161,4),"#,##0.###")) -> 460 | U11: =VLOOKUP(Q11,'SYSTEM FORMULAE'!$A$1:$M$161,5) -> cm | V11: = | W11: =VLOOKUP($Q11,'SYSTEM FORMULAE'!$A$1:$M$161,7) -> 4 | X11: =VLOOKUP($Q11,'SYSTEM FORMULAE'!$A$1:$M$161,8) -> m | Y11: =VLOOKUP($Q11,'SYSTEM FORMULAE'!$A$1:$M$161,9) -> 60 | Z11: =VLOOKUP($Q11,'SYSTEM FORMULAE'!$A$1:$M$161,10) -> cm | AA11: = | AB11: =IF(RIGHT(TEXT(VLOOKUP(Q11,'SYSTEM FORMULAE'!$A$1:$M$161,12),"#,##0.###"),1)=".",LEFT(TEXT(VLOOKUP(Q11,'SYSTEM FORMULAE'!$A$1:$M$161,12),"#,##0.###"),LEN(TEXT(VLOOKUP(Q11,'SYSTEM FORMULAE'!$A$1:$M$161,12),"#,##0.###"))-1),TEXT(VLOOKUP(Q11,'SYSTEM FORMULAE'!$A$1:$M$161,12),"#,##0.###")) -> 4.6 | AC11: =VLOOKUP(Q11,'SYSTEM FORMULAE'!$A$1:$M$161,13) -> m | AD11: (or 4.60 m) | AE11: =IF(Worksheet!$D$7=1,RANDBETWEEN(3,4),Worksheet!$D$7) -> 3 | AJ11: Connor
A12: =IF(COUNTIF($B$1:B12,TRUE)=COUNTIF($B$1:B11,TRUE),"",COUNTIF($B$1:B12,TRUE)) -> 6 | B12: =Worksheet!$B$12 -> TRUE | C12: 100 | D12: =100*L12 -> 270 | E12: cm | F12: = | G12: =INT(L12) -> 2 | H12: m | I12: 70 | J12: cm | K12: = | L12: =RANDBETWEEN(1,Worksheet!$D$5)+CHOOSE(RANDBETWEEN(1,LOG10(C12)),RANDBETWEEN(1,9)/10^RANDBETWEEN(1,LOG10(C12)),RANDBETWEEN(1,99)/10^RANDBETWEEN(2,LOG10(C12)),RANDBETWEEN(0,999)/10^RANDBETWEEN(3,LOG10(C12)),RANDBETWEEN(0,9999)/C12) -> 2.7 | M12: m | P12: 12 | Q12: =RANDBETWEEN(1,MAX('SYSTEM FORMULAE'!$A$1:$A$161)) -> 70 | R12: Jake | S12: shot putt | T12: =IF(RIGHT(TEXT(VLOOKUP(Q12,'SYSTEM FORMULAE'!$A$1:$M$161,4),"#,##0.###"),1)=".",LEFT(TEXT(VLOOKUP(Q12,'SYSTEM FORMULAE'!$A$1:$M$161,4),"#,##0.###"),LEN(TEXT(VLOOKUP(Q12,'SYSTEM FORMULAE'!$A$1:$M$161,4),"#,##0.###"))-1),TEXT(VLOOKUP(Q12,'SYSTEM FORMULAE'!$A$1:$M$161,4),"#,##0.###")) -> 246 | U12: =VLOOKUP(Q12,'SYSTEM FORMULAE'!$A$1:$M$161,5) -> cm | V12: = | W12: =VLOOKUP($Q12,'SYSTEM FORMULAE'!$A$1:$M$161,7) -> 2 | X12: =VLOOKUP($Q12,'SYSTEM FORMULAE'!$A$1:$M$161,8) -> m | Y12: =VLOOKUP($Q12,'SYSTEM FORMULAE'!$A$1:$M$161,9) -> 46 | Z12: =VLOOKUP($Q12,'SYSTEM FORMULAE'!$A$1:$M$161,10) -> cm | AA12: = | AB12: =IF(RIGHT(TEXT(VLOOKUP(Q12,'SYSTEM FORMULAE'!$A$1:$M$161,12),"#,##0.###"),1)=".",LEFT(TEXT(VLOOKUP(Q12,'SYSTEM FORMULAE'!$A$1:$M$161,12),"#,##0.###"),LEN(TEXT(VLOOKUP(Q12,'SYSTEM FORMULAE'!$A$1:$M$161,12),"#,##0.###"))-1),TEXT(VLOOKUP(Q12,'SYSTEM FORMULAE'!$A$1:$M$161,12),"#,##0.###")) -> 2.46 | AC12: =VLOOKUP(Q12,'SYSTEM FORMULAE'!$A$1:$M$161,13) -> m | AE12: =IF(Worksheet!$D$7=1,RANDBETWEEN(3,4),Worksheet!$D$7) -> 3 | AJ12: Ryan
A13: =IF(COUNTIF($B$1:B13,TRUE)=COUNTIF($B$1:B12,TRUE),"",COUNTIF($B$1:B13,TRUE)) ->  | B13: =Worksheet!$D$12 -> FALSE | C13: 1000 | D13: =1000*L13 -> 4990 | E13: m | F13: = | G13: 4 | H13: km | I13: 990 | J13: m | K13: = | L13: =RANDBETWEEN(1,Worksheet!$D$5)+CHOOSE(RANDBETWEEN(1,LOG10(C13)),RANDBETWEEN(1,9)/10^RANDBETWEEN(1,LOG10(C13)),RANDBETWEEN(1,99)/10^RANDBETWEEN(2,LOG10(C13)),RANDBETWEEN(0,999)/10^RANDBETWEEN(3,LOG10(C13)),RANDBETWEEN(0,9999)/C13) -> 4.99 | M13: km | P13: 13 | Q13: =RANDBETWEEN(1,MAX('SYSTEM FORMULAE'!$A$1:$A$161)) -> 61 | R13: Marcus | S13: high jump | T13: =IF(RIGHT(TEXT(VLOOKUP(Q13,'SYSTEM FORMULAE'!$A$1:$M$161,4),"#,##0.###"),1)=".",LEFT(TEXT(VLOOKUP(Q13,'SYSTEM FORMULAE'!$A$1:$M$161,4),"#,##0.###"),LEN(TEXT(VLOOKUP(Q13,'SYSTEM FORMULAE'!$A$1:$M$161,4),"#,##0.###"))-1),TEXT(VLOOKUP(Q13,'SYSTEM FORMULAE'!$A$1:$M$161,4),"#,##0.###")) -> 270 | U13: =VLOOKUP(Q13,'SYSTEM FORMULAE'!$A$1:$M$161,5) -> cm | V13: = | W13: =VLOOKUP($Q13,'SYSTEM FORMULAE'!$A$1:$M$161,7) -> 2 | X13: =VLOOKUP($Q13,'SYSTEM FORMULAE'!$A$1:$M$161,8) -> m | Y13: =VLOOKUP($Q13,'SYSTEM FORMULAE'!$A$1:$M$161,9) -> 70 | Z13: =VLOOKUP($Q13,'SYSTEM FORMULAE'!$A$1:$M$161,10) -> cm | AA13: = | AB13: =IF(RIGHT(TEXT(VLOOKUP(Q13,'SYSTEM FORMULAE'!$A$1:$M$161,12),"#,##0.###"),1)=".",LEFT(TEXT(VLOOKUP(Q13,'SYSTEM FORMULAE'!$A$1:$M$161,12),"#,##0.###"),LEN(TEXT(VLOOKUP(Q13,'SYSTEM FORMULAE'!$A$1:$M$161,12),"#,##0.###"))-1),TEXT(VLOOKUP(Q13,'SYSTEM FORMULAE'!$A$1:$M$161,12),"#,##0.###")) -> 2.7 | AC13: =VLOOKUP(Q13,'SYSTEM FORMULAE'!$A$1:$M$161,13) -> m | AD13: (or 2.70 m) | AE13: =IF(Worksheet!$D$7=1,RANDBETWEEN(3,4),Worksheet!$D$7) -> 3 | AJ13: Luke
A14: =IF(COUNTIF($B$1:B14,TRUE)=COUNTIF($B$1:B13,TRUE),"",COUNTIF($B$1:B14,TRUE)) -> 7 | B14: =Worksheet!$B$12 -> TRUE | C14: 100 | D14: =100*L14 -> 560 | E14: cm | F14: = | G14: 5 | H14: m | I14: =IF((L14-INT(L14))*C14=0,0,(L14-INT(L14))*C14) -> 60 | J14: cm | K14: = | L14: =RANDBETWEEN(1,Worksheet!$D$5)+CHOOSE(RANDBETWEEN(1,LOG10(C14)),RANDBETWEEN(1,9)/10^RANDBETWEEN(1,LOG10(C14)),RANDBETWEEN(1,99)/10^RANDBETWEEN(2,LOG10(C14)),RANDBETWEEN(0,999)/10^RANDBETWEEN(3,LOG10(C14)),RANDBETWEEN(0,9999)/C14) -> 5.6 | M14: m | P14: 14 | Q14: =RANDBETWEEN(1,MAX('SYSTEM FORMULAE'!$A$1:$A$161)) -> 23 | R14: Mohammad | S14: high jump | T14: =IF(RIGHT(TEXT(VLOOKUP(Q14,'SYSTEM FORMULAE'!$A$1:$M$161,4),"#,##0.###"),1)=".",LEFT(TEXT(VLOOKUP(Q14,'SYSTEM FORMULAE'!$A$1:$M$161,4),"#,##0.###"),LEN(TEXT(VLOOKUP(Q14,'SYSTEM FORMULAE'!$A$1:$M$161,4),"#,##0.###"))-1),TEXT(VLOOKUP(Q14,'SYSTEM FORMULAE'!$A$1:$M$161,4),"#,##0.###")) -> 290 | U14: =VLOOKUP(Q14,'SYSTEM FORMULAE'!$A$1:$M$161,5) -> cm | V14: = | W14: =VLOOKUP($Q14,'SYSTEM FORMULAE'!$A$1:$M$161,7) -> 2 | X14: =VLOOKUP($Q14,'SYSTEM FORMULAE'!$A$1:$M$161,8) -> m | Y14: =VLOOKUP($Q14,'SYSTEM FORMULAE'!$A$1:$M$161,9) -> 90 | Z14: =VLOOKUP($Q14,'SYSTEM FORMULAE'!$A$1:$M$161,10) -> cm | AA14: = | AB14: =IF(RIGHT(TEXT(VLOOKUP(Q14,'SYSTEM FORMULAE'!$A$1:$M$161,12),"#,##0.###"),1)=".",LEFT(TEXT(VLOOKUP(Q14,'SYSTEM FORMULAE'!$A$1:$M$161,12),"#,##0.###"),LEN(TEXT(VLOOKUP(Q14,'SYSTEM FORMULAE'!$A$1:$M$161,12),"#,##0.###"))-1),TEXT(VLOOKUP(Q14,'SYSTEM FORMULAE'!$A$1:$M$161,12),"#,##0.###")) -> 2.9 | AC14: =VLOOKUP(Q14,'SYSTEM FORMULAE'!$A$1:$M$161,13) -> m | AD14: (or 2.90 m) | AE14: =IF(Worksheet!$D$7=1,RANDBETWEEN(3,4),Worksheet!$D$7) -> 3 | AJ14: William
A15: =IF(COUNTIF($B$1:B15,TRUE)=COUNTIF($B$1:B14,TRUE),"",COUNTIF($B$1:B15,TRUE)) ->  | B15: =Worksheet!$D$12 -> FALSE | C15: 1000 | D15: =1000*L15 -> 5010 | E15: m | F15: = | G15: 5 | H15: km | I15: 10 | J15: m | K15: = | L15: =RANDBETWEEN(1,Worksheet!$D$5)+CHOOSE(RANDBETWEEN(1,LOG10(C15)),RANDBETWEEN(1,9)/10^RANDBETWEEN(1,LOG10(C15)),RANDBETWEEN(1,99)/10^RANDBETWEEN(2,LOG10(C15)),RANDBETWEEN(0,999)/10^RANDBETWEEN(3,LOG10(C15)),RANDBETWEEN(0,9999)/C15) -> 5.01 | M15: km | P15: 15 | Q15: =RANDBETWEEN(1,MAX('SYSTEM FORMULAE'!$A$1:$A$161)) -> 1 | R15: Jordan | S15: shot putt | T15: =IF(RIGHT(TEXT(VLOOKUP(Q15,'SYSTEM FORMULAE'!$A$1:$M$161,4),"#,##0.###"),1)=".",LEFT(TEXT(VLOOKUP(Q15,'SYSTEM FORMULAE'!$A$1:$M$161,4),"#,##0.###"),LEN(TEXT(VLOOKUP(Q15,'SYSTEM FORMULAE'!$A$1:$M$161,4),"#,##0.###"))-1),TEXT(VLOOKUP(Q15,'SYSTEM FORMULAE'!$A$1:$M$161,4),"#,##0.###")) -> 409 | U15: =VLOOKUP(Q15,'SYSTEM FORMULAE'!$A$1:$M$161,5) -> cm | V15: = | W15: =VLOOKUP($Q15,'SYSTEM FORMULAE'!$A$1:$M$161,7) -> 4 | X15: =VLOOKUP($Q15,'SYSTEM FORMULAE'!$A$1:$M$161,8) -> m | Y15: =VLOOKUP($Q15,'SYSTEM FORMULAE'!$A$1:$M$161,9) -> 9 | Z15: =VLOOKUP($Q15,'SYSTEM FORMULAE'!$A$1:$M$161,10) -> cm | AA15: = | AB15: =IF(RIGHT(TEXT(VLOOKUP(Q15,'SYSTEM FORMULAE'!$A$1:$M$161,12),"#,##0.###"),1)=".",LEFT(TEXT(VLOOKUP(Q15,'SYSTEM FORMULAE'!$A$1:$M$161,12),"#,##0.###"),LEN(TEXT(VLOOKUP(Q15,'SYSTEM FORMULAE'!$A$1:$M$161,12),"#,##0.###"))-1),TEXT(VLOOKUP(Q15,'SYSTEM FORMULAE'!$A$1:$M$161,12),"#,##0.###")) -> 4.09 | AC15: =VLOOKUP(Q15,'SYSTEM FORMULAE'!$A$1:$M$161,13) -> m | AE15: =IF(Worksheet!$D$7=1,RANDBETWEEN(3,4),Worksheet!$D$7) -> 3 | AJ15: Harry
A16: =IF(COUNTIF($B$1:B16,TRUE)=COUNTIF($B$1:B15,TRUE),"",COUNTIF($B$1:B16,TRUE)) -> 8 | B16: =Worksheet!$B$12 -> TRUE | C16: 100 | D16: =100*L16 -> 114 | E16: cm | F16: = | G16: 1 | H16: m | I16: 14 | J16: cm | K16: = | L16: =RANDBETWEEN(1,Worksheet!$D$5)+CHOOSE(RANDBETWEEN(1,LOG10(C16)),RANDBETWEEN(1,9)/10^RANDBETWEEN(1,LOG10(C16)),RANDBETWEEN(1,99)/10^RANDBETWEEN(2,LOG10(C16)),RANDBETWEEN(0,999)/10^RANDBETWEEN(3,LOG10(C16)),RANDBETWEEN(0,9999)/C16) -> 1.14 | M16: m | P16: 16 | Q16: =RANDBETWEEN(1,MAX('SYSTEM FORMULAE'!$A$1:$A$161)) -> 43 | R16: Jonathan | S16: long jump | T16: =IF(RIGHT(TEXT(VLOOKUP(Q16,'SYSTEM FORMULAE'!$A$1:$M$161,4),"#,##0.###"),1)=".",LEFT(TEXT(VLOOKUP(Q16,'SYSTEM FORMULAE'!$A$1:$M$161,4),"#,##0.###"),LEN(TEXT(VLOOKUP(Q16,'SYSTEM FORMULAE'!$A$1:$M$161,4),"#,##0.###"))-1),TEXT(VLOOKUP(Q16,'SYSTEM FORMULAE'!$A$1:$M$161,4),"#,##0.###")) -> 469 | U16: =VLOOKUP(Q16,'SYSTEM FORMULAE'!$A$1:$M$161,5) -> cm | V16: = | W16: =VLOOKUP($Q16,'SYSTEM FORMULAE'!$A$1:$M$161,7) -> 4 | X16: =VLOOKUP($Q16,'SYSTEM FORMULAE'!$A$1:$M$161,8) -> m | Y16: =VLOOKUP($Q16,'SYSTEM FORMULAE'!$A$1:$M$161,9) -> 69 | Z16: =VLOOKUP($Q16,'SYSTEM FORMULAE'!$A$1:$M$161,10) -> cm | AA16: = | AB16: =IF(RIGHT(TEXT(VLOOKUP(Q16,'SYSTEM FORMULAE'!$A$1:$M$161,12),"#,##0.###"),1)=".",LEFT(TEXT(VLOOKUP(Q16,'SYSTEM FORMULAE'!$A$1:$M$161,12),"#,##0.###"),LEN(TEXT(VLOOKUP(Q16,'SYSTEM FORMULAE'!$A$1:$M$161,12),"#,##0.###"))-1),TEXT(VLOOKUP(Q16,'SYSTEM FORMULAE'!$A$1:$M$161,12),"#,##0.###")) -> 4.69 | AC16: =VLOOKUP(Q16,'SYSTEM FORMULAE'!$A$1:$M$161,13) -> m | AE16: =IF(Worksheet!$D$7=1,RANDBETWEEN(3,4),Worksheet!$D$7) -> 3 | AJ16: Ben
A17: =IF(COUNTIF($B$1:B17,TRUE)=COUNTIF($B$1:B16,TRUE),"",COUNTIF($B$1:B17,TRUE)) ->  | B17: =Worksheet!$D$12 -> FALSE | C17: 1000 | D17: =1000*L17 -> 5071 | E17: m | F17: = | G17: 5 | H17: km | I17: 71 | J17: m | K17: = | L17: =RANDBETWEEN(1,Worksheet!$D$5)+CHOOSE(RANDBETWEEN(1,LOG10(C17)),RANDBETWEEN(1,9)/10^RANDBETWEEN(1,LOG10(C17)),RANDBETWEEN(1,99)/10^RANDBETWEEN(2,LOG10(C17)),RANDBETWEEN(0,999)/10^RANDBETWEEN(3,LOG10(C17)),RANDBETWEEN(0,9999)/C17) -> 5.071 | M17: km | P17: 17 | Q17: =RANDBETWEEN(1,MAX('SYSTEM FORMULAE'!$A$1:$A$161)) -> 18 | R17: Leah | S17: shot putt | T17: =IF(RIGHT(TEXT(VLOOKUP(Q17,'SYSTEM FORMULAE'!$A$1:$M$161,4),"#,##0.###"),1)=".",LEFT(TEXT(VLOOKUP(Q17,'SYSTEM FORMULAE'!$A$1:$M$161,4),"#,##0.###"),LEN(TEXT(VLOOKUP(Q17,'SYSTEM FORMULAE'!$A$1:$M$161,4),"#,##0.###"))-1),TEXT(VLOOKUP(Q17,'SYSTEM FORMULAE'!$A$1:$M$161,4),"#,##0.###")) -> 190 | U17: =VLOOKUP(Q17,'SYSTEM FORMULAE'!$A$1:$M$161,5) -> cm | V17: = | W17: =VLOOKUP($Q17,'SYSTEM FORMULAE'!$A$1:$M$161,7) -> 1 | X17: =VLOOKUP($Q17,'SYSTEM FORMULAE'!$A$1:$M$161,8) -> m | Y17: =VLOOKUP($Q17,'SYSTEM FORMULAE'!$A$1:$M$161,9) -> 90 | Z17: =VLOOKUP($Q17,'SYSTEM FORMULAE'!$A$1:$M$161,10) -> cm | AA17: = | AB17: =IF(RIGHT(TEXT(VLOOKUP(Q17,'SYSTEM FORMULAE'!$A$1:$M$161,12),"#,##0.###"),1)=".",LEFT(TEXT(VLOOKUP(Q17,'SYSTEM FORMULAE'!$A$1:$M$161,12),"#,##0.###"),LEN(TEXT(VLOOKUP(Q17,'SYSTEM FORMULAE'!$A$1:$M$161,12),"#,##0.###"))-1),TEXT(VLOOKUP(Q17,'SYSTEM FORMULAE'!$A$1:$M$161,12),"#,##0.###")) -> 1.9 | AC17: =VLOOKUP(Q17,'SYSTEM FORMULAE'!$A$1:$M$161,13) -> m | AD17: (or 1.90 m) | AE17: =IF(Worksheet!$D$7=1,RANDBETWEEN(3,4),Worksheet!$D$7) -> 3 | AJ17: George
A18: =IF(COUNTIF($B$1:B18,TRUE)=COUNTIF($B$1:B17,TRUE),"",COUNTIF($B$1:B18,TRUE)) -> 9 | B18: =Worksheet!$B$12 -> TRUE | C18: 100 | D18: =100*L18 -> 104 | E18: cm | F18: = | G18: 1 | H18: m | I18: 4 | J18: cm | K18: = | L18: =RANDBETWEEN(1,Worksheet!$D$5)+CHOOSE(RANDBETWEEN(1,LOG10(C18)),RANDBETWEEN(1,9)/10^RANDBETWEEN(1,LOG10(C18)),RANDBETWEEN(1,99)/10^RANDBETWEEN(2,LOG10(C18)),RANDBETWEEN(0,999)/10^RANDBETWEEN(3,LOG10(C18)),RANDBETWEEN(0,9999)/C18) -> 1.04 | M18: m | P18: 18 | Q18: =RANDBETWEEN(1,MAX('SYSTEM FORMULAE'!$A$1:$A$161)) -> 38 | R18: Isabelle | S18: high jump | T18: =IF(RIGHT(TEXT(VLOOKUP(Q18,'SYSTEM FORMULAE'!$A$1:$M$161,4),"#,##0.###"),1)=".",LEFT(TEXT(VLOOKUP(Q18,'SYSTEM FORMULAE'!$A$1:$M$161,4),"#,##0.###"),LEN(TEXT(VLOOKUP(Q18,'SYSTEM FORMULAE'!$A$1:$M$161,4),"#,##0.###"))-1),TEXT(VLOOKUP(Q18,'SYSTEM FORMULAE'!$A$1:$M$161,4),"#,##0.###")) -> 101 | U18: =VLOOKUP(Q18,'SYSTEM FORMULAE'!$A$1:$M$161,5) -> cm | V18: = | W18: =VLOOKUP($Q18,'SYSTEM FORMULAE'!$A$1:$M$161,7) -> 1 | X18: =VLOOKUP($Q18,'SYSTEM FORMULAE'!$A$1:$M$161,8) -> m | Y18: =VLOOKUP($Q18,'SYSTEM FORMULAE'!$A$1:$M$161,9) -> 1 | Z18: =VLOOKUP($Q18,'SYSTEM FORMULAE'!$A$1:$M$161,10) -> cm | AA18: = | AB18: =IF(RIGHT(TEXT(VLOOKUP(Q18,'SYSTEM FORMULAE'!$A$1:$M$161,12),"#,##0.###"),1)=".",LEFT(TEXT(VLOOKUP(Q18,'SYSTEM FORMULAE'!$A$1:$M$161,12),"#,##0.###"),LEN(TEXT(VLOOKUP(Q18,'SYSTEM FORMULAE'!$A$1:$M$161,12),"#,##0.###"))-1),TEXT(VLOOKUP(Q18,'SYSTEM FORMULAE'!$A$1:$M$161,12),"#,##0.###")) -> 1.01 | AC18: =VLOOKUP(Q18,'SYSTEM FORMULAE'!$A$1:$M$161,13) -> m | AE18: =IF(Worksheet!$D$7=1,RANDBETWEEN(3,4),Worksheet!$D$7) -> 3 | AJ18: Lewis
A19: =IF(COUNTIF($B$1:B19,TRUE)=COUNTIF($B$1:B18,TRUE),"",COUNTIF($B$1:B19,TRUE)) ->  | B19: =Worksheet!$D$12 -> FALSE | C19: 1000 | D19: =1000*L19 -> 4900 | E19: m | F19: = | G19: 4 | H19: km | I19: 900 | J19: m | K19: = | L19: =RANDBETWEEN(1,Worksheet!$D$5)+CHOOSE(RANDBETWEEN(1,LOG10(C19)),RANDBETWEEN(1,9)/10^RANDBETWEEN(1,LOG10(C19)),RANDBETWEEN(1,99)/10^RANDBETWEEN(2,LOG10(C19)),RANDBETWEEN(0,999)/10^RANDBETWEEN(3,LOG10(C19)),RANDBETWEEN(0,9999)/C19) -> 4.9 | M19: km | P19: 19 | Q19: =RANDBETWEEN(1,MAX('SYSTEM FORMULAE'!$A$1:$A$161)) -> 33 | R19: Isaac | S19: high jump | T19: =IF(RIGHT(TEXT(VLOOKUP(Q19,'SYSTEM FORMULAE'!$A$1:$M$161,4),"#,##0.###"),1)=".",LEFT(TEXT(VLOOKUP(Q19,'SYSTEM FORMULAE'!$A$1:$M$161,4),"#,##0.###"),LEN(TEXT(VLOOKUP(Q19,'SYSTEM FORMULAE'!$A$1:$M$161,4),"#,##0.###"))-1),TEXT(VLOOKUP(Q19,'SYSTEM FORMULAE'!$A$1:$M$161,4),"#,##0.###")) -> 351 | U19: =VLOOKUP(Q19,'SYSTEM FORMULAE'!$A$1:$M$161,5) -> cm | V19: = | W19: =VLOOKUP($Q19,'SYSTEM FORMULAE'!$A$1:$M$161,7) -> 3 | X19: =VLOOKUP($Q19,'SYSTEM FORMULAE'!$A$1:$M$161,8) -> m | Y19: =VLOOKUP($Q19,'SYSTEM FORMULAE'!$A$1:$M$161,9) -> 51 | Z19: =VLOOKUP($Q19,'SYSTEM FORMULAE'!$A$1:$M$161,10) -> cm | AA19: = | AB19: =IF(RIGHT(TEXT(VLOOKUP(Q19,'SYSTEM FORMULAE'!$A$1:$M$161,12),"#,##0.###"),1)=".",LEFT(TEXT(VLOOKUP(Q19,'SYSTEM FORMULAE'!$A$1:$M$161,12),"#,##0.###"),LEN(TEXT(VLOOKUP(Q19,'SYSTEM FORMULAE'!$A$1:$M$161,12),"#,##0.###"))-1),TEXT(VLOOKUP(Q19,'SYSTEM FORMULAE'!$A$1:$M$161,12),"#,##0.###")) -> 3.51 | AC19: =VLOOKUP(Q19,'SYSTEM FORMULAE'!$A$1:$M$161,13) -> m | AE19: =IF(Worksheet!$D$7=1,RANDBETWEEN(3,4),Worksheet!$D$7) -> 3 | AJ19: Alexander
A20: =IF(COUNTIF($B$1:B20,TRUE)=COUNTIF($B$1:B19,TRUE),"",COUNTIF($B$1:B20,TRUE)) -> 10 | B20: =Worksheet!$B$12 -> TRUE | C20: 100 | D20: =100*L20 -> 505 | E20: cm | F20: = | G20: 5 | H20: m | I20: 5 | J20: cm | K20: = | L20: =RANDBETWEEN(1,Worksheet!$D$5)+CHOOSE(RANDBETWEEN(1,LOG10(C20)),RANDBETWEEN(1,9)/10^RANDBETWEEN(1,LOG10(C20)),RANDBETWEEN(1,99)/10^RANDBETWEEN(2,LOG10(C20)),RANDBETWEEN(0,999)/10^RANDBETWEEN(3,LOG10(C20)),RANDBETWEEN(0,9999)/C20) -> 5.05 | M20: m | P20: 20 | Q20: =RANDBETWEEN(1,MAX('SYSTEM FORMULAE'!$A$1:$A$161)) -> 76 | R20: Chloe | S20: long jump | T20: =IF(RIGHT(TEXT(VLOOKUP(Q20,'SYSTEM FORMULAE'!$A$1:$M$161,4),"#,##0.###"),1)=".",LEFT(TEXT(VLOOKUP(Q20,'SYSTEM FORMULAE'!$A$1:$M$161,4),"#,##0.###"),LEN(TEXT(VLOOKUP(Q20,'SYSTEM FORMULAE'!$A$1:$M$161,4),"#,##0.###"))-1),TEXT(VLOOKUP(Q20,'SYSTEM FORMULAE'!$A$1:$M$161,4),"#,##0.###")) -> 407 | U20: =VLOOKUP(Q20,'SYSTEM FORMULAE'!$A$1:$M$161,5) -> cm | V20: = | W20: =VLOOKUP($Q20,'SYSTEM FORMULAE'!$A$1:$M$161,7) -> 4 | X20: =VLOOKUP($Q20,'SYSTEM FORMULAE'!$A$1:$M$161,8) -> m | Y20: =VLOOKUP($Q20,'SYSTEM FORMULAE'!$A$1:$M$161,9) -> 7 | Z20: =VLOOKUP($Q20,'SYSTEM FORMULAE'!$A$1:$M$161,10) -> cm | AA20: = | AB20: =IF(RIGHT(TEXT(VLOOKUP(Q20,'SYSTEM FORMULAE'!$A$1:$M$161,12),"#,##0.###"),1)=".",LEFT(TEXT(VLOOKUP(Q20,'SYSTEM FORMULAE'!$A$1:$M$161,12),"#,##0.###"),LEN(TEXT(VLOOKUP(Q20,'SYSTEM FORMULAE'!$A$1:$M$161,12),"#,##0.###"))-1),TEXT(VLOOKUP(Q20,'SYSTEM FORMULAE'!$A$1:$M$161,12),"#,##0.###")) -> 4.07 | AC20: =VLOOKUP(Q20,'SYSTEM FORMULAE'!$A$1:$M$161,13) -> m | AE20: =IF(Worksheet!$D$7=1,RANDBETWEEN(3,4),Worksheet!$D$7) -> 3 | AJ20: Oliver
A21: =IF(COUNTIF($B$1:B21,TRUE)=COUNTIF($B$1:B20,TRUE),"",COUNTIF($B$1:B21,TRUE)) ->  | B21: =Worksheet!$D$12 -> FALSE | C21: 1000 | D21: =1000*L21 -> 2980 | E21: m | F21: = | G21: 2 | H21: km | I21: 980 | J21: m | K21: = | L21: =RANDBETWEEN(1,Worksheet!$D$5)+CHOOSE(RANDBETWEEN(1,LOG10(C21)),RANDBETWEEN(1,9)/10^RANDBETWEEN(1,LOG10(C21)),RANDBETWEEN(1,99)/10^RANDBETWEEN(2,LOG10(C21)),RANDBETWEEN(0,999)/10^RANDBETWEEN(3,LOG10(C21)),RANDBETWEEN(0,9999)/C21) -> 2.98 | M21: km | P21: 21 | Q21: =RANDBETWEEN(1,MAX('SYSTEM FORMULAE'!$A$1:$A$161)) -> 35 | R21: Jacob | S21: shot putt | T21: =IF(RIGHT(TEXT(VLOOKUP(Q21,'SYSTEM FORMULAE'!$A$1:$M$161,4),"#,##0.###"),1)=".",LEFT(TEXT(VLOOKUP(Q21,'SYSTEM FORMULAE'!$A$1:$M$161,4),"#,##0.###"),LEN(TEXT(VLOOKUP(Q21,'SYSTEM FORMULAE'!$A$1:$M$161,4),"#,##0.###"))-1),TEXT(VLOOKUP(Q21,'SYSTEM FORMULAE'!$A$1:$M$161,4),"#,##0.###")) -> 360 | U21: =VLOOKUP(Q21,'SYSTEM FORMULAE'!$A$1:$M$161,5) -> cm | V21: = | W21: =VLOOKUP($Q21,'SYSTEM FORMULAE'!$A$1:$M$161,7) -> 3 | X21: =VLOOKUP($Q21,'SYSTEM FORMULAE'!$A$1:$M$161,8) -> m | Y21: =VLOOKUP($Q21,'SYSTEM FORMULAE'!$A$1:$M$161,9) -> 60 | Z21: =VLOOKUP($Q21,'SYSTEM FORMULAE'!$A$1:$M$161,10) -> cm | AA21: = | AB21: =IF(RIGHT(TEXT(VLOOKUP(Q21,'SYSTEM FORMULAE'!$A$1:$M$161,12),"#,##0.###"),1)=".",LEFT(TEXT(VLOOKUP(Q21,'SYSTEM FORMULAE'!$A$1:$M$161,12),"#,##0.###"),LEN(TEXT(VLOOKUP(Q21,'SYSTEM FORMULAE'!$A$1:$M$161,12),"#,##0.###"))-1),TEXT(VLOOKUP(Q21,'SYSTEM FORMULAE'!$A$1:$M$161,12),"#,##0.###")) -> 3.6 | AC21: =VLOOKUP(Q21,'SYSTEM FORMULAE'!$A$1:$M$161,13) -> m | AD21: (or 3.60 m) | AE21: =IF(Worksheet!$D$7=1,RANDBETWEEN(3,4),Worksheet!$D$7) -> 3 | AJ21: Adam
A22: =IF(COUNTIF($B$1:B22,TRUE)=COUNTIF($B$1:B21,TRUE),"",COUNTIF($B$1:B22,TRUE)) -> 11 | B22: =Worksheet!$B$12 -> TRUE | C22: 100 | D22: =100*L22 -> 103 | E22: cm | F22: = | G22: =INT(L22) -> 1 | H22: m | I22: 3 | J22: cm | K22: = | L22: =RANDBETWEEN(1,Worksheet!$D$5)+CHOOSE(RANDBETWEEN(1,LOG10(C22)),RANDBETWEEN(1,9)/10^RANDBETWEEN(1,LOG10(C22)),RANDBETWEEN(1,99)/10^RANDBETWEEN(2,LOG10(C22)),RANDBETWEEN(0,999)/10^RANDBETWEEN(3,LOG10(C22)),RANDBETWEEN(0,9999)/C22) -> 1.03 | M22: m | P22: 22 | Q22: =RANDBETWEEN(1,MAX('SYSTEM FORMULAE'!$A$1:$A$161)) -> 33 | R22: Mitchell | S22: shot putt | T22: =IF(RIGHT(TEXT(VLOOKUP(Q22,'SYSTEM FORMULAE'!$A$1:$M$161,4),"#,##0.###"),1)=".",LEFT(TEXT(VLOOKUP(Q22,'SYSTEM FORMULAE'!$A$1:$M$161,4),"#,##0.###"),LEN(TEXT(VLOOKUP(Q22,'SYSTEM FORMULAE'!$A$1:$M$161,4),"#,##0.###"))-1),TEXT(VLOOKUP(Q22,'SYSTEM FORMULAE'!$A$1:$M$161,4),"#,##0.###")) -> 351 | U22: =VLOOKUP(Q22,'SYSTEM FORMULAE'!$A$1:$M$161,5) -> cm | V22: = | W22: =VLOOKUP($Q22,'SYSTEM FORMULAE'!$A$1:$M$161,7) -> 3 | X22: =VLOOKUP($Q22,'SYSTEM FORMULAE'!$A$1:$M$161,8) -> m | Y22: =VLOOKUP($Q22,'SYSTEM FORMULAE'!$A$1:$M$161,9) -> 51 | Z22: =VLOOKUP($Q22,'SYSTEM FORMULAE'!$A$1:$M$161,10) -> cm | AA22: = | AB22: =IF(RIGHT(TEXT(VLOOKUP(Q22,'SYSTEM FORMULAE'!$A$1:$M$161,12),"#,##0.###"),1)=".",LEFT(TEXT(VLOOKUP(Q22,'SYSTEM FORMULAE'!$A$1:$M$161,12),"#,##0.###"),LEN(TEXT(VLOOKUP(Q22,'SYSTEM FORMULAE'!$A$1:$M$161,12),"#,##0.###"))-1),TEXT(VLOOKUP(Q22,'SYSTEM FORMULAE'!$A$1:$M$161,12),"#,##0.###")) -> 3.51 | AC22: =VLOOKUP(Q22,'SYSTEM FORMULAE'!$A$1:$M$161,13) -> m | AE22: =IF(Worksheet!$D$7=1,RANDBETWEEN(3,4),Worksheet!$D$7) -> 3 | AJ22: Jake
A23: =IF(COUNTIF($B$1:B23,TRUE)=COUNTIF($B$1:B22,TRUE),"",COUNTIF($B$1:B23,TRUE)) ->  | B23: =Worksheet!$D$12 -> FALSE | C23: 1000 | D23: =1000*L23 -> 2001 | E23: m | F23: = | G23: 2 | H23: km | I23: 1 | J23: m | K23: = | L23: =RANDBETWEEN(1,Worksheet!$D$5)+CHOOSE(RANDBETWEEN(1,LOG10(C23)),RANDBETWEEN(1,9)/10^RANDBETWEEN(1,LOG10(C23)),RANDBETWEEN(1,99)/10^RANDBETWEEN(2,LOG10(C23)),RANDBETWEEN(0,999)/10^RANDBETWEEN(3,LOG10(C23)),RANDBETWEEN(0,9999)/C23) -> 2.001 | M23: km | P23: 23 | Q23: =RANDBETWEEN(1,MAX('SYSTEM FORMULAE'!$A$1:$A$161)) -> 55 | R23: Jacob | S23: shot putt | T23: =IF(RIGHT(TEXT(VLOOKUP(Q23,'SYSTEM FORMULAE'!$A$1:$M$161,4),"#,##0.###"),1)=".",LEFT(TEXT(VLOOKUP(Q23,'SYSTEM FORMULAE'!$A$1:$M$161,4),"#,##0.###"),LEN(TEXT(VLOOKUP(Q23,'SYSTEM FORMULAE'!$A$1:$M$161,4),"#,##0.###"))-1),TEXT(VLOOKUP(Q23,'SYSTEM FORMULAE'!$A$1:$M$161,4),"#,##0.###")) -> 427 | U23: =VLOOKUP(Q23,'SYSTEM FORMULAE'!$A$1:$M$161,5) -> cm | V23: = | W23: =VLOOKUP($Q23,'SYSTEM FORMULAE'!$A$1:$M$161,7) -> 4 | X23: =VLOOKUP($Q23,'SYSTEM FORMULAE'!$A$1:$M$161,8) -> m | Y23: =VLOOKUP($Q23,'SYSTEM FORMULAE'!$A$1:$M$161,9) -> 27 | Z23: =VLOOKUP($Q23,'SYSTEM FORMULAE'!$A$1:$M$161,10) -> cm | AA23: = | AB23: =IF(RIGHT(TEXT(VLOOKUP(Q23,'SYSTEM FORMULAE'!$A$1:$M$161,12),"#,##0.###"),1)=".",LEFT(TEXT(VLOOKUP(Q23,'SYSTEM FORMULAE'!$A$1:$M$161,12),"#,##0.###"),LEN(TEXT(VLOOKUP(Q23,'SYSTEM FORMULAE'!$A$1:$M$161,12),"#,##0.###"))-1),TEXT(VLOOKUP(Q23,'SYSTEM FORMULAE'!$A$1:$M$161,12),"#,##0.###")) -> 4.27 | AC23: =VLOOKUP(Q23,'SYSTEM FORMULAE'!$A$1:$M$161,13) -> m | AE23: =IF(Worksheet!$D$7=1,RANDBETWEEN(3,4),Worksheet!$D$7) -> 3 | AJ23: Michael
A24: =IF(COUNTIF($B$1:B24,TRUE)=COUNTIF($B$1:B23,TRUE),"",COUNTIF($B$1:B24,TRUE)) -> 12 | B24: =Worksheet!$B$12 -> TRUE | C24: 100 | D24: =100*L24 -> 510 | E24: cm | F24: = | G24: 5 | H24: m | I24: =IF((L24-INT(L24))*C24=0,0,(L24-INT(L24))*C24) -> 10 | J24: cm | K24: = | L24: =RANDBETWEEN(1,Worksheet!$D$5)+CHOOSE(RANDBETWEEN(1,LOG10(C24)),RANDBETWEEN(1,9)/10^RANDBETWEEN(1,LOG10(C24)),RANDBETWEEN(1,99)/10^RANDBETWEEN(2,LOG10(C24)),RANDBETWEEN(0,999)/10^RANDBETWEEN(3,LOG10(C24)),RANDBETWEEN(0,9999)/C24) -> 5.1 | M24: m | P24: 24 | Q24: =RANDBETWEEN(1,MAX('SYSTEM FORMULAE'!$A$1:$A$161)) -> 27 | R24: Rhys | S24: long jump | T24: =IF(RIGHT(TEXT(VLOOKUP(Q24,'SYSTEM FORMULAE'!$A$1:$M$161,4),"#,##0.###"),1)=".",LEFT(TEXT(VLOOKUP(Q24,'SYSTEM FORMULAE'!$A$1:$M$161,4),"#,##0.###"),LEN(TEXT(VLOOKUP(Q24,'SYSTEM FORMULAE'!$A$1:$M$161,4),"#,##0.###"))-1),TEXT(VLOOKUP(Q24,'SYSTEM FORMULAE'!$A$1:$M$161,4),"#,##0.###")) -> 107 | U24: =VLOOKUP(Q24,'SYSTEM FORMULAE'!$A$1:$M$161,5) -> cm | V24: = | W24: =VLOOKUP($Q24,'SYSTEM FORMULAE'!$A$1:$M$161,7) -> 1 | X24: =VLOOKUP($Q24,'SYSTEM FORMULAE'!$A$1:$M$161,8) -> m | Y24: =VLOOKUP($Q24,'SYSTEM FORMULAE'!$A$1:$M$161,9) -> 7 | Z24: =VLOOKUP($Q24,'SYSTEM FORMULAE'!$A$1:$M$161,10) -> cm | AA24: = | AB24: =IF(RIGHT(TEXT(VLOOKUP(Q24,'SYSTEM FORMULAE'!$A$1:$M$161,12),"#,##0.###"),1)=".",LEFT(TEXT(VLOOKUP(Q24,'SYSTEM FORMULAE'!$A$1:$M$161,12),"#,##0.###"),LEN(TEXT(VLOOKUP(Q24,'SYSTEM FORMULAE'!$A$1:$M$161,12),"#,##0.###"))-1),TEXT(VLOOKUP(Q24,'SYSTEM FORMULAE'!$A$1:$M$161,12),"#,##0.###")) -> 1.07 | AC24: =VLOOKUP(Q24,'SYSTEM FORMULAE'!$A$1:$M$161,13) -> m | AE24: =IF(Worksheet!$D$7=1,RANDBETWEEN(3,4),Worksheet!$D$7) -> 3 | AJ24: Liam
A25: =IF(COUNTIF($B$1:B25,TRUE)=COUNTIF($B$1:B24,TRUE),"",COUNTIF($B$1:B25,TRUE)) ->  | B25: =Worksheet!$D$12 -> FALSE | C25: 1000 | D25: =1000*L25 -> 3500 | E25: m | F25: = | G25: 3 | H25: km | I25: 500 | J25: m | K25: = | L25: =RANDBETWEEN(1,Worksheet!$D$5)+CHOOSE(RANDBETWEEN(1,LOG10(C25)),RANDBETWEEN(1,9)/10^RANDBETWEEN(1,LOG10(C25)),RANDBETWEEN(1,99)/10^RANDBETWEEN(2,LOG10(C25)),RANDBETWEEN(0,999)/10^RANDBETWEEN(3,LOG10(C25)),RANDBETWEEN(0,9999)/C25) -> 3.5 | M25: km | P25: 25 | Q25: =RANDBETWEEN(1,MAX('SYSTEM FORMULAE'!$A$1:$A$161)) -> 71 | R25: Leon | S25: long jump | T25: =IF(RIGHT(TEXT(VLOOKUP(Q25,'SYSTEM FORMULAE'!$A$1:$M$161,4),"#,##0.###"),1)=".",LEFT(TEXT(VLOOKUP(Q25,'SYSTEM FORMULAE'!$A$1:$M$161,4),"#,##0.###"),LEN(TEXT(VLOOKUP(Q25,'SYSTEM FORMULAE'!$A$1:$M$161,4),"#,##0.###"))-1),TEXT(VLOOKUP(Q25,'SYSTEM FORMULAE'!$A$1:$M$161,4),"#,##0.###")) -> 507 | U25: =VLOOKUP(Q25,'SYSTEM FORMULAE'!$A$1:$M$161,5) -> cm | V25: = | W25: =VLOOKUP($Q25,'SYSTEM FORMULAE'!$A$1:$M$161,7) -> 5 | X25: =VLOOKUP($Q25,'SYSTEM FORMULAE'!$A$1:$M$161,8) -> m | Y25: =VLOOKUP($Q25,'SYSTEM FORMULAE'!$A$1:$M$161,9) -> 7 | Z25: =VLOOKUP($Q25,'SYSTEM FORMULAE'!$A$1:$M$161,10) -> cm | AA25: = | AB25: =IF(RIGHT(TEXT(VLOOKUP(Q25,'SYSTEM FORMULAE'!$A$1:$M$161,12),"#,##0.###"),1)=".",LEFT(TEXT(VLOOKUP(Q25,'SYSTEM FORMULAE'!$A$1:$M$161,12),"#,##0.###"),LEN(TEXT(VLOOKUP(Q25,'SYSTEM FORMULAE'!$A$1:$M$161,12),"#,##0.###"))-1),TEXT(VLOOKUP(Q25,'SYSTEM FORMULAE'!$A$1:$M$161,12),"#,##0.###")) -> 5.07 | AC25: =VLOOKUP(Q25,'SYSTEM FORMULAE'!$A$1:$M$161,13) -> m | AE25: =IF(Worksheet!$D$7=1,RANDBETWEEN(3,4),Worksheet!$D$7) -> 3 | AJ25: Nathan
A26: =IF(COUNTIF($B$1:B26,TRUE)=COUNTIF($B$1:B25,TRUE),"",COUNTIF($B$1:B26,TRUE)) -> 13 | B26: =Worksheet!$B$12 -> TRUE | C26: 100 | D26: =100*L26 -> 350 | E26: cm | F26: = | G26: 3 | H26: m | I26: 50 | J26: cm | K26: = | L26: =RANDBETWEEN(1,Worksheet!$D$5)+CHOOSE(RANDBETWEEN(1,LOG10(C26)),RANDBETWEEN(1,9)/10^RANDBETWEEN(1,LOG10(C26)),RANDBETWEEN(1,99)/10^RANDBETWEEN(2,LOG10(C26)),RANDBETWEEN(0,999)/10^RANDBETWEEN(3,LOG10(C26)),RANDBETWEEN(0,9999)/C26) -> 3.5 | M26: m | P26: 26 | Q26: =RANDBETWEEN(1,MAX('SYSTEM FORMULAE'!$A$1:$A$161)) -> 5 | R26: Mohammad | S26: shot putt | T26: =IF(RIGHT(TEXT(VLOOKUP(Q26,'SYSTEM FORMULAE'!$A$1:$M$161,4),"#,##0.###"),1)=".",LEFT(TEXT(VLOOKUP(Q26,'SYSTEM FORMULAE'!$A$1:$M$161,4),"#,##0.###"),LEN(TEXT(VLOOKUP(Q26,'SYSTEM FORMULAE'!$A$1:$M$161,4),"#,##0.###"))-1),TEXT(VLOOKUP(Q26,'SYSTEM FORMULAE'!$A$1:$M$161,4),"#,##0.###")) -> 410 | U26: =VLOOKUP(Q26,'SYSTEM FORMULAE'!$A$1:$M$161,5) -> cm | V26: = | W26: =VLOOKUP($Q26,'SYSTEM FORMULAE'!$A$1:$M$161,7) -> 4 | X26: =VLOOKUP($Q26,'SYSTEM FORMULAE'!$A$1:$M$161,8) -> m | Y26: =VLOOKUP($Q26,'SYSTEM FORMULAE'!$A$1:$M$161,9) -> 10 | Z26: =VLOOKUP($Q26,'SYSTEM FORMULAE'!$A$1:$M$161,10) -> cm | AA26: = | AB26: =IF(RIGHT(TEXT(VLOOKUP(Q26,'SYSTEM FORMULAE'!$A$1:$M$161,12),"#,##0.###"),1)=".",LEFT(TEXT(VLOOKUP(Q26,'SYSTEM FORMULAE'!$A$1:$M$161,12),"#,##0.###"),LEN(TEXT(VLOOKUP(Q26,'SYSTEM FORMULAE'!$A$1:$M$161,12),"#,##0.###"))-1),TEXT(VLOOKUP(Q26,'SYSTEM FORMULAE'!$A$1:$M$161,12),"#,##0.###")) -> 4.1 | AC26: =VLOOKUP(Q26,'SYSTEM FORMULAE'!$A$1:$M$161,13) -> m | AD26: (or 4.10 m) | AE26: =IF(Worksheet!$D$7=1,RANDBETWEEN(3,4),Worksheet!$D$7) -> 3 | AJ26: Kieran
A27: =IF(COUNTIF($B$1:B27,TRUE)=COUNTIF($B$1:B26,TRUE),"",COUNTIF($B$1:B27,TRUE)) ->  | B27: =Worksheet!$D$12 -> FALSE | C27: 1000 | D27: =1000*L27 -> 2530 | E27: m | F27: = | G27: 2 | H27: km | I27: 530 | J27: m | K27: = | L27: =RANDBETWEEN(1,Worksheet!$D$5)+CHOOSE(RANDBETWEEN(1,LOG10(C27)),RANDBETWEEN(1,9)/10^RANDBETWEEN(1,LOG10(C27)),RANDBETWEEN(1,99)/10^RANDBETWEEN(2,LOG10(C27)),RANDBETWEEN(0,999)/10^RANDBETWEEN(3,LOG10(C27)),RANDBETWEEN(0,9999)/C27) -> 2.53 | M27: km | AJ27: Jacob
A28: =IF(COUNTIF($B$1:B28,TRUE)=COUNTIF($B$1:B27,TRUE),"",COUNTIF($B$1:B28,TRUE)) -> 14 | B28: =Worksheet!$B$12 -> TRUE | C28: 100 | D28: =100*L28 -> 110 | E28: cm | F28: = | G28: =INT(L28) -> 1 | H28: m | I28: 10 | J28: cm | K28: = | L28: =RANDBETWEEN(1,Worksheet!$D$5)+CHOOSE(RANDBETWEEN(1,LOG10(C28)),RANDBETWEEN(1,9)/10^RANDBETWEEN(1,LOG10(C28)),RANDBETWEEN(1,99)/10^RANDBETWEEN(2,LOG10(C28)),RANDBETWEEN(0,999)/10^RANDBETWEEN(3,LOG10(C28)),RANDBETWEEN(0,9999)/C28) -> 1.1 | M28: m | AJ28: Cameron
A29: =IF(COUNTIF($B$1:B29,TRUE)=COUNTIF($B$1:B28,TRUE),"",COUNTIF($B$1:B29,TRUE)) ->  | B29: =Worksheet!$D$12 -> FALSE | C29: 1000 | D29: =1000*L29 -> 3050 | E29: m | F29: = | G29: 3 | H29: km | I29: 50 | J29: m | K29: = | L29: =RANDBETWEEN(1,Worksheet!$D$5)+CHOOSE(RANDBETWEEN(1,LOG10(C29)),RANDBETWEEN(1,9)/10^RANDBETWEEN(1,LOG10(C29)),RANDBETWEEN(1,99)/10^RANDBETWEEN(2,LOG10(C29)),RANDBETWEEN(0,999)/10^RANDBETWEEN(3,LOG10(C29)),RANDBETWEEN(0,9999)/C29) -> 3.05 | M29: km | AJ29: Ben
A30: =IF(COUNTIF($B$1:B30,TRUE)=COUNTIF($B$1:B29,TRUE),"",COUNTIF($B$1:B30,TRUE)) -> 15 | B30: =Worksheet!$B$12 -> TRUE | C30: 100 | D30: =100*L30 -> 409 | E30: cm | F30: = | G30: =INT(L30) -> 4 | H30: m | I30: 9 | J30: cm | K30: = | L30: =RANDBETWEEN(1,Worksheet!$D$5)+CHOOSE(RANDBETWEEN(1,LOG10(C30)),RANDBETWEEN(1,9)/10^RANDBETWEEN(1,LOG10(C30)),RANDBETWEEN(1,99)/10^RANDBETWEEN(2,LOG10(C30)),RANDBETWEEN(0,999)/10^RANDBETWEEN(3,LOG10(C30)),RANDBETWEEN(0,9999)/C30) -> 4.09 | M30: m | AJ30: Mohammed
A31: =IF(COUNTIF($B$1:B31,TRUE)=COUNTIF($B$1:B30,TRUE),"",COUNTIF($B$1:B31,TRUE)) ->  | B31: =Worksheet!$D$12 -> FALSE | C31: 1000 | D31: =1000*L31 -> 1280 | E31: m | F31: = | G31: 1 | H31: km | I31: 280 | J31: m | K31: = | L31: =RANDBETWEEN(1,Worksheet!$D$5)+CHOOSE(RANDBETWEEN(1,LOG10(C31)),RANDBETWEEN(1,9)/10^RANDBETWEEN(1,LOG10(C31)),RANDBETWEEN(1,99)/10^RANDBETWEEN(2,LOG10(C31)),RANDBETWEEN(0,999)/10^RANDBETWEEN(3,LOG10(C31)),RANDBETWEEN(0,9999)/C31) -> 1.28 | M31: km | AJ31: Aaron
A32: =IF(COUNTIF($B$1:B32,TRUE)=COUNTIF($B$1:B31,TRUE),"",COUNTIF($B$1:B32,TRUE)) -> 16 | B32: =Worksheet!$B$12 -> TRUE | C32: 100 | D32: =100*L32 -> 434 | E32: cm | F32: = | G32: =INT(L32) -> 4 | H32: m | I32: 34 | J32: cm | K32: = | L32: =RANDBETWEEN(1,Worksheet!$D$5)+CHOOSE(RANDBETWEEN(1,LOG10(C32)),RANDBETWEEN(1,9)/10^RANDBETWEEN(1,LOG10(C32)),RANDBETWEEN(1,99)/10^RANDBETWEEN(2,LOG10(C32)),RANDBETWEEN(0,999)/10^RANDBETWEEN(3,LOG10(C32)),RANDBETWEEN(0,9999)/C32) -> 4.34 | M32: m | AJ32: Christopher
A33: =IF(COUNTIF($B$1:B33,TRUE)=COUNTIF($B$1:B32,TRUE),"",COUNTIF($B$1:B33,TRUE)) ->  | B33: =Worksheet!$D$12 -> FALSE | C33: 1000 | D33: =1000*L33 -> 4515 | E33: m | F33: = | G33: 4 | H33: km | I33: 515 | J33: m | K33: = | L33: =RANDBETWEEN(1,Worksheet!$D$5)+CHOOSE(RANDBETWEEN(1,LOG10(C33)),RANDBETWEEN(1,9)/10^RANDBETWEEN(1,LOG10(C33)),RANDBETWEEN(1,99)/10^RANDBETWEEN(2,LOG10(C33)),RANDBETWEEN(0,999)/10^RANDBETWEEN(3,LOG10(C33)),RANDBETWEEN(0,9999)/C33) -> 4.515 | M33: km | AJ33: Bradley
A34: =IF(COUNTIF($B$1:B34,TRUE)=COUNTIF($B$1:B33,TRUE),"",COUNTIF($B$1:B34,TRUE)) -> 17 | B34: =Worksheet!$B$12 -> TRUE | C34: 100 | D34: =100*L34 -> 290 | E34: cm | F34: = | G34: =INT(L34) -> 2 | H34: m | I34: 90 | J34: cm | K34: = | L34: =RANDBETWEEN(1,Worksheet!$D$5)+CHOOSE(RANDBETWEEN(1,LOG10(C34)),RANDBETWEEN(1,9)/10^RANDBETWEEN(1,LOG10(C34)),RANDBETWEEN(1,99)/10^RANDBETWEEN(2,LOG10(C34)),RANDBETWEEN(0,999)/10^RANDBETWEEN(3,LOG10(C34)),RANDBETWEEN(0,9999)/C34) -> 2.9 | M34: m | AJ34: Jamie
A35: =IF(COUNTIF($B$1:B35,TRUE)=COUNTIF($B$1:B34,TRUE),"",COUNTIF($B$1:B35,TRUE)) ->  | B35: =Worksheet!$D$12 -> FALSE | C35: 1000 | D35: =1000*L35 -> 5353 | E35: m | F35: = | G35: 5 | H35: km | I35: 353 | J35: m | K35: = | L35: =RANDBETWEEN(1,Worksheet!$D$5)+CHOOSE(RANDBETWEEN(1,LOG10(C35)),RANDBETWEEN(1,9)/10^RANDBETWEEN(1,LOG10(C35)),RANDBETWEEN(1,99)/10^RANDBETWEEN(2,LOG10(C35)),RANDBETWEEN(0,999)/10^RANDBETWEEN(3,LOG10(C35)),RANDBETWEEN(0,9999)/C35) -> 5.353 | M35: km | AJ35: Charlie
A36: =IF(COUNTIF($B$1:B36,TRUE)=COUNTIF($B$1:B35,TRUE),"",COUNTIF($B$1:B36,TRUE)) -> 18 | B36: =Worksheet!$B$12 -> TRUE | C36: 100 | D36: =100*L36 -> 190 | E36: cm | F36: = | G36: =INT(L36) -> 1 | H36: m | I36: =IF((L36-INT(L36))*C36=0,0,(L36-INT(L36))*C36) -> 90 | J36: cm | K36: = | L36: =RANDBETWEEN(1,Worksheet!$D$5)+CHOOSE(RANDBETWEEN(1,LOG10(C36)),RANDBETWEEN(1,9)/10^RANDBETWEEN(1,LOG10(C36)),RANDBETWEEN(1,99)/10^RANDBETWEEN(2,LOG10(C36)),RANDBETWEEN(0,999)/10^RANDBETWEEN(3,LOG10(C36)),RANDBETWEEN(0,9999)/C36) -> 1.9 | M36: m | AJ36: Brandon
A37: =IF(COUNTIF($B$1:B37,TRUE)=COUNTIF($B$1:B36,TRUE),"",COUNTIF($B$1:B37,TRUE)) ->  | B37: =Worksheet!$D$12 -> FALSE | C37: 1000 | D37: =1000*L37 -> 1032 | E37: m | F37: = | G37: 1 | H37: km | I37: 32 | J37: m | K37: = | L37: =RANDBETWEEN(1,Worksheet!$D$5)+CHOOSE(RANDBETWEEN(1,LOG10(C37)),RANDBETWEEN(1,9)/10^RANDBETWEEN(1,LOG10(C37)),RANDBETWEEN(1,99)/10^RANDBETWEEN(2,LOG10(C37)),RANDBETWEEN(0,999)/10^RANDBETWEEN(3,LOG10(C37)),RANDBETWEEN(0,9999)/C37) -> 1.032 | M37: km | AJ37: Robert
A38: =IF(COUNTIF($B$1:B38,TRUE)=COUNTIF($B$1:B37,TRUE),"",COUNTIF($B$1:B38,TRUE)) -> 19 | B38: =Worksheet!$B$12 -> TRUE | C38: 100 | D38: =100*L38 -> 378 | E38: cm | F38: = | G38: =INT(L38) -> 3 | H38: m | I38: 78 | J38: cm | K38: = | L38: =RANDBETWEEN(1,Worksheet!$D$5)+CHOOSE(RANDBETWEEN(1,LOG10(C38)),RANDBETWEEN(1,9)/10^RANDBETWEEN(1,LOG10(C38)),RANDBETWEEN(1,99)/10^RANDBETWEEN(2,LOG10(C38)),RANDBETWEEN(0,999)/10^RANDBETWEEN(3,LOG10(C38)),RANDBETWEEN(0,9999)/C38) -> 3.78 | M38: m | AJ38: Kyle
A39: =IF(COUNTIF($B$1:B39,TRUE)=COUNTIF($B$1:B38,TRUE),"",COUNTIF($B$1:B39,TRUE)) ->  | B39: =Worksheet!$D$12 -> FALSE | C39: 1000 | D39: =1000*L39 -> 5900 | E39: m | F39: = | G39: 5 | H39: km | I39: 900 | J39: m | K39: = | L39: =RANDBETWEEN(1,Worksheet!$D$5)+CHOOSE(RANDBETWEEN(1,LOG10(C39)),RANDBETWEEN(1,9)/10^RANDBETWEEN(1,LOG10(C39)),RANDBETWEEN(1,99)/10^RANDBETWEEN(2,LOG10(C39)),RANDBETWEEN(0,999)/10^RANDBETWEEN(3,LOG10(C39)),RANDBETWEEN(0,9999)/C39) -> 5.9 | M39: km | AJ39: David
A40: =IF(COUNTIF($B$1:B40,TRUE)=COUNTIF($B$1:B39,TRUE),"",COUNTIF($B$1:B40,TRUE)) -> 20 | B40: =Worksheet!$B$12 -> TRUE | C40: 100 | D40: =100*L40 -> 258 | E40: cm | F40: = | G40: =INT(L40) -> 2 | H40: m | I40: 58 | J40: cm | K40: = | L40: =RANDBETWEEN(1,Worksheet!$D$5)+CHOOSE(RANDBETWEEN(1,LOG10(C40)),RANDBETWEEN(1,9)/10^RANDBETWEEN(1,LOG10(C40)),RANDBETWEEN(1,99)/10^RANDBETWEEN(2,LOG10(C40)),RANDBETWEEN(0,999)/10^RANDBETWEEN(3,LOG10(C40)),RANDBETWEEN(0,9999)/C40) -> 2.58 | M40: m | AJ40: Owen
A41: =IF(COUNTIF($B$1:B41,TRUE)=COUNTIF($B$1:B40,TRUE),"",COUNTIF($B$1:B41,TRUE)) ->  | B41: =Worksheet!$D$12 -> FALSE | C41: 1000 | D41: =1000*L41 -> 1110 | E41: m | F41: = | G41: 1 | H41: km | I41: 110 | J41: m | K41: = | L41: =RANDBETWEEN(1,Worksheet!$D$5)+CHOOSE(RANDBETWEEN(1,LOG10(C41)),RANDBETWEEN(1,9)/10^RANDBETWEEN(1,LOG10(C41)),RANDBETWEEN(1,99)/10^RANDBETWEEN(2,LOG10(C41)),RANDBETWEEN(0,999)/10^RANDBETWEEN(3,LOG10(C41)),RANDBETWEEN(0,9999)/C41) -> 1.11 | M41: km | AJ41: Charles
A42: =IF(COUNTIF($B$1:B42,TRUE)=COUNTIF($B$1:B41,TRUE),"",COUNTIF($B$1:B42,TRUE)) -> 21 | B42: =Worksheet!$B$12 -> TRUE | C42: 100 | D42: =100*L42 -> 209 | E42: cm | F42: = | G42: =INT(L42) -> 2 | H42: m | I42: 9 | J42: cm | K42: = | L42: =RANDBETWEEN(1,Worksheet!$D$5)+CHOOSE(RANDBETWEEN(1,LOG10(C42)),RANDBETWEEN(1,9)/10^RANDBETWEEN(1,LOG10(C42)),RANDBETWEEN(1,99)/10^RANDBETWEEN(2,LOG10(C42)),RANDBETWEEN(0,999)/10^RANDBETWEEN(3,LOG10(C42)),RANDBETWEEN(0,9999)/C42) -> 2.09 | M42: m | AJ42: Andrew
A43: =IF(COUNTIF($B$1:B43,TRUE)=COUNTIF($B$1:B42,TRUE),"",COUNTIF($B$1:B43,TRUE)) ->  | B43: =Worksheet!$D$12 -> FALSE | C43: 1000 | D43: =1000*L43 -> 3004 | E43: m | F43: = | G43: 3 | H43: km | I43: 4 | J43: m | K43: = | L43: =RANDBETWEEN(1,Worksheet!$D$5)+CHOOSE(RANDBETWEEN(1,LOG10(C43)),RANDBETWEEN(1,9)/10^RANDBETWEEN(1,LOG10(C43)),RANDBETWEEN(1,99)/10^RANDBETWEEN(2,LOG10(C43)),RANDBETWEEN(0,999)/10^RANDBETWEEN(3,LOG10(C43)),RANDBETWEEN(0,9999)/C43) -> 3.004 | M43: km | AJ43: Reece
A44: =IF(COUNTIF($B$1:B44,TRUE)=COUNTIF($B$1:B43,TRUE),"",COUNTIF($B$1:B44,TRUE)) -> 22 | B44: =Worksheet!$B$12 -> TRUE | C44: 100 | D44: =100*L44 -> 201 | E44: cm | F44: = | G44: =INT(L44) -> 2 | H44: m | I44: 1 | J44: cm | K44: = | L44: =RANDBETWEEN(1,Worksheet!$D$5)+CHOOSE(RANDBETWEEN(1,LOG10(C44)),RANDBETWEEN(1,9)/10^RANDBETWEEN(1,LOG10(C44)),RANDBETWEEN(1,99)/10^RANDBETWEEN(2,LOG10(C44)),RANDBETWEEN(0,999)/10^RANDBETWEEN(3,LOG10(C44)),RANDBETWEEN(0,9999)/C44) -> 2.01 | M44: m | AJ44: Edward
A45: =IF(COUNTIF($B$1:B45,TRUE)=COUNTIF($B$1:B44,TRUE),"",COUNTIF($B$1:B45,TRUE)) ->  | B45: =Worksheet!$D$12 -> FALSE | C45: 1000 | D45: =1000*L45 -> 4245 | E45: m | F45: = | G45: 4 | H45: km | I45: 245 | J45: m | K45: = | L45: =RANDBETWEEN(1,Worksheet!$D$5)+CHOOSE(RANDBETWEEN(1,LOG10(C45)),RANDBETWEEN(1,9)/10^RANDBETWEEN(1,LOG10(C45)),RANDBETWEEN(1,99)/10^RANDBETWEEN(2,LOG10(C45)),RANDBETWEEN(0,999)/10^RANDBETWEEN(3,LOG10(C45)),RANDBETWEEN(0,9999)/C45) -> 4.245 | M45: km | AJ45: Dylan
A46: =IF(COUNTIF($B$1:B46,TRUE)=COUNTIF($B$1:B45,TRUE),"",COUNTIF($B$1:B46,TRUE)) -> 23 | B46: =Worksheet!$B$12 -> TRUE | C46: 100 | D46: =100*L46 -> 290 | E46: cm | F46: = | G46: =INT(L46) -> 2 | H46: m | I46: 90 | J46: cm | K46: = | L46: =RANDBETWEEN(1,Worksheet!$D$5)+CHOOSE(RANDBETWEEN(1,LOG10(C46)),RANDBETWEEN(1,9)/10^RANDBETWEEN(1,LOG10(C46)),RANDBETWEEN(1,99)/10^RANDBETWEEN(2,LOG10(C46)),RANDBETWEEN(0,999)/10^RANDBETWEEN(3,LOG10(C46)),RANDBETWEEN(0,9999)/C46) -> 2.9 | M46: m | AJ46: Alex
A47: =IF(COUNTIF($B$1:B47,TRUE)=COUNTIF($B$1:B46,TRUE),"",COUNTIF($B$1:B47,TRUE)) ->  | B47: =Worksheet!$D$12 -> FALSE | C47: 1000 | D47: =1000*L47 -> 4001 | E47: m | F47: = | G47: 4 | H47: km | I47: 1 | J47: m | K47: = | L47: =RANDBETWEEN(1,Worksheet!$D$5)+CHOOSE(RANDBETWEEN(1,LOG10(C47)),RANDBETWEEN(1,9)/10^RANDBETWEEN(1,LOG10(C47)),RANDBETWEEN(1,99)/10^RANDBETWEEN(2,LOG10(C47)),RANDBETWEEN(0,999)/10^RANDBETWEEN(3,LOG10(C47)),RANDBETWEEN(0,9999)/C47) -> 4.001 | M47: km | AJ47: Ethan
A48: =IF(COUNTIF($B$1:B48,TRUE)=COUNTIF($B$1:B47,TRUE),"",COUNTIF($B$1:B48,TRUE)) -> 24 | B48: =Worksheet!$B$12 -> TRUE | C48: 100 | D48: =100*L48 -> 470 | E48: cm | F48: = | G48: =INT(L48) -> 4 | H48: m | I48: =IF((L48-INT(L48))*C48=0,0,(L48-INT(L48))*C48) -> 70 | J48: cm | K48: = | L48: =RANDBETWEEN(1,Worksheet!$D$5)+CHOOSE(RANDBETWEEN(1,LOG10(C48)),RANDBETWEEN(1,9)/10^RANDBETWEEN(1,LOG10(C48)),RANDBETWEEN(1,99)/10^RANDBETWEEN(2,LOG10(C48)),RANDBETWEEN(0,999)/10^RANDBETWEEN(3,LOG10(C48)),RANDBETWEEN(0,9999)/C48) -> 4.7 | M48: m | AJ48: Jonathan
A49: =IF(COUNTIF($B$1:B49,TRUE)=COUNTIF($B$1:B48,TRUE),"",COUNTIF($B$1:B49,TRUE)) ->  | B49: =Worksheet!$D$12 -> FALSE | C49: 1000 | D49: =1000*L49 -> 5127 | E49: m | F49: = | G49: 5 | H49: km | I49: 127 | J49: m | K49: = | L49: =RANDBETWEEN(1,Worksheet!$D$5)+CHOOSE(RANDBETWEEN(1,LOG10(C49)),RANDBETWEEN(1,9)/10^RANDBETWEEN(1,LOG10(C49)),RANDBETWEEN(1,99)/10^RANDBETWEEN(2,LOG10(C49)),RANDBETWEEN(0,999)/10^RANDBETWEEN(3,LOG10(C49)),RANDBETWEEN(0,9999)/C49) -> 5.127 | M49: km | AJ49: Sam
A50: =IF(COUNTIF($B$1:B50,TRUE)=COUNTIF($B$1:B49,TRUE),"",COUNTIF($B$1:B50,TRUE)) -> 25 | B50: =Worksheet!$B$12 -> TRUE | C50: 100 | D50: =100*L50 -> 140 | E50: cm | F50: = | G50: =INT(L50) -> 1 | H50: m | I50: 40 | J50: cm | K50: = | L50: =RANDBETWEEN(1,Worksheet!$D$5)+CHOOSE(RANDBETWEEN(1,LOG10(C50)),RANDBETWEEN(1,9)/10^RANDBETWEEN(1,LOG10(C50)),RANDBETWEEN(1,99)/10^RANDBETWEEN(2,LOG10(C50)),RANDBETWEEN(0,999)/10^RANDBETWEEN(3,LOG10(C50)),RANDBETWEEN(0,9999)/C50) -> 1.4 | M50: m | AJ50: Louis
A51: =IF(COUNTIF($B$1:B51,TRUE)=COUNTIF($B$1:B50,TRUE),"",COUNTIF($B$1:B51,TRUE)) ->  | B51: =Worksheet!$D$12 -> FALSE | C51: 1000 | D51: =1000*L51 -> 3037 | E51: m | F51: = | G51: 3 | H51: km | I51: 37 | J51: m | K51: = | L51: =RANDBETWEEN(1,Worksheet!$D$5)+CHOOSE(RANDBETWEEN(1,LOG10(C51)),RANDBETWEEN(1,9)/10^RANDBETWEEN(1,LOG10(C51)),RANDBETWEEN(1,99)/10^RANDBETWEEN(2,LOG10(C51)),RANDBETWEEN(0,999)/10^RANDBETWEEN(3,LOG10(C51)),RANDBETWEEN(0,9999)/C51) -> 3.037 | M51: km | AJ51: Max
A52: =IF(COUNTIF($B$1:B52,TRUE)=COUNTIF($B$1:B51,TRUE),"",COUNTIF($B$1:B52,TRUE)) -> 26 | B52: =Worksheet!$B$12 -> TRUE | C52: 100 | D52: =100*L52 -> 435 | E52: cm | F52: = | G52: =INT(L52) -> 4 | H52: m | I52: 35 | J52: cm | K52: = | L52: =RANDBETWEEN(1,Worksheet!$D$5)+CHOOSE(RANDBETWEEN(1,LOG10(C52)),RANDBETWEEN(1,9)/10^RANDBETWEEN(1,LOG10(C52)),RANDBETWEEN(1,99)/10^RANDBETWEEN(2,LOG10(C52)),RANDBETWEEN(0,999)/10^RANDBETWEEN(3,LOG10(C52)),RANDBETWEEN(0,9999)/C52) -> 4.35 | M52: m | AJ52: Dominic
A53: =IF(COUNTIF($B$1:B53,TRUE)=COUNTIF($B$1:B52,TRUE),"",COUNTIF($B$1:B53,TRUE)) ->  | B53: =Worksheet!$D$12 -> FALSE | C53: 1000 | D53: =1000*L53 -> 5032 | E53: m | F53: = | G53: 5 | H53: km | I53: 32 | J53: m | K53: = | L53: =RANDBETWEEN(1,Worksheet!$D$5)+CHOOSE(RANDBETWEEN(1,LOG10(C53)),RANDBETWEEN(1,9)/10^RANDBETWEEN(1,LOG10(C53)),RANDBETWEEN(1,99)/10^RANDBETWEEN(2,LOG10(C53)),RANDBETWEEN(0,999)/10^RANDBETWEEN(3,LOG10(C53)),RANDBETWEEN(0,9999)/C53) -> 5.032 | M53: km | AJ53: John
A54: =IF(COUNTIF($B$1:B54,TRUE)=COUNTIF($B$1:B53,TRUE),"",COUNTIF($B$1:B54,TRUE)) -> 27 | B54: =Worksheet!$B$12 -> TRUE | C54: 100 | D54: =100*L54 -> 107 | E54: cm | F54: = | G54: =INT(L54) -> 1 | H54: m | I54: 7 | J54: cm | K54: = | L54: =RANDBETWEEN(1,Worksheet!$D$5)+CHOOSE(RANDBETWEEN(1,LOG10(C54)),RANDBETWEEN(1,9)/10^RANDBETWEEN(1,LOG10(C54)),RANDBETWEEN(1,99)/10^RANDBETWEEN(2,LOG10(C54)),RANDBETWEEN(0,999)/10^RANDBETWEEN(3,LOG10(C54)),RANDBETWEEN(0,9999)/C54) -> 1.07 | M54: m | AJ54: Ashley
A55: =IF(COUNTIF($B$1:B55,TRUE)=COUNTIF($B$1:B54,TRUE),"",COUNTIF($B$1:B55,TRUE)) ->  | B55: =Worksheet!$D$12 -> FALSE | C55: 1000 | D55: =1000*L55 -> 4110 | E55: m | F55: = | G55: 4 | H55: km | I55: 110 | J55: m | K55: = | L55: =RANDBETWEEN(1,Worksheet!$D$5)+CHOOSE(RANDBETWEEN(1,LOG10(C55)),RANDBETWEEN(1,9)/10^RANDBETWEEN(1,LOG10(C55)),RANDBETWEEN(1,99)/10^RANDBETWEEN(2,LOG10(C55)),RANDBETWEEN(0,999)/10^RANDBETWEEN(3,LOG10(C55)),RANDBETWEEN(0,9999)/C55) -> 4.11 | M55: km | AJ55: Rhys
A56: =IF(COUNTIF($B$1:B56,TRUE)=COUNTIF($B$1:B55,TRUE),"",COUNTIF($B$1:B56,TRUE)) -> 28 | B56: =Worksheet!$B$12 -> TRUE | C56: 100 | D56: =100*L56 -> 450 | E56: cm | F56: = | G56: =INT(L56) -> 4 | H56: m | I56: 50 | J56: cm | K56: = | L56: =RANDBETWEEN(1,Worksheet!$D$5)+CHOOSE(RANDBETWEEN(1,LOG10(C56)),RANDBETWEEN(1,9)/10^RANDBETWEEN(1,LOG10(C56)),RANDBETWEEN(1,99)/10^RANDBETWEEN(2,LOG10(C56)),RANDBETWEEN(0,999)/10^RANDBETWEEN(3,LOG10(C56)),RANDBETWEEN(0,9999)/C56) -> 4.5 | M56: m | AJ56: Henry
A57: =IF(COUNTIF($B$1:B57,TRUE)=COUNTIF($B$1:B56,TRUE),"",COUNTIF($B$1:B57,TRUE)) ->  | B57: =Worksheet!$D$12 -> FALSE | C57: 1000 | D57: =1000*L57 -> 5007 | E57: m | F57: = | G57: 5 | H57: km | I57: 7 | J57: m | K57: = | L57: =RANDBETWEEN(1,Worksheet!$D$5)+CHOOSE(RANDBETWEEN(1,LOG10(C57)),RANDBETWEEN(1,9)/10^RANDBETWEEN(1,LOG10(C57)),RANDBETWEEN(1,99)/10^RANDBETWEEN(2,LOG10(C57)),RANDBETWEEN(0,999)/10^RANDBETWEEN(3,LOG10(C57)),RANDBETWEEN(0,9999)/C57) -> 5.007 | M57: km | AJ57: Conor
A58: =IF(COUNTIF($B$1:B58,TRUE)=COUNTIF($B$1:B57,TRUE),"",COUNTIF($B$1:B58,TRUE)) -> 29 | B58: =Worksheet!$B$12 -> TRUE | C58: 100 | D58: =100*L58 -> 587 | E58: cm | F58: = | G58: =INT(L58) -> 5 | H58: m | I58: 87 | J58: cm | K58: = | L58: =RANDBETWEEN(1,Worksheet!$D$5)+CHOOSE(RANDBETWEEN(1,LOG10(C58)),RANDBETWEEN(1,9)/10^RANDBETWEEN(1,LOG10(C58)),RANDBETWEEN(1,99)/10^RANDBETWEEN(2,LOG10(C58)),RANDBETWEEN(0,999)/10^RANDBETWEEN(3,LOG10(C58)),RANDBETWEEN(0,9999)/C58) -> 5.87 | M58: m | AJ58: Joe
A59: =IF(COUNTIF($B$1:B59,TRUE)=COUNTIF($B$1:B58,TRUE),"",COUNTIF($B$1:B59,TRUE)) ->  | B59: =Worksheet!$D$12 -> FALSE | C59: 1000 | D59: =1000*L59 -> 1082 | E59: m | F59: = | G59: 1 | H59: km | I59: 82 | J59: m | K59: = | L59: =RANDBETWEEN(1,Worksheet!$D$5)+CHOOSE(RANDBETWEEN(1,LOG10(C59)),RANDBETWEEN(1,9)/10^RANDBETWEEN(1,LOG10(C59)),RANDBETWEEN(1,99)/10^RANDBETWEEN(2,LOG10(C59)),RANDBETWEEN(0,999)/10^RANDBETWEEN(3,LOG10(C59)),RANDBETWEEN(0,9999)/C59) -> 1.082 | M59: km | AJ59: Tyler
A60: =IF(COUNTIF($B$1:B60,TRUE)=COUNTIF($B$1:B59,TRUE),"",COUNTIF($B$1:B60,TRUE)) -> 30 | B60: =Worksheet!$B$12 -> TRUE | C60: 100 | D60: =100*L60 -> 190 | E60: cm | F60: = | G60: =INT(L60) -> 1 | H60: m | I60: 90 | J60: cm | K60: = | L60: =RANDBETWEEN(1,Worksheet!$D$5)+CHOOSE(RANDBETWEEN(1,LOG10(C60)),RANDBETWEEN(1,9)/10^RANDBETWEEN(1,LOG10(C60)),RANDBETWEEN(1,99)/10^RANDBETWEEN(2,LOG10(C60)),RANDBETWEEN(0,999)/10^RANDBETWEEN(3,LOG10(C60)),RANDBETWEEN(0,9999)/C60) -> 1.9 | M60: m | AJ60: Scott
A61: =IF(COUNTIF($B$1:B61,TRUE)=COUNTIF($B$1:B60,TRUE),"",COUNTIF($B$1:B61,TRUE)) ->  | B61: =Worksheet!$D$12 -> FALSE | C61: 1000 | D61: =1000*L61 -> 5050 | E61: m | F61: = | G61: 5 | H61: km | I61: =IF((L61-INT(L61))*C61=0,0,(L61-INT(L61))*C61) -> 50 | J61: m | K61: = | L61: =RANDBETWEEN(1,Worksheet!$D$5)+CHOOSE(RANDBETWEEN(1,LOG10(C61)),RANDBETWEEN(1,9)/10^RANDBETWEEN(1,LOG10(C61)),RANDBETWEEN(1,99)/10^RANDBETWEEN(2,LOG10(C61)),RANDBETWEEN(0,999)/10^RANDBETWEEN(3,LOG10(C61)),RANDBETWEEN(0,9999)/C61) -> 5.05 | M61: km | AJ61: Sean
A62: =IF(COUNTIF($B$1:B62,TRUE)=COUNTIF($B$1:B61,TRUE),"",COUNTIF($B$1:B62,TRUE)) -> 31 | B62: =Worksheet!$B$12 -> TRUE | C62: 100 | D62: =100*L62 -> 210 | E62: cm | F62: = | G62: =INT(L62) -> 2 | H62: m | I62: 10 | J62: cm | K62: = | L62: =RANDBETWEEN(1,Worksheet!$D$5)+CHOOSE(RANDBETWEEN(1,LOG10(C62)),RANDBETWEEN(1,9)/10^RANDBETWEEN(1,LOG10(C62)),RANDBETWEEN(1,99)/10^RANDBETWEEN(2,LOG10(C62)),RANDBETWEEN(0,999)/10^RANDBETWEEN(3,LOG10(C62)),RANDBETWEEN(0,9999)/C62) -> 2.1 | M62: m | AJ62: Nick
A63: =IF(COUNTIF($B$1:B63,TRUE)=COUNTIF($B$1:B62,TRUE),"",COUNTIF($B$1:B63,TRUE)) ->  | B63: =Worksheet!$D$12 -> FALSE | C63: 1000 | D63: =1000*L63 -> 2279 | E63: m | F63: = | G63: 2 | H63: km | I63: 279 | J63: m | K63: = | L63: =RANDBETWEEN(1,Worksheet!$D$5)+CHOOSE(RANDBETWEEN(1,LOG10(C63)),RANDBETWEEN(1,9)/10^RANDBETWEEN(1,LOG10(C63)),RANDBETWEEN(1,99)/10^RANDBETWEEN(2,LOG10(C63)),RANDBETWEEN(0,999)/10^RANDBETWEEN(3,LOG10(C63)),RANDBETWEEN(0,9999)/C63) -> 2.279 | M63: km | AJ63: Ross
A64: =IF(COUNTIF($B$1:B64,TRUE)=COUNTIF($B$1:B63,TRUE),"",COUNTIF($B$1:B64,TRUE)) -> 32 | B64: =Worksheet!$B$12 -> TRUE | C64: 100 | D64: =100*L64 -> 107 | E64: cm | F64: = | G64: =INT(L64) -> 1 | H64: m | I64: 7 | J64: cm | K64: = | L64: =RANDBETWEEN(1,Worksheet!$D$5)+CHOOSE(RANDBETWEEN(1,LOG10(C64)),RANDBETWEEN(1,9)/10^RANDBETWEEN(1,LOG10(C64)),RANDBETWEEN(1,99)/10^RANDBETWEEN(2,LOG10(C64)),RANDBETWEEN(0,999)/10^RANDBETWEEN(3,LOG10(C64)),RANDBETWEEN(0,9999)/C64) -> 1.07 | M64: m | AJ64: Morgan
A65: =IF(COUNTIF($B$1:B65,TRUE)=COUNTIF($B$1:B64,TRUE),"",COUNTIF($B$1:B65,TRUE)) ->  | B65: =Worksheet!$D$12 -> FALSE | C65: 1000 | D65: =1000*L65 -> 1001 | E65: m | F65: = | G65: 1 | H65: km | I65: 1 | J65: m | K65: = | L65: =RANDBETWEEN(1,Worksheet!$D$5)+CHOOSE(RANDBETWEEN(1,LOG10(C65)),RANDBETWEEN(1,9)/10^RANDBETWEEN(1,LOG10(C65)),RANDBETWEEN(1,99)/10^RANDBETWEEN(2,LOG10(C65)),RANDBETWEEN(0,999)/10^RANDBETWEEN(3,LOG10(C65)),RANDBETWEEN(0,9999)/C65) -> 1.001 | M65: km | AJ65: Elliot
A66: =IF(COUNTIF($B$1:B66,TRUE)=COUNTIF($B$1:B65,TRUE),"",COUNTIF($B$1:B66,TRUE)) -> 33 | B66: =Worksheet!$B$12 -> TRUE | C66: 100 | D66: =100*L66 -> 351 | E66: cm | F66: = | G66: =INT(L66) -> 3 | H66: m | I66: 51 | J66: cm | K66: = | L66: =RANDBETWEEN(1,Worksheet!$D$5)+CHOOSE(RANDBETWEEN(1,LOG10(C66)),RANDBETWEEN(1,9)/10^RANDBETWEEN(1,LOG10(C66)),RANDBETWEEN(1,99)/10^RANDBETWEEN(2,LOG10(C66)),RANDBETWEEN(0,999)/10^RANDBETWEEN(3,LOG10(C66)),RANDBETWEEN(0,9999)/C66) -> 3.51 | M66: m | AJ66: Patrick
A67: =IF(COUNTIF($B$1:B67,TRUE)=COUNTIF($B$1:B66,TRUE),"",COUNTIF($B$1:B67,TRUE)) ->  | B67: =Worksheet!$D$12 -> FALSE | C67: 1000 | D67: =1000*L67 -> 5440 | E67: m | F67: = | G67: 5 | H67: km | I67: 440 | J67: m | K67: = | L67: =RANDBETWEEN(1,Worksheet!$D$5)+CHOOSE(RANDBETWEEN(1,LOG10(C67)),RANDBETWEEN(1,9)/10^RANDBETWEEN(1,LOG10(C67)),RANDBETWEEN(1,99)/10^RANDBETWEEN(2,LOG10(C67)),RANDBETWEEN(0,999)/10^RANDBETWEEN(3,LOG10(C67)),RANDBETWEEN(0,9999)/C67) -> 5.44 | M67: km | AJ67: Peter
A68: =IF(COUNTIF($B$1:B68,TRUE)=COUNTIF($B$1:B67,TRUE),"",COUNTIF($B$1:B68,TRUE)) -> 34 | B68: =Worksheet!$B$12 -> TRUE | C68: 100 | D68: =100*L68 -> 201 | E68: cm | F68: = | G68: =INT(L68) -> 2 | H68: m | I68: 1 | J68: cm | K68: = | L68: =RANDBETWEEN(1,Worksheet!$D$5)+CHOOSE(RANDBETWEEN(1,LOG10(C68)),RANDBETWEEN(1,9)/10^RANDBETWEEN(1,LOG10(C68)),RANDBETWEEN(1,99)/10^RANDBETWEEN(2,LOG10(C68)),RANDBETWEEN(0,999)/10^RANDBETWEEN(3,LOG10(C68)),RANDBETWEEN(0,9999)/C68) -> 2.01 | M68: m | AJ68: Billy
A69: =IF(COUNTIF($B$1:B69,TRUE)=COUNTIF($B$1:B68,TRUE),"",COUNTIF($B$1:B69,TRUE)) ->  | B69: =Worksheet!$D$12 -> FALSE | C69: 1000 | D69: =1000*L69 -> 3093 | E69: m | F69: = | G69: 3 | H69: km | I69: 93 | J69: m | K69: = | L69: =RANDBETWEEN(1,Worksheet!$D$5)+CHOOSE(RANDBETWEEN(1,LOG10(C69)),RANDBETWEEN(1,9)/10^RANDBETWEEN(1,LOG10(C69)),RANDBETWEEN(1,99)/10^RANDBETWEEN(2,LOG10(C69)),RANDBETWEEN(0,999)/10^RANDBETWEEN(3,LOG10(C69)),RANDBETWEEN(0,9999)/C69) -> 3.093 | M69: km | AJ69: Mark
A70: =IF(COUNTIF($B$1:B70,TRUE)=COUNTIF($B$1:B69,TRUE),"",COUNTIF($B$1:B70,TRUE)) -> 35 | B70: =Worksheet!$B$12 -> TRUE | C70: 100 | D70: =100*L70 -> 360 | E70: cm | F70: = | G70: =INT(L70) -> 3 | H70: m | I70: 60 | J70: cm | K70: = | L70: =RANDBETWEEN(1,Worksheet!$D$5)+CHOOSE(RANDBETWEEN(1,LOG10(C70)),RANDBETWEEN(1,9)/10^RANDBETWEEN(1,LOG10(C70)),RANDBETWEEN(1,99)/10^RANDBETWEEN(2,LOG10(C70)),RANDBETWEEN(0,999)/10^RANDBETWEEN(3,LOG10(C70)),RANDBETWEEN(0,9999)/C70) -> 3.6 | M70: m | AJ70: Stephen
A71: =IF(COUNTIF($B$1:B71,TRUE)=COUNTIF($B$1:B70,TRUE),"",COUNTIF($B$1:B71,TRUE)) ->  | B71: =Worksheet!$D$12 -> FALSE | C71: 1000 | D71: =1000*L71 -> 2063 | E71: m | F71: = | G71: 2 | H71: km | I71: 63 | J71: m | K71: = | L71: =RANDBETWEEN(1,Worksheet!$D$5)+CHOOSE(RANDBETWEEN(1,LOG10(C71)),RANDBETWEEN(1,9)/10^RANDBETWEEN(1,LOG10(C71)),RANDBETWEEN(1,99)/10^RANDBETWEEN(2,LOG10(C71)),RANDBETWEEN(0,999)/10^RANDBETWEEN(3,LOG10(C71)),RANDBETWEEN(0,9999)/C71) -> 2.063 | M71: km | AJ71: Alfie
A72: =IF(COUNTIF($B$1:B72,TRUE)=COUNTIF($B$1:B71,TRUE),"",COUNTIF($B$1:B72,TRUE)) -> 36 | B72: =Worksheet!$B$12 -> TRUE | C72: 100 | D72: =100*L72 -> 260 | E72: cm | F72: = | G72: =INT(L72) -> 2 | H72: m | I72: 60 | J72: cm | K72: = | L72: =RANDBETWEEN(1,Worksheet!$D$5)+CHOOSE(RANDBETWEEN(1,LOG10(C72)),RANDBETWEEN(1,9)/10^RANDBETWEEN(1,LOG10(C72)),RANDBETWEEN(1,99)/10^RANDBETWEEN(2,LOG10(C72)),RANDBETWEEN(0,999)/10^RANDBETWEEN(3,LOG10(C72)),RANDBETWEEN(0,9999)/C72) -> 2.6 | M72: m | AJ72: Harrison
A73: =IF(COUNTIF($B$1:B73,TRUE)=COUNTIF($B$1:B72,TRUE),"",COUNTIF($B$1:B73,TRUE)) ->  | B73: =Worksheet!$D$12 -> FALSE | C73: 1000 | D73: =1000*L73 -> 3080 | E73: m | F73: = | G73: 3 | H73: km | I73: 80 | J73: m | K73: = | L73: =RANDBETWEEN(1,Worksheet!$D$5)+CHOOSE(RANDBETWEEN(1,LOG10(C73)),RANDBETWEEN(1,9)/10^RANDBETWEEN(1,LOG10(C73)),RANDBETWEEN(1,99)/10^RANDBETWEEN(2,LOG10(C73)),RANDBETWEEN(0,999)/10^RANDBETWEEN(3,LOG10(C73)),RANDBETWEEN(0,9999)/C73) -> 3.08 | M73: km | AJ73: Lee
A74: =IF(COUNTIF($B$1:B74,TRUE)=COUNTIF($B$1:B73,TRUE),"",COUNTIF($B$1:B74,TRUE)) -> 37 | B74: =Worksheet!$B$12 -> TRUE | C74: 100 | D74: =100*L74 -> 537 | E74: cm | F74: = | G74: =INT(L74) -> 5 | H74: m | I74: =IF((L74-INT(L74))*C74=0,0,(L74-INT(L74))*C74) -> 37 | J74: cm | K74: = | L74: =RANDBETWEEN(1,Worksheet!$D$5)+CHOOSE(RANDBETWEEN(1,LOG10(C74)),RANDBETWEEN(1,9)/10^RANDBETWEEN(1,LOG10(C74)),RANDBETWEEN(1,99)/10^RANDBETWEEN(2,LOG10(C74)),RANDBETWEEN(0,999)/10^RANDBETWEEN(3,LOG10(C74)),RANDBETWEEN(0,9999)/C74) -> 5.37 | M74: m | AJ74: Anthony
A75: =IF(COUNTIF($B$1:B75,TRUE)=COUNTIF($B$1:B74,TRUE),"",COUNTIF($B$1:B75,TRUE)) ->  | B75: =Worksheet!$D$12 -> FALSE | C75: 1000 | D75: =1000*L75 -> 2820 | E75: m | F75: = | G75: 2 | H75: km | I75: 820 | J75: m | K75: = | L75: =RANDBETWEEN(1,Worksheet!$D$5)+CHOOSE(RANDBETWEEN(1,LOG10(C75)),RANDBETWEEN(1,9)/10^RANDBETWEEN(1,LOG10(C75)),RANDBETWEEN(1,99)/10^RANDBETWEEN(2,LOG10(C75)),RANDBETWEEN(0,999)/10^RANDBETWEEN(3,LOG10(C75)),RANDBETWEEN(0,9999)/C75) -> 2.82 | M75: km | AJ75: Mitchell
A76: =IF(COUNTIF($B$1:B76,TRUE)=COUNTIF($B$1:B75,TRUE),"",COUNTIF($B$1:B76,TRUE)) -> 38 | B76: =Worksheet!$B$12 -> TRUE | C76: 100 | D76: =100*L76 -> 101 | E76: cm | F76: = | G76: =INT(L76) -> 1 | H76: m | I76: 1 | J76: cm | K76: = | L76: =RANDBETWEEN(1,Worksheet!$D$5)+CHOOSE(RANDBETWEEN(1,LOG10(C76)),RANDBETWEEN(1,9)/10^RANDBETWEEN(1,LOG10(C76)),RANDBETWEEN(1,99)/10^RANDBETWEEN(2,LOG10(C76)),RANDBETWEEN(0,999)/10^RANDBETWEEN(3,LOG10(C76)),RANDBETWEEN(0,9999)/C76) -> 1.01 | M76: m | AJ76: Joel
A77: =IF(COUNTIF($B$1:B77,TRUE)=COUNTIF($B$1:B76,TRUE),"",COUNTIF($B$1:B77,TRUE)) ->  | B77: =Worksheet!$D$12 -> FALSE | C77: 1000 | D77: =1000*L77 -> 1451 | E77: m | F77: = | G77: 1 | H77: km | I77: 451 | J77: m | K77: = | L77: =RANDBETWEEN(1,Worksheet!$D$5)+CHOOSE(RANDBETWEEN(1,LOG10(C77)),RANDBETWEEN(1,9)/10^RANDBETWEEN(1,LOG10(C77)),RANDBETWEEN(1,99)/10^RANDBETWEEN(2,LOG10(C77)),RANDBETWEEN(0,999)/10^RANDBETWEEN(3,LOG10(C77)),RANDBETWEEN(0,9999)/C77) -> 1.451 | M77: km | AJ77: Toby
A78: =IF(COUNTIF($B$1:B78,TRUE)=COUNTIF($B$1:B77,TRUE),"",COUNTIF($B$1:B78,TRUE)) -> 39 | B78: =Worksheet!$B$12 -> TRUE | C78: 100 | D78: =100*L78 -> 321 | E78: cm | F78: = | G78: =INT(L78) -> 3 | H78: m | I78: 21 | J78: cm | K78: = | L78: =RANDBETWEEN(1,Worksheet!$D$5)+CHOOSE(RANDBETWEEN(1,LOG10(C78)),RANDBETWEEN(1,9)/10^RANDBETWEEN(1,LOG10(C78)),RANDBETWEEN(1,99)/10^RANDBETWEEN(2,LOG10(C78)),RANDBETWEEN(0,999)/10^RANDBETWEEN(3,LOG10(C78)),RANDBETWEEN(0,9999)/C78) -> 3.21 | M78: m | AJ78: Paul
A79: =IF(COUNTIF($B$1:B79,TRUE)=COUNTIF($B$1:B78,TRUE),"",COUNTIF($B$1:B79,TRUE)) ->  | B79: =Worksheet!$D$12 -> FALSE | C79: 1000 | D79: =1000*L79 -> 1084 | E79: m | F79: = | G79: 1 | H79: km | I79: 84 | J79: m | K79: = | L79: =RANDBETWEEN(1,Worksheet!$D$5)+CHOOSE(RANDBETWEEN(1,LOG10(C79)),RANDBETWEEN(1,9)/10^RANDBETWEEN(1,LOG10(C79)),RANDBETWEEN(1,99)/10^RANDBETWEEN(2,LOG10(C79)),RANDBETWEEN(0,999)/10^RANDBETWEEN(3,LOG10(C79)),RANDBETWEEN(0,9999)/C79) -> 1.084 | M79: km | AJ79: Jay
A80: =IF(COUNTIF($B$1:B80,TRUE)=COUNTIF($B$1:B79,TRUE),"",COUNTIF($B$1:B80,TRUE)) -> 40 | B80: =Worksheet!$B$12 -> TRUE | C80: 100 | D80: =100*L80 -> 537 | E80: cm | F80: = | G80: =INT(L80) -> 5 | H80: m | I80: 37 | J80: cm | K80: = | L80: =RANDBETWEEN(1,Worksheet!$D$5)+CHOOSE(RANDBETWEEN(1,LOG10(C80)),RANDBETWEEN(1,9)/10^RANDBETWEEN(1,LOG10(C80)),RANDBETWEEN(1,99)/10^RANDBETWEEN(2,LOG10(C80)),RANDBETWEEN(0,999)/10^RANDBETWEEN(3,LOG10(C80)),RANDBETWEEN(0,9999)/C80) -> 5.37 | M80: m | AJ80: Jason
A81: =IF(COUNTIF($B$1:B81,TRUE)=COUNTIF($B$1:B80,TRUE),"",COUNTIF($B$1:B81,TRUE)) ->  | B81: =Worksheet!$D$12 -> FALSE | C81: 1000 | D81: =1000*L81 -> 1003 | E81: m | F81: = | G81: 1 | H81: km | I81: 3 | J81: m | K81: = | L81: =RANDBETWEEN(1,Worksheet!$D$5)+CHOOSE(RANDBETWEEN(1,LOG10(C81)),RANDBETWEEN(1,9)/10^RANDBETWEEN(1,LOG10(C81)),RANDBETWEEN(1,99)/10^RANDBETWEEN(2,LOG10(C81)),RANDBETWEEN(0,999)/10^RANDBETWEEN(3,LOG10(C81)),RANDBETWEEN(0,9999)/C81) -> 1.003 | M81: km | AJ81: Aidan
A82: =IF(COUNTIF($B$1:B82,TRUE)=COUNTIF($B$1:B81,TRUE),"",COUNTIF($B$1:B82,TRUE)) -> 41 | B82: =Worksheet!$B$12 -> TRUE | C82: 100 | D82: =100*L82 -> 470 | E82: cm | F82: = | G82: =INT(L82) -> 4 | H82: m | I82: 70 | J82: cm | K82: = | L82: =RANDBETWEEN(1,Worksheet!$D$5)+CHOOSE(RANDBETWEEN(1,LOG10(C82)),RANDBETWEEN(1,9)/10^RANDBETWEEN(1,LOG10(C82)),RANDBETWEEN(1,99)/10^RANDBETWEEN(2,LOG10(C82)),RANDBETWEEN(0,999)/10^RANDBETWEEN(3,LOG10(C82)),RANDBETWEEN(0,9999)/C82) -> 4.7 | M82: m | AJ82: Richard
A83: =IF(COUNTIF($B$1:B83,TRUE)=COUNTIF($B$1:B82,TRUE),"",COUNTIF($B$1:B83,TRUE)) ->  | B83: =Worksheet!$D$12 -> FALSE | C83: 1000 | D83: =1000*L83 -> 3025 | E83: m | F83: = | G83: 3 | H83: km | I83: 25 | J83: m | K83: = | L83: =RANDBETWEEN(1,Worksheet!$D$5)+CHOOSE(RANDBETWEEN(1,LOG10(C83)),RANDBETWEEN(1,9)/10^RANDBETWEEN(1,LOG10(C83)),RANDBETWEEN(1,99)/10^RANDBETWEEN(2,LOG10(C83)),RANDBETWEEN(0,999)/10^RANDBETWEEN(3,LOG10(C83)),RANDBETWEEN(0,9999)/C83) -> 3.025 | M83: km | AJ83: Mohammad
A84: =IF(COUNTIF($B$1:B84,TRUE)=COUNTIF($B$1:B83,TRUE),"",COUNTIF($B$1:B84,TRUE)) -> 42 | B84: =Worksheet!$B$12 -> TRUE | C84: 100 | D84: =100*L84 -> 503 | E84: cm | F84: = | G84: =INT(L84) -> 5 | H84: m | I84: 3 | J84: cm | K84: = | L84: =RANDBETWEEN(1,Worksheet!$D$5)+CHOOSE(RANDBETWEEN(1,LOG10(C84)),RANDBETWEEN(1,9)/10^RANDBETWEEN(1,LOG10(C84)),RANDBETWEEN(1,99)/10^RANDBETWEEN(2,LOG10(C84)),RANDBETWEEN(0,999)/10^RANDBETWEEN(3,LOG10(C84)),RANDBETWEEN(0,9999)/C84) -> 5.03 | M84: m | AJ84: Isaac
A85: =IF(COUNTIF($B$1:B85,TRUE)=COUNTIF($B$1:B84,TRUE),"",COUNTIF($B$1:B85,TRUE)) ->  | B85: =Worksheet!$D$12 -> FALSE | C85: 1000 | D85: =1000*L85 -> 4380 | E85: m | F85: = | G85: 4 | H85: km | I85: 380 | J85: m | K85: = | L85: =RANDBETWEEN(1,Worksheet!$D$5)+CHOOSE(RANDBETWEEN(1,LOG10(C85)),RANDBETWEEN(1,9)/10^RANDBETWEEN(1,LOG10(C85)),RANDBETWEEN(1,99)/10^RANDBETWEEN(2,LOG10(C85)),RANDBETWEEN(0,999)/10^RANDBETWEEN(3,LOG10(C85)),RANDBETWEEN(0,9999)/C85) -> 4.38 | M85: km | AJ85: Declan
A86: =IF(COUNTIF($B$1:B86,TRUE)=COUNTIF($B$1:B85,TRUE),"",COUNTIF($B$1:B86,TRUE)) -> 43 | B86: =Worksheet!$B$12 -> TRUE | C86: 100 | D86: =100*L86 -> 469 | E86: cm | F86: = | G86: =INT(L86) -> 4 | H86: m | I86: =IF((L86-INT(L86))*C86=0,0,(L86-INT(L86))*C86) -> 69 | J86: cm | K86: = | L86: =RANDBETWEEN(1,Worksheet!$D$5)+CHOOSE(RANDBETWEEN(1,LOG10(C86)),RANDBETWEEN(1,9)/10^RANDBETWEEN(1,LOG10(C86)),RANDBETWEEN(1,99)/10^RANDBETWEEN(2,LOG10(C86)),RANDBETWEEN(0,999)/10^RANDBETWEEN(3,LOG10(C86)),RANDBETWEEN(0,9999)/C86) -> 4.69 | M86: m | AJ86: Josh
A87: =IF(COUNTIF($B$1:B87,TRUE)=COUNTIF($B$1:B86,TRUE),"",COUNTIF($B$1:B87,TRUE)) ->  | B87: =Worksheet!$D$12 -> FALSE | C87: 1000 | D87: =1000*L87 -> 3070 | E87: m | F87: = | G87: 3 | H87: km | I87: 70 | J87: m | K87: = | L87: =RANDBETWEEN(1,Worksheet!$D$5)+CHOOSE(RANDBETWEEN(1,LOG10(C87)),RANDBETWEEN(1,9)/10^RANDBETWEEN(1,LOG10(C87)),RANDBETWEEN(1,99)/10^RANDBETWEEN(2,LOG10(C87)),RANDBETWEEN(0,999)/10^RANDBETWEEN(3,LOG10(C87)),RANDBETWEEN(0,9999)/C87) -> 3.07 | M87: km | AJ87: Steven
A88: =IF(COUNTIF($B$1:B88,TRUE)=COUNTIF($B$1:B87,TRUE),"",COUNTIF($B$1:B88,TRUE)) -> 44 | B88: =Worksheet!$B$12 -> TRUE | C88: 100 | D88: =100*L88 -> 408 | E88: cm | F88: = | G88: =INT(L88) -> 4 | H88: m | I88: 8 | J88: cm | K88: = | L88: =RANDBETWEEN(1,Worksheet!$D$5)+CHOOSE(RANDBETWEEN(1,LOG10(C88)),RANDBETWEEN(1,9)/10^RANDBETWEEN(1,LOG10(C88)),RANDBETWEEN(1,99)/10^RANDBETWEEN(2,LOG10(C88)),RANDBETWEEN(0,999)/10^RANDBETWEEN(3,LOG10(C88)),RANDBETWEEN(0,9999)/C88) -> 4.08 | M88: m | AJ88: Marcus
A89: =IF(COUNTIF($B$1:B89,TRUE)=COUNTIF($B$1:B88,TRUE),"",COUNTIF($B$1:B89,TRUE)) ->  | B89: =Worksheet!$D$12 -> FALSE | C89: 1000 | D89: =1000*L89 -> 1039 | E89: m | F89: = | G89: 1 | H89: km | I89: 39 | J89: m | K89: = | L89: =RANDBETWEEN(1,Worksheet!$D$5)+CHOOSE(RANDBETWEEN(1,LOG10(C89)),RANDBETWEEN(1,9)/10^RANDBETWEEN(1,LOG10(C89)),RANDBETWEEN(1,99)/10^RANDBETWEEN(2,LOG10(C89)),RANDBETWEEN(0,999)/10^RANDBETWEEN(3,LOG10(C89)),RANDBETWEEN(0,9999)/C89) -> 1.039 | M89: km | AJ89: Muhammad
A90: =IF(COUNTIF($B$1:B90,TRUE)=COUNTIF($B$1:B89,TRUE),"",COUNTIF($B$1:B90,TRUE)) -> 45 | B90: =Worksheet!$B$12 -> TRUE | C90: 100 | D90: =100*L90 -> 370 | E90: cm | F90: = | G90: =INT(L90) -> 3 | H90: m | I90: 70 | J90: cm | K90: = | L90: =RANDBETWEEN(1,Worksheet!$D$5)+CHOOSE(RANDBETWEEN(1,LOG10(C90)),RANDBETWEEN(1,9)/10^RANDBETWEEN(1,LOG10(C90)),RANDBETWEEN(1,99)/10^RANDBETWEEN(2,LOG10(C90)),RANDBETWEEN(0,999)/10^RANDBETWEEN(3,LOG10(C90)),RANDBETWEEN(0,9999)/C90) -> 3.7 | M90: m | AJ90: Elliott
A91: =IF(COUNTIF($B$1:B91,TRUE)=COUNTIF($B$1:B90,TRUE),"",COUNTIF($B$1:B91,TRUE)) ->  | B91: =Worksheet!$D$12 -> FALSE | C91: 1000 | D91: =1000*L91 -> 4400 | E91: m | F91: = | G91: 4 | H91: km | I91: 400 | J91: m | K91: = | L91: =RANDBETWEEN(1,Worksheet!$D$5)+CHOOSE(RANDBETWEEN(1,LOG10(C91)),RANDBETWEEN(1,9)/10^RANDBETWEEN(1,LOG10(C91)),RANDBETWEEN(1,99)/10^RANDBETWEEN(2,LOG10(C91)),RANDBETWEEN(0,999)/10^RANDBETWEEN(3,LOG10(C91)),RANDBETWEEN(0,9999)/C91) -> 4.4 | M91: km | AJ91: Harvey
A92: =IF(COUNTIF($B$1:B92,TRUE)=COUNTIF($B$1:B91,TRUE),"",COUNTIF($B$1:B92,TRUE)) -> 46 | B92: =Worksheet!$B$12 -> TRUE | C92: 100 | D92: =100*L92 -> 504 | E92: cm | F92: = | G92: =INT(L92) -> 5 | H92: m | I92: 4 | J92: cm | K92: = | L92: =RANDBETWEEN(1,Worksheet!$D$5)+CHOOSE(RANDBETWEEN(1,LOG10(C92)),RANDBETWEEN(1,9)/10^RANDBETWEEN(1,LOG10(C92)),RANDBETWEEN(1,99)/10^RANDBETWEEN(2,LOG10(C92)),RANDBETWEEN(0,999)/10^RANDBETWEEN(3,LOG10(C92)),RANDBETWEEN(0,9999)/C92) -> 5.04 | M92: m | AJ92: Tom
A93: =IF(COUNTIF($B$1:B93,TRUE)=COUNTIF($B$1:B92,TRUE),"",COUNTIF($B$1:B93,TRUE)) ->  | B93: =Worksheet!$D$12 -> FALSE | C93: 1000 | D93: =1000*L93 -> 2100 | E93: m | F93: = | G93: 2 | H93: km | I93: 100 | J93: m | K93: = | L93: =RANDBETWEEN(1,Worksheet!$D$5)+CHOOSE(RANDBETWEEN(1,LOG10(C93)),RANDBETWEEN(1,9)/10^RANDBETWEEN(1,LOG10(C93)),RANDBETWEEN(1,99)/10^RANDBETWEEN(2,LOG10(C93)),RANDBETWEEN(0,999)/10^RANDBETWEEN(3,LOG10(C93)),RANDBETWEEN(0,9999)/C93) -> 2.1 | M93: km | AJ93: Christian
A94: =IF(COUNTIF($B$1:B94,TRUE)=COUNTIF($B$1:B93,TRUE),"",COUNTIF($B$1:B94,TRUE)) -> 47 | B94: =Worksheet!$B$12 -> TRUE | C94: 100 | D94: =100*L94 -> 107 | E94: cm | F94: = | G94: =INT(L94) -> 1 | H94: m | I94: 7 | J94: cm | K94: = | L94: =RANDBETWEEN(1,Worksheet!$D$5)+CHOOSE(RANDBETWEEN(1,LOG10(C94)),RANDBETWEEN(1,9)/10^RANDBETWEEN(1,LOG10(C94)),RANDBETWEEN(1,99)/10^RANDBETWEEN(2,LOG10(C94)),RANDBETWEEN(0,999)/10^RANDBETWEEN(3,LOG10(C94)),RANDBETWEEN(0,9999)/C94) -> 1.07 | M94: m | AJ94: Kane
A95: =IF(COUNTIF($B$1:B95,TRUE)=COUNTIF($B$1:B94,TRUE),"",COUNTIF($B$1:B95,TRUE)) ->  | B95: =Worksheet!$D$12 -> FALSE | C95: 1000 | D95: =1000*L95 -> 5800 | E95: m | F95: = | G95: 5 | H95: km | I95: 800 | J95: m | K95: = | L95: =RANDBETWEEN(1,Worksheet!$D$5)+CHOOSE(RANDBETWEEN(1,LOG10(C95)),RANDBETWEEN(1,9)/10^RANDBETWEEN(1,LOG10(C95)),RANDBETWEEN(1,99)/10^RANDBETWEEN(2,LOG10(C95)),RANDBETWEEN(0,999)/10^RANDBETWEEN(3,LOG10(C95)),RANDBETWEEN(0,9999)/C95) -> 5.8 | M95: km | AJ95: Shane
A96: =IF(COUNTIF($B$1:B96,TRUE)=COUNTIF($B$1:B95,TRUE),"",COUNTIF($B$1:B96,TRUE)) -> 48 | B96: =Worksheet!$B$12 -> TRUE | C96: 100 | D96: =100*L96 -> 504 | E96: cm | F96: = | G96: =INT(L96) -> 5 | H96: m | I96: 4 | J96: cm | K96: = | L96: =RANDBETWEEN(1,Worksheet!$D$5)+CHOOSE(RANDBETWEEN(1,LOG10(C96)),RANDBETWEEN(1,9)/10^RANDBETWEEN(1,LOG10(C96)),RANDBETWEEN(1,99)/10^RANDBETWEEN(2,LOG10(C96)),RANDBETWEEN(0,999)/10^RANDBETWEEN(3,LOG10(C96)),RANDBETWEEN(0,9999)/C96) -> 5.04 | M96: m | AJ96: Leon
A97: =IF(COUNTIF($B$1:B97,TRUE)=COUNTIF($B$1:B96,TRUE),"",COUNTIF($B$1:B97,TRUE)) ->  | B97: =Worksheet!$D$12 -> FALSE | C97: 1000 | D97: =1000*L97 -> 2040 | E97: m | F97: = | G97: 2 | H97: km | I97: 40 | J97: m | K97: = | L97: =RANDBETWEEN(1,Worksheet!$D$5)+CHOOSE(RANDBETWEEN(1,LOG10(C97)),RANDBETWEEN(1,9)/10^RANDBETWEEN(1,LOG10(C97)),RANDBETWEEN(1,99)/10^RANDBETWEEN(2,LOG10(C97)),RANDBETWEEN(0,999)/10^RANDBETWEEN(3,LOG10(C97)),RANDBETWEEN(0,9999)/C97) -> 2.04 | M97: km | AJ97: Shaun
A98: =IF(COUNTIF($B$1:B98,TRUE)=COUNTIF($B$1:B97,TRUE),"",COUNTIF($B$1:B98,TRUE)) -> 49 | B98: =Worksheet!$B$12 -> TRUE | C98: 100 | D98: =100*L98 -> 524 | E98: cm | F98: = | G98: =INT(L98) -> 5 | H98: m | I98: 24 | J98: cm | K98: = | L98: =RANDBETWEEN(1,Worksheet!$D$5)+CHOOSE(RANDBETWEEN(1,LOG10(C98)),RANDBETWEEN(1,9)/10^RANDBETWEEN(1,LOG10(C98)),RANDBETWEEN(1,99)/10^RANDBETWEEN(2,LOG10(C98)),RANDBETWEEN(0,999)/10^RANDBETWEEN(3,LOG10(C98)),RANDBETWEEN(0,9999)/C98) -> 5.24 | M98: m | AJ98: Corey
A99: =IF(COUNTIF($B$1:B99,TRUE)=COUNTIF($B$1:B98,TRUE),"",COUNTIF($B$1:B99,TRUE)) ->  | B99: =Worksheet!$D$12 -> FALSE | C99: 1000 | D99: =1000*L99 -> 5026 | E99: m | F99: = | G99: 5 | H99: km | I99: 26 | J99: m | K99: = | L99: =RANDBETWEEN(1,Worksheet!$D$5)+CHOOSE(RANDBETWEEN(1,LOG10(C99)),RANDBETWEEN(1,9)/10^RANDBETWEEN(1,LOG10(C99)),RANDBETWEEN(1,99)/10^RANDBETWEEN(2,LOG10(C99)),RANDBETWEEN(0,999)/10^RANDBETWEEN(3,LOG10(C99)),RANDBETWEEN(0,9999)/C99) -> 5.026 | M99: km | AJ99: Ellis
A100: =IF(COUNTIF($B$1:B100,TRUE)=COUNTIF($B$1:B99,TRUE),"",COUNTIF($B$1:B100,TRUE)) -> 50 | B100: =Worksheet!$B$12 -> TRUE | C100: 100 | D100: =100*L100 -> 209 | E100: cm | F100: = | G100: =INT(L100) -> 2 | H100: m | I100: =IF((L100-INT(L100))*C100=0,0,(L100-INT(L100))*C100) -> 9 | J100: cm | K100: = | L100: =RANDBETWEEN(1,Worksheet!$D$5)+CHOOSE(RANDBETWEEN(1,LOG10(C100)),RANDBETWEEN(1,9)/10^RANDBETWEEN(1,LOG10(C100)),RANDBETWEEN(1,99)/10^RANDBETWEEN(2,LOG10(C100)),RANDBETWEEN(0,999)/10^RANDBETWEEN(3,LOG10(C100)),RANDBETWEEN(0,9999)/C100) -> 2.09 | M100: m | AJ100: Kai
A101: =IF(COUNTIF($B$1:B101,TRUE)=COUNTIF($B$1:B100,TRUE),"",COUNTIF($B$1:B101,TRUE)) ->  | B101: =Worksheet!$D$12 -> FALSE | C101: 1000 | D101: =1000*L101 -> 4761 | E101: m | F101: = | G101: 4 | H101: km | I101: 761 | J101: m | K101: = | L101: =RANDBETWEEN(1,Worksheet!$D$5)+CHOOSE(RANDBETWEEN(1,LOG10(C101)),RANDBETWEEN(1,9)/10^RANDBETWEEN(1,LOG10(C101)),RANDBETWEEN(1,99)/10^RANDBETWEEN(2,LOG10(C101)),RANDBETWEEN(0,999)/10^RANDBETWEEN(3,LOG10(C101)),RANDBETWEEN(0,9999)/C101) -> 4.761 | M101: km | AJ101: Natalie
A102: =IF(COUNTIF($B$1:B102,TRUE)=COUNTIF($B$1:B101,TRUE),"",COUNTIF($B$1:B102,TRUE)) -> 51 | B102: =Worksheet!$B$12 -> TRUE | C102: 100 | D102: =100*L102 -> 530 | E102: cm | F102: = | G102: =INT(L102) -> 5 | H102: m | I102: 30 | J102: cm | K102: = | L102: =RANDBETWEEN(1,Worksheet!$D$5)+CHOOSE(RANDBETWEEN(1,LOG10(C102)),RANDBETWEEN(1,9)/10^RANDBETWEEN(1,LOG10(C102)),RANDBETWEEN(1,99)/10^RANDBETWEEN(2,LOG10(C102)),RANDBETWEEN(0,999)/10^RANDBETWEEN(3,LOG10(C102)),RANDBETWEEN(0,9999)/C102) -> 5.3 | M102: m | AJ102: Abbie
A103: =IF(COUNTIF($B$1:B103,TRUE)=COUNTIF($B$1:B102,TRUE),"",COUNTIF($B$1:B103,TRUE)) ->  | B103: =Worksheet!$D$12 -> FALSE | C103: 1000 | D103: =1000*L103 -> 2020 | E103: m | F103: = | G103: 2 | H103: km | I103: 20 | J103: m | K103: = | L103: =RANDBETWEEN(1,Worksheet!$D$5)+CHOOSE(RANDBETWEEN(1,LOG10(C103)),RANDBETWEEN(1,9)/10^RANDBETWEEN(1,LOG10(C103)),RANDBETWEEN(1,99)/10^RANDBETWEEN(2,LOG10(C103)),RANDBETWEEN(0,999)/10^RANDBETWEEN(3,LOG10(C103)),RANDBETWEEN(0,9999)/C103) -> 2.02 | M103: km | AJ103: Francesca
A104: =IF(COUNTIF($B$1:B104,TRUE)=COUNTIF($B$1:B103,TRUE),"",COUNTIF($B$1:B104,TRUE)) -> 52 | B104: =Worksheet!$B$12 -> TRUE | C104: 100 | D104: =100*L104 -> 205 | E104: cm | F104: = | G104: =INT(L104) -> 2 | H104: m | I104: 5 | J104: cm | K104: = | L104: =RANDBETWEEN(1,Worksheet!$D$5)+CHOOSE(RANDBETWEEN(1,LOG10(C104)),RANDBETWEEN(1,9)/10^RANDBETWEEN(1,LOG10(C104)),RANDBETWEEN(1,99)/10^RANDBETWEEN(2,LOG10(C104)),RANDBETWEEN(0,999)/10^RANDBETWEEN(3,LOG10(C104)),RANDBETWEEN(0,9999)/C104) -> 2.05 | M104: m | AJ104: Melissa
A105: =IF(COUNTIF($B$1:B105,TRUE)=COUNTIF($B$1:B104,TRUE),"",COUNTIF($B$1:B105,TRUE)) ->  | B105: =Worksheet!$D$12 -> FALSE | C105: 1000 | D105: =1000*L105 -> 1690 | E105: m | F105: = | G105: 1 | H105: km | I105: 690 | J105: m | K105: = | L105: =RANDBETWEEN(1,Worksheet!$D$5)+CHOOSE(RANDBETWEEN(1,LOG10(C105)),RANDBETWEEN(1,9)/10^RANDBETWEEN(1,LOG10(C105)),RANDBETWEEN(1,99)/10^RANDBETWEEN(2,LOG10(C105)),RANDBETWEEN(0,999)/10^RANDBETWEEN(3,LOG10(C105)),RANDBETWEEN(0,9999)/C105) -> 1.69 | M105: km | AJ105: Katherine
A106: =IF(COUNTIF($B$1:B106,TRUE)=COUNTIF($B$1:B105,TRUE),"",COUNTIF($B$1:B106,TRUE)) -> 53 | B106: =Worksheet!$B$12 -> TRUE | C106: 100 | D106: =100*L106 -> 270 | E106: cm | F106: = | G106: =INT(L106) -> 2 | H106: m | I106: 70 | J106: cm | K106: = | L106: =RANDBETWEEN(1,Worksheet!$D$5)+CHOOSE(RANDBETWEEN(1,LOG10(C106)),RANDBETWEEN(1,9)/10^RANDBETWEEN(1,LOG10(C106)),RANDBETWEEN(1,99)/10^RANDBETWEEN(2,LOG10(C106)),RANDBETWEEN(0,999)/10^RANDBETWEEN(3,LOG10(C106)),RANDBETWEEN(0,9999)/C106) -> 2.7 | M106: m | AJ106: Harriet
A107: =IF(COUNTIF($B$1:B107,TRUE)=COUNTIF($B$1:B106,TRUE),"",COUNTIF($B$1:B107,TRUE)) ->  | B107: =Worksheet!$D$12 -> FALSE | C107: 1000 | D107: =1000*L107 -> 5310 | E107: m | F107: = | G107: 5 | H107: km | I107: 310 | J107: m | K107: = | L107: =RANDBETWEEN(1,Worksheet!$D$5)+CHOOSE(RANDBETWEEN(1,LOG10(C107)),RANDBETWEEN(1,9)/10^RANDBETWEEN(1,LOG10(C107)),RANDBETWEEN(1,99)/10^RANDBETWEEN(2,LOG10(C107)),RANDBETWEEN(0,999)/10^RANDBETWEEN(3,LOG10(C107)),RANDBETWEEN(0,9999)/C107) -> 5.31 | M107: km | AJ107: Imogen
A108: =IF(COUNTIF($B$1:B108,TRUE)=COUNTIF($B$1:B107,TRUE),"",COUNTIF($B$1:B108,TRUE)) -> 54 | B108: =Worksheet!$B$12 -> TRUE | C108: 100 | D108: =100*L108 -> 191 | E108: cm | F108: = | G108: =INT(L108) -> 1 | H108: m | I108: 91 | J108: cm | K108: = | L108: =RANDBETWEEN(1,Worksheet!$D$5)+CHOOSE(RANDBETWEEN(1,LOG10(C108)),RANDBETWEEN(1,9)/10^RANDBETWEEN(1,LOG10(C108)),RANDBETWEEN(1,99)/10^RANDBETWEEN(2,LOG10(C108)),RANDBETWEEN(0,999)/10^RANDBETWEEN(3,LOG10(C108)),RANDBETWEEN(0,9999)/C108) -> 1.91 | M108: m | AJ108: Jodie
A109: =IF(COUNTIF($B$1:B109,TRUE)=COUNTIF($B$1:B108,TRUE),"",COUNTIF($B$1:B109,TRUE)) ->  | B109: =Worksheet!$D$12 -> FALSE | C109: 1000 | D109: =1000*L109 -> 4189 | E109: m | F109: = | G109: 4 | H109: km | I109: 189 | J109: m | K109: = | L109: =RANDBETWEEN(1,Worksheet!$D$5)+CHOOSE(RANDBETWEEN(1,LOG10(C109)),RANDBETWEEN(1,9)/10^RANDBETWEEN(1,LOG10(C109)),RANDBETWEEN(1,99)/10^RANDBETWEEN(2,LOG10(C109)),RANDBETWEEN(0,999)/10^RANDBETWEEN(3,LOG10(C109)),RANDBETWEEN(0,9999)/C109) -> 4.189 | M109: km | AJ109: Gemma
A110: =IF(COUNTIF($B$1:B110,TRUE)=COUNTIF($B$1:B109,TRUE),"",COUNTIF($B$1:B110,TRUE)) -> 55 | B110: =Worksheet!$B$12 -> TRUE | C110: 100 | D110: =100*L110 -> 427 | E110: cm | F110: = | G110: =INT(L110) -> 4 | H110: m | I110: 27 | J110: cm | K110: = | L110: =RANDBETWEEN(1,Worksheet!$D$5)+CHOOSE(RANDBETWEEN(1,LOG10(C110)),RANDBETWEEN(1,9)/10^RANDBETWEEN(1,LOG10(C110)),RANDBETWEEN(1,99)/10^RANDBETWEEN(2,LOG10(C110)),RANDBETWEEN(0,999)/10^RANDBETWEEN(3,LOG10(C110)),RANDBETWEEN(0,9999)/C110) -> 4.27 | M110: m | AJ110: Kayleigh
A111: =IF(COUNTIF($B$1:B111,TRUE)=COUNTIF($B$1:B110,TRUE),"",COUNTIF($B$1:B111,TRUE)) ->  | B111: =Worksheet!$D$12 -> FALSE | C111: 1000 | D111: =1000*L111 -> 3200 | E111: m | F111: = | G111: 3 | H111: km | I111: 200 | J111: m | K111: = | L111: =RANDBETWEEN(1,Worksheet!$D$5)+CHOOSE(RANDBETWEEN(1,LOG10(C111)),RANDBETWEEN(1,9)/10^RANDBETWEEN(1,LOG10(C111)),RANDBETWEEN(1,99)/10^RANDBETWEEN(2,LOG10(C111)),RANDBETWEEN(0,999)/10^RANDBETWEEN(3,LOG10(C111)),RANDBETWEEN(0,9999)/C111) -> 3.2 | M111: km | AJ111: Lily
A112: =IF(COUNTIF($B$1:B112,TRUE)=COUNTIF($B$1:B111,TRUE),"",COUNTIF($B$1:B112,TRUE)) -> 56 | B112: =Worksheet!$B$12 -> TRUE | C112: 100 | D112: =100*L112 -> 577 | E112: cm | F112: = | G112: =INT(L112) -> 5 | H112: m | I112: =IF((L112-INT(L112))*C112=0,0,(L112-INT(L112))*C112) -> 77 | J112: cm | K112: = | L112: =RANDBETWEEN(1,Worksheet!$D$5)+CHOOSE(RANDBETWEEN(1,LOG10(C112)),RANDBETWEEN(1,9)/10^RANDBETWEEN(1,LOG10(C112)),RANDBETWEEN(1,99)/10^RANDBETWEEN(2,LOG10(C112)),RANDBETWEEN(0,999)/10^RANDBETWEEN(3,LOG10(C112)),RANDBETWEEN(0,9999)/C112) -> 5.77 | M112: m | AJ112: Jennifer
A113: =IF(COUNTIF($B$1:B113,TRUE)=COUNTIF($B$1:B112,TRUE),"",COUNTIF($B$1:B113,TRUE)) ->  | B113: =Worksheet!$D$12 -> FALSE | C113: 1000 | D113: =1000*L113 -> 2200 | E113: m | F113: = | G113: 2 | H113: km | I113: 200 | J113: m | K113: = | L113: =RANDBETWEEN(1,Worksheet!$D$5)+CHOOSE(RANDBETWEEN(1,LOG10(C113)),RANDBETWEEN(1,9)/10^RANDBETWEEN(1,LOG10(C113)),RANDBETWEEN(1,99)/10^RANDBETWEEN(2,LOG10(C113)),RANDBETWEEN(0,999)/10^RANDBETWEEN(3,LOG10(C113)),RANDBETWEEN(0,9999)/C113) -> 2.2 | M113: km | AJ113: Kate
A114: =IF(COUNTIF($B$1:B114,TRUE)=COUNTIF($B$1:B113,TRUE),"",COUNTIF($B$1:B114,TRUE)) -> 57 | B114: =Worksheet!$B$12 -> TRUE | C114: 100 | D114: =100*L114 -> 330 | E114: cm | F114: = | G114: =INT(L114) -> 3 | H114: m | I114: 30 | J114: cm | K114: = | L114: =RANDBETWEEN(1,Worksheet!$D$5)+CHOOSE(RANDBETWEEN(1,LOG10(C114)),RANDBETWEEN(1,9)/10^RANDBETWEEN(1,LOG10(C114)),RANDBETWEEN(1,99)/10^RANDBETWEEN(2,LOG10(C114)),RANDBETWEEN(0,999)/10^RANDBETWEEN(3,LOG10(C114)),RANDBETWEEN(0,9999)/C114) -> 3.3 | M114: m | AJ114: Stephanie
A115: =IF(COUNTIF($B$1:B115,TRUE)=COUNTIF($B$1:B114,TRUE),"",COUNTIF($B$1:B115,TRUE)) ->  | B115: =Worksheet!$D$12 -> FALSE | C115: 1000 | D115: =1000*L115 -> 1056 | E115: m | F115: = | G115: 1 | H115: km | I115: 56 | J115: m | K115: = | L115: =RANDBETWEEN(1,Worksheet!$D$5)+CHOOSE(RANDBETWEEN(1,LOG10(C115)),RANDBETWEEN(1,9)/10^RANDBETWEEN(1,LOG10(C115)),RANDBETWEEN(1,99)/10^RANDBETWEEN(2,LOG10(C115)),RANDBETWEEN(0,999)/10^RANDBETWEEN(3,LOG10(C115)),RANDBETWEEN(0,9999)/C115) -> 1.056 | M115: km | AJ115: Daisy
A116: =IF(COUNTIF($B$1:B116,TRUE)=COUNTIF($B$1:B115,TRUE),"",COUNTIF($B$1:B116,TRUE)) -> 58 | B116: =Worksheet!$B$12 -> TRUE | C116: 100 | D116: =100*L116 -> 340 | E116: cm | F116: = | G116: =INT(L116) -> 3 | H116: m | I116: 40 | J116: cm | K116: = | L116: =RANDBETWEEN(1,Worksheet!$D$5)+CHOOSE(RANDBETWEEN(1,LOG10(C116)),RANDBETWEEN(1,9)/10^RANDBETWEEN(1,LOG10(C116)),RANDBETWEEN(1,99)/10^RANDBETWEEN(2,LOG10(C116)),RANDBETWEEN(0,999)/10^RANDBETWEEN(3,LOG10(C116)),RANDBETWEEN(0,9999)/C116) -> 3.4 | M116: m | AJ116: Niamh
A117: =IF(COUNTIF($B$1:B117,TRUE)=COUNTIF($B$1:B116,TRUE),"",COUNTIF($B$1:B117,TRUE)) ->  | B117: =Worksheet!$D$12 -> FALSE | C117: 1000 | D117: =1000*L117 -> 3700 | E117: m | F117: = | G117: 3 | H117: km | I117: 700 | J117: m | K117: = | L117: =RANDBETWEEN(1,Worksheet!$D$5)+CHOOSE(RANDBETWEEN(1,LOG10(C117)),RANDBETWEEN(1,9)/10^RANDBETWEEN(1,LOG10(C117)),RANDBETWEEN(1,99)/10^RANDBETWEEN(2,LOG10(C117)),RANDBETWEEN(0,999)/10^RANDBETWEEN(3,LOG10(C117)),RANDBETWEEN(0,9999)/C117) -> 3.7 | M117: km | AJ117: Millie
A118: =IF(COUNTIF($B$1:B118,TRUE)=COUNTIF($B$1:B117,TRUE),"",COUNTIF($B$1:B118,TRUE)) -> 59 | B118: =Worksheet!$B$12 -> TRUE | C118: 100 | D118: =100*L118 -> 303 | E118: cm | F118: = | G118: =INT(L118) -> 3 | H118: m | I118: 3 | J118: cm | K118: = | L118: =RANDBETWEEN(1,Worksheet!$D$5)+CHOOSE(RANDBETWEEN(1,LOG10(C118)),RANDBETWEEN(1,9)/10^RANDBETWEEN(1,LOG10(C118)),RANDBETWEEN(1,99)/10^RANDBETWEEN(2,LOG10(C118)),RANDBETWEEN(0,999)/10^RANDBETWEEN(3,LOG10(C118)),RANDBETWEEN(0,9999)/C118) -> 3.03 | M118: m | AJ118: Aimee
A119: =IF(COUNTIF($B$1:B119,TRUE)=COUNTIF($B$1:B118,TRUE),"",COUNTIF($B$1:B119,TRUE)) ->  | B119: =Worksheet!$D$12 -> FALSE | C119: 1000 | D119: =1000*L119 -> 4527 | E119: m | F119: = | G119: 4 | H119: km | I119: 527 | J119: m | K119: = | L119: =RANDBETWEEN(1,Worksheet!$D$5)+CHOOSE(RANDBETWEEN(1,LOG10(C119)),RANDBETWEEN(1,9)/10^RANDBETWEEN(1,LOG10(C119)),RANDBETWEEN(1,99)/10^RANDBETWEEN(2,LOG10(C119)),RANDBETWEEN(0,999)/10^RANDBETWEEN(3,LOG10(C119)),RANDBETWEEN(0,9999)/C119) -> 4.527 | M119: km | AJ119: Kirsty
A120: =IF(COUNTIF($B$1:B120,TRUE)=COUNTIF($B$1:B119,TRUE),"",COUNTIF($B$1:B120,TRUE)) -> 60 | B120: =Worksheet!$B$12 -> TRUE | C120: 100 | D120: =100*L120 -> 350 | E120: cm | F120: = | G120: =INT(L120) -> 3 | H120: m | I120: 50 | J120: cm | K120: = | L120: =RANDBETWEEN(1,Worksheet!$D$5)+CHOOSE(RANDBETWEEN(1,LOG10(C120)),RANDBETWEEN(1,9)/10^RANDBETWEEN(1,LOG10(C120)),RANDBETWEEN(1,99)/10^RANDBETWEEN(2,LOG10(C120)),RANDBETWEEN(0,999)/10^RANDBETWEEN(3,LOG10(C120)),RANDBETWEEN(0,9999)/C120) -> 3.5 | M120: m | AJ120: Hollie
A121: =IF(COUNTIF($B$1:B121,TRUE)=COUNTIF($B$1:B120,TRUE),"",COUNTIF($B$1:B121,TRUE)) ->  | B121: =Worksheet!$D$12 -> FALSE | C121: 1000 | D121: =1000*L121 -> 4088 | E121: m | F121: = | G121: 4 | H121: km | I121: 88 | J121: m | K121: = | L121: =RANDBETWEEN(1,Worksheet!$D$5)+CHOOSE(RANDBETWEEN(1,LOG10(C121)),RANDBETWEEN(1,9)/10^RANDBETWEEN(1,LOG10(C121)),RANDBETWEEN(1,99)/10^RANDBETWEEN(2,LOG10(C121)),RANDBETWEEN(0,999)/10^RANDBETWEEN(3,LOG10(C121)),RANDBETWEEN(0,9999)/C121) -> 4.088 | M121: km | AJ121: Rosie
A122: =IF(COUNTIF($B$1:B122,TRUE)=COUNTIF($B$1:B121,TRUE),"",COUNTIF($B$1:B122,TRUE)) -> 61 | B122: =Worksheet!$B$12 -> TRUE | C122: 100 | D122: =100*L122 -> 270 | E122: cm | F122: = | G122: =INT(L122) -> 2 | H122: m | I122: 70 | J122: cm | K122: = | L122: =RANDBETWEEN(1,Worksheet!$D$5)+CHOOSE(RANDBETWEEN(1,LOG10(C122)),RANDBETWEEN(1,9)/10^RANDBETWEEN(1,LOG10(C122)),RANDBETWEEN(1,99)/10^RANDBETWEEN(2,LOG10(C122)),RANDBETWEEN(0,999)/10^RANDBETWEEN(3,LOG10(C122)),RANDBETWEEN(0,9999)/C122) -> 2.7 | M122: m | AJ122: Jordan
A123: =IF(COUNTIF($B$1:B123,TRUE)=COUNTIF($B$1:B122,TRUE),"",COUNTIF($B$1:B123,TRUE)) ->  | B123: =Worksheet!$D$12 -> FALSE | C123: 1000 | D123: =1000*L123 -> 2500 | E123: m | F123: = | G123: 2 | H123: km | I123: 500 | J123: m | K123: = | L123: =RANDBETWEEN(1,Worksheet!$D$5)+CHOOSE(RANDBETWEEN(1,LOG10(C123)),RANDBETWEEN(1,9)/10^RANDBETWEEN(1,LOG10(C123)),RANDBETWEEN(1,99)/10^RANDBETWEEN(2,LOG10(C123)),RANDBETWEEN(0,999)/10^RANDBETWEEN(3,LOG10(C123)),RANDBETWEEN(0,9999)/C123) -> 2.5 | M123: km | AJ123: Mollie
A124: =IF(COUNTIF($B$1:B124,TRUE)=COUNTIF($B$1:B123,TRUE),"",COUNTIF($B$1:B124,TRUE)) -> 62 | B124: =Worksheet!$B$12 -> TRUE | C124: 100 | D124: =100*L124 -> 279 | E124: cm | F124: = | G124: =INT(L124) -> 2 | H124: m | I124: 79 | J124: cm | K124: = | L124: =RANDBETWEEN(1,Worksheet!$D$5)+CHOOSE(RANDBETWEEN(1,LOG10(C124)),RANDBETWEEN(1,9)/10^RANDBETWEEN(1,LOG10(C124)),RANDBETWEEN(1,99)/10^RANDBETWEEN(2,LOG10(C124)),RANDBETWEEN(0,999)/10^RANDBETWEEN(3,LOG10(C124)),RANDBETWEEN(0,9999)/C124) -> 2.79 | M124: m | AJ124: Alisha
A125: =IF(COUNTIF($B$1:B125,TRUE)=COUNTIF($B$1:B124,TRUE),"",COUNTIF($B$1:B125,TRUE)) ->  | B125: =Worksheet!$D$12 -> FALSE | C125: 1000 | D125: =1000*L125 -> 2041 | E125: m | F125: = | G125: 2 | H125: km | I125: =IF((L125-INT(L125))*C125=0,0,(L125-INT(L125))*C125) -> 41 | J125: m | K125: = | L125: =RANDBETWEEN(1,Worksheet!$D$5)+CHOOSE(RANDBETWEEN(1,LOG10(C125)),RANDBETWEEN(1,9)/10^RANDBETWEEN(1,LOG10(C125)),RANDBETWEEN(1,99)/10^RANDBETWEEN(2,LOG10(C125)),RANDBETWEEN(0,999)/10^RANDBETWEEN(3,LOG10(C125)),RANDBETWEEN(0,9999)/C125) -> 2.041 | M125: km | AJ125: Mia
A126: =IF(COUNTIF($B$1:B126,TRUE)=COUNTIF($B$1:B125,TRUE),"",COUNTIF($B$1:B126,TRUE)) -> 63 | B126: =Worksheet!$B$12 -> TRUE | C126: 100 | D126: =100*L126 -> 397 | E126: cm | F126: = | G126: =INT(L126) -> 3 | H126: m | I126: 97 | J126: cm | K126: = | L126: =RANDBETWEEN(1,Worksheet!$D$5)+CHOOSE(RANDBETWEEN(1,LOG10(C126)),RANDBETWEEN(1,9)/10^RANDBETWEEN(1,LOG10(C126)),RANDBETWEEN(1,99)/10^RANDBETWEEN(2,LOG10(C126)),RANDBETWEEN(0,999)/10^RANDBETWEEN(3,LOG10(C126)),RANDBETWEEN(0,9999)/C126) -> 3.97 | M126: m | AJ126: Isobel
A127: =IF(COUNTIF($B$1:B127,TRUE)=COUNTIF($B$1:B126,TRUE),"",COUNTIF($B$1:B127,TRUE)) ->  | B127: =Worksheet!$D$12 -> FALSE | C127: 1000 | D127: =1000*L127 -> 3008 | E127: m | F127: = | G127: 3 | H127: km | I127: 8 | J127: m | K127: = | L127: =RANDBETWEEN(1,Worksheet!$D$5)+CHOOSE(RANDBETWEEN(1,LOG10(C127)),RANDBETWEEN(1,9)/10^RANDBETWEEN(1,LOG10(C127)),RANDBETWEEN(1,99)/10^RANDBETWEEN(2,LOG10(C127)),RANDBETWEEN(0,999)/10^RANDBETWEEN(3,LOG10(C127)),RANDBETWEEN(0,9999)/C127) -> 3.008 | M127: km | AJ127: Tia
A128: =IF(COUNTIF($B$1:B128,TRUE)=COUNTIF($B$1:B127,TRUE),"",COUNTIF($B$1:B128,TRUE)) -> 64 | B128: =Worksheet!$B$12 -> TRUE | C128: 100 | D128: =100*L128 -> 277 | E128: cm | F128: = | G128: =INT(L128) -> 2 | H128: m | I128: 77 | J128: cm | K128: = | L128: =RANDBETWEEN(1,Worksheet!$D$5)+CHOOSE(RANDBETWEEN(1,LOG10(C128)),RANDBETWEEN(1,9)/10^RANDBETWEEN(1,LOG10(C128)),RANDBETWEEN(1,99)/10^RANDBETWEEN(2,LOG10(C128)),RANDBETWEEN(0,999)/10^RANDBETWEEN(3,LOG10(C128)),RANDBETWEEN(0,9999)/C128) -> 2.77 | M128: m | AJ128: Ellen
A129: =IF(COUNTIF($B$1:B129,TRUE)=COUNTIF($B$1:B128,TRUE),"",COUNTIF($B$1:B129,TRUE)) ->  | B129: =Worksheet!$D$12 -> FALSE | C129: 1000 | D129: =1000*L129 -> 2300 | E129: m | F129: = | G129: 2 | H129: km | I129: 300 | J129: m | K129: = | L129: =RANDBETWEEN(1,Worksheet!$D$5)+CHOOSE(RANDBETWEEN(1,LOG10(C129)),RANDBETWEEN(1,9)/10^RANDBETWEEN(1,LOG10(C129)),RANDBETWEEN(1,99)/10^RANDBETWEEN(2,LOG10(C129)),RANDBETWEEN(0,999)/10^RANDBETWEEN(3,LOG10(C129)),RANDBETWEEN(0,9999)/C129) -> 2.3 | M129: km | AJ129: Erin
A130: =IF(COUNTIF($B$1:B130,TRUE)=COUNTIF($B$1:B129,TRUE),"",COUNTIF($B$1:B130,TRUE)) -> 65 | B130: =Worksheet!$B$12 -> TRUE | C130: 100 | D130: =100*L130 -> 410 | E130: cm | F130: = | G130: =INT(L130) -> 4 | H130: m | I130: 10 | J130: cm | K130: = | L130: =RANDBETWEEN(1,Worksheet!$D$5)+CHOOSE(RANDBETWEEN(1,LOG10(C130)),RANDBETWEEN(1,9)/10^RANDBETWEEN(1,LOG10(C130)),RANDBETWEEN(1,99)/10^RANDBETWEEN(2,LOG10(C130)),RANDBETWEEN(0,999)/10^RANDBETWEEN(3,LOG10(C130)),RANDBETWEEN(0,9999)/C130) -> 4.1 | M130: m | AJ130: Bethan
A131: =IF(COUNTIF($B$1:B131,TRUE)=COUNTIF($B$1:B130,TRUE),"",COUNTIF($B$1:B131,TRUE)) ->  | B131: =Worksheet!$D$12 -> FALSE | C131: 1000 | D131: =1000*L131 -> 1517 | E131: m | F131: = | G131: 1 | H131: km | I131: 517 | J131: m | K131: = | L131: =RANDBETWEEN(1,Worksheet!$D$5)+CHOOSE(RANDBETWEEN(1,LOG10(C131)),RANDBETWEEN(1,9)/10^RANDBETWEEN(1,LOG10(C131)),RANDBETWEEN(1,99)/10^RANDBETWEEN(2,LOG10(C131)),RANDBETWEEN(0,999)/10^RANDBETWEEN(3,LOG10(C131)),RANDBETWEEN(0,9999)/C131) -> 1.517 | M131: km | AJ131: Sian
A132: =IF(COUNTIF($B$1:B132,TRUE)=COUNTIF($B$1:B131,TRUE),"",COUNTIF($B$1:B132,TRUE)) -> 66 | B132: =Worksheet!$B$12 -> TRUE | C132: 100 | D132: =100*L132 -> 570 | E132: cm | F132: = | G132: =INT(L132) -> 5 | H132: m | I132: 70 | J132: cm | K132: = | L132: =RANDBETWEEN(1,Worksheet!$D$5)+CHOOSE(RANDBETWEEN(1,LOG10(C132)),RANDBETWEEN(1,9)/10^RANDBETWEEN(1,LOG10(C132)),RANDBETWEEN(1,99)/10^RANDBETWEEN(2,LOG10(C132)),RANDBETWEEN(0,999)/10^RANDBETWEEN(3,LOG10(C132)),RANDBETWEEN(0,9999)/C132) -> 5.7 | M132: m | AJ132: Alicia
A133: =IF(COUNTIF($B$1:B133,TRUE)=COUNTIF($B$1:B132,TRUE),"",COUNTIF($B$1:B133,TRUE)) ->  | B133: =Worksheet!$D$12 -> FALSE | C133: 1000 | D133: =1000*L133 -> 4400 | E133: m | F133: = | G133: 4 | H133: km | I133: 400 | J133: m | K133: = | L133: =RANDBETWEEN(1,Worksheet!$D$5)+CHOOSE(RANDBETWEEN(1,LOG10(C133)),RANDBETWEEN(1,9)/10^RANDBETWEEN(1,LOG10(C133)),RANDBETWEEN(1,99)/10^RANDBETWEEN(2,LOG10(C133)),RANDBETWEEN(0,999)/10^RANDBETWEEN(3,LOG10(C133)),RANDBETWEEN(0,9999)/C133) -> 4.4 | M133: km | AJ133: Rhiannon
A134: =IF(COUNTIF($B$1:B134,TRUE)=COUNTIF($B$1:B133,TRUE),"",COUNTIF($B$1:B134,TRUE)) -> 67 | B134: =Worksheet!$B$12 -> TRUE | C134: 100 | D134: =100*L134 -> 511 | E134: cm | F134: = | G134: =INT(L134) -> 5 | H134: m | I134: 11 | J134: cm | K134: = | L134: =RANDBETWEEN(1,Worksheet!$D$5)+CHOOSE(RANDBETWEEN(1,LOG10(C134)),RANDBETWEEN(1,9)/10^RANDBETWEEN(1,LOG10(C134)),RANDBETWEEN(1,99)/10^RANDBETWEEN(2,LOG10(C134)),RANDBETWEEN(0,999)/10^RANDBETWEEN(3,LOG10(C134)),RANDBETWEEN(0,9999)/C134) -> 5.11 | M134: m | AJ134: Ashleigh
A135: =IF(COUNTIF($B$1:B135,TRUE)=COUNTIF($B$1:B134,TRUE),"",COUNTIF($B$1:B135,TRUE)) ->  | B135: =Worksheet!$D$12 -> FALSE | C135: 1000 | D135: =1000*L135 -> 3500 | E135: m | F135: = | G135: 3 | H135: km | I135: 500 | J135: m | K135: = | L135: =RANDBETWEEN(1,Worksheet!$D$5)+CHOOSE(RANDBETWEEN(1,LOG10(C135)),RANDBETWEEN(1,9)/10^RANDBETWEEN(1,LOG10(C135)),RANDBETWEEN(1,99)/10^RANDBETWEEN(2,LOG10(C135)),RANDBETWEEN(0,999)/10^RANDBETWEEN(3,LOG10(C135)),RANDBETWEEN(0,9999)/C135) -> 3.5 | M135: km | AJ135: Catherine
A136: =IF(COUNTIF($B$1:B136,TRUE)=COUNTIF($B$1:B135,TRUE),"",COUNTIF($B$1:B136,TRUE)) -> 68 | B136: =Worksheet!$B$12 -> TRUE | C136: 100 | D136: =100*L136 -> 460 | E136: cm | F136: = | G136: =INT(L136) -> 4 | H136: m | I136: 60 | J136: cm | K136: = | L136: =RANDBETWEEN(1,Worksheet!$D$5)+CHOOSE(RANDBETWEEN(1,LOG10(C136)),RANDBETWEEN(1,9)/10^RANDBETWEEN(1,LOG10(C136)),RANDBETWEEN(1,99)/10^RANDBETWEEN(2,LOG10(C136)),RANDBETWEEN(0,999)/10^RANDBETWEEN(3,LOG10(C136)),RANDBETWEEN(0,9999)/C136) -> 4.6 | M136: m | AJ136: Madeleine
A137: =IF(COUNTIF($B$1:B137,TRUE)=COUNTIF($B$1:B136,TRUE),"",COUNTIF($B$1:B137,TRUE)) ->  | B137: =Worksheet!$D$12 -> FALSE | C137: 1000 | D137: =1000*L137 -> 1200 | E137: m | F137: = | G137: 1 | H137: km | I137: 200 | J137: m | K137: = | L137: =RANDBETWEEN(1,Worksheet!$D$5)+CHOOSE(RANDBETWEEN(1,LOG10(C137)),RANDBETWEEN(1,9)/10^RANDBETWEEN(1,LOG10(C137)),RANDBETWEEN(1,99)/10^RANDBETWEEN(2,LOG10(C137)),RANDBETWEEN(0,999)/10^RANDBETWEEN(3,LOG10(C137)),RANDBETWEEN(0,9999)/C137) -> 1.2 | M137: km | AJ137: Isabelle
A138: =IF(COUNTIF($B$1:B138,TRUE)=COUNTIF($B$1:B137,TRUE),"",COUNTIF($B$1:B138,TRUE)) -> 69 | B138: =Worksheet!$B$12 -> TRUE | C138: 100 | D138: =100*L138 -> 419 | E138: cm | F138: = | G138: =INT(L138) -> 4 | H138: m | I138: =IF((L138-INT(L138))*C138=0,0,(L138-INT(L138))*C138) -> 19 | J138: cm | K138: = | L138: =RANDBETWEEN(1,Worksheet!$D$5)+CHOOSE(RANDBETWEEN(1,LOG10(C138)),RANDBETWEEN(1,9)/10^RANDBETWEEN(1,LOG10(C138)),RANDBETWEEN(1,99)/10^RANDBETWEEN(2,LOG10(C138)),RANDBETWEEN(0,999)/10^RANDBETWEEN(3,LOG10(C138)),RANDBETWEEN(0,9999)/C138) -> 4.19 | M138: m | AJ138: Kelsey
A139: =IF(COUNTIF($B$1:B139,TRUE)=COUNTIF($B$1:B138,TRUE),"",COUNTIF($B$1:B139,TRUE)) ->  | B139: =Worksheet!$D$12 -> FALSE | C139: 1000 | D139: =1000*L139 -> 3900 | E139: m | F139: = | G139: 3 | H139: km | I139: 900 | J139: m | K139: = | L139: =RANDBETWEEN(1,Worksheet!$D$5)+CHOOSE(RANDBETWEEN(1,LOG10(C139)),RANDBETWEEN(1,9)/10^RANDBETWEEN(1,LOG10(C139)),RANDBETWEEN(1,99)/10^RANDBETWEEN(2,LOG10(C139)),RANDBETWEEN(0,999)/10^RANDBETWEEN(3,LOG10(C139)),RANDBETWEEN(0,9999)/C139) -> 3.9 | M139: km | AJ139: Sophia
A140: =IF(COUNTIF($B$1:B140,TRUE)=COUNTIF($B$1:B139,TRUE),"",COUNTIF($B$1:B140,TRUE)) -> 70 | B140: =Worksheet!$B$12 -> TRUE | C140: 100 | D140: =100*L140 -> 246 | E140: cm | F140: = | G140: =INT(L140) -> 2 | H140: m | I140: 46 | J140: cm | K140: = | L140: =RANDBETWEEN(1,Worksheet!$D$5)+CHOOSE(RANDBETWEEN(1,LOG10(C140)),RANDBETWEEN(1,9)/10^RANDBETWEEN(1,LOG10(C140)),RANDBETWEEN(1,99)/10^RANDBETWEEN(2,LOG10(C140)),RANDBETWEEN(0,999)/10^RANDBETWEEN(3,LOG10(C140)),RANDBETWEEN(0,9999)/C140) -> 2.46 | M140: m | AJ140: Isabella
A141: =IF(COUNTIF($B$1:B141,TRUE)=COUNTIF($B$1:B140,TRUE),"",COUNTIF($B$1:B141,TRUE)) ->  | B141: =Worksheet!$D$12 -> FALSE | C141: 1000 | D141: =1000*L141 -> 2097 | E141: m | F141: = | G141: 2 | H141: km | I141: 97 | J141: m | K141: = | L141: =RANDBETWEEN(1,Worksheet!$D$5)+CHOOSE(RANDBETWEEN(1,LOG10(C141)),RANDBETWEEN(1,9)/10^RANDBETWEEN(1,LOG10(C141)),RANDBETWEEN(1,99)/10^RANDBETWEEN(2,LOG10(C141)),RANDBETWEEN(0,999)/10^RANDBETWEEN(3,LOG10(C141)),RANDBETWEEN(0,9999)/C141) -> 2.097 | M141: km | AJ141: Naomi
A142: =IF(COUNTIF($B$1:B142,TRUE)=COUNTIF($B$1:B141,TRUE),"",COUNTIF($B$1:B142,TRUE)) -> 71 | B142: =Worksheet!$B$12 -> TRUE | C142: 100 | D142: =100*L142 -> 507 | E142: cm | F142: = | G142: =INT(L142) -> 5 | H142: m | I142: 7 | J142: cm | K142: = | L142: =RANDBETWEEN(1,Worksheet!$D$5)+CHOOSE(RANDBETWEEN(1,LOG10(C142)),RANDBETWEEN(1,9)/10^RANDBETWEEN(1,LOG10(C142)),RANDBETWEEN(1,99)/10^RANDBETWEEN(2,LOG10(C142)),RANDBETWEEN(0,999)/10^RANDBETWEEN(3,LOG10(C142)),RANDBETWEEN(0,9999)/C142) -> 5.07 | M142: m | AJ142: Yasmin
A143: =IF(COUNTIF($B$1:B143,TRUE)=COUNTIF($B$1:B142,TRUE),"",COUNTIF($B$1:B143,TRUE)) ->  | B143: =Worksheet!$D$12 -> FALSE | C143: 1000 | D143: =1000*L143 -> 1945 | E143: m | F143: = | G143: 1 | H143: km | I143: 945 | J143: m | K143: = | L143: =RANDBETWEEN(1,Worksheet!$D$5)+CHOOSE(RANDBETWEEN(1,LOG10(C143)),RANDBETWEEN(1,9)/10^RANDBETWEEN(1,LOG10(C143)),RANDBETWEEN(1,99)/10^RANDBETWEEN(2,LOG10(C143)),RANDBETWEEN(0,999)/10^RANDBETWEEN(3,LOG10(C143)),RANDBETWEEN(0,9999)/C143) -> 1.945 | M143: km | AJ143: Freya
A144: =IF(COUNTIF($B$1:B144,TRUE)=COUNTIF($B$1:B143,TRUE),"",COUNTIF($B$1:B144,TRUE)) -> 72 | B144: =Worksheet!$B$12 -> TRUE | C144: 100 | D144: =100*L144 -> 486 | E144: cm | F144: = | G144: =INT(L144) -> 4 | H144: m | I144: 86 | J144: cm | K144: = | L144: =RANDBETWEEN(1,Worksheet!$D$5)+CHOOSE(RANDBETWEEN(1,LOG10(C144)),RANDBETWEEN(1,9)/10^RANDBETWEEN(1,LOG10(C144)),RANDBETWEEN(1,99)/10^RANDBETWEEN(2,LOG10(C144)),RANDBETWEEN(0,999)/10^RANDBETWEEN(3,LOG10(C144)),RANDBETWEEN(0,9999)/C144) -> 4.86 | M144: m | AJ144: Morgan
A145: =IF(COUNTIF($B$1:B145,TRUE)=COUNTIF($B$1:B144,TRUE),"",COUNTIF($B$1:B145,TRUE)) ->  | B145: =Worksheet!$D$12 -> FALSE | C145: 1000 | D145: =1000*L145 -> 2110 | E145: m | F145: = | G145: 2 | H145: km | I145: 110 | J145: m | K145: = | L145: =RANDBETWEEN(1,Worksheet!$D$5)+CHOOSE(RANDBETWEEN(1,LOG10(C145)),RANDBETWEEN(1,9)/10^RANDBETWEEN(1,LOG10(C145)),RANDBETWEEN(1,99)/10^RANDBETWEEN(2,LOG10(C145)),RANDBETWEEN(0,999)/10^RANDBETWEEN(3,LOG10(C145)),RANDBETWEEN(0,9999)/C145) -> 2.11 | M145: km | AJ145: Robyn
A146: =IF(COUNTIF($B$1:B146,TRUE)=COUNTIF($B$1:B145,TRUE),"",COUNTIF($B$1:B146,TRUE)) -> 73 | B146: =Worksheet!$B$12 -> TRUE | C146: 100 | D146: =100*L146 -> 224 | E146: cm | F146: = | G146: =INT(L146) -> 2 | H146: m | I146: 24 | J146: cm | K146: = | L146: =RANDBETWEEN(1,Worksheet!$D$5)+CHOOSE(RANDBETWEEN(1,LOG10(C146)),RANDBETWEEN(1,9)/10^RANDBETWEEN(1,LOG10(C146)),RANDBETWEEN(1,99)/10^RANDBETWEEN(2,LOG10(C146)),RANDBETWEEN(0,999)/10^RANDBETWEEN(3,LOG10(C146)),RANDBETWEEN(0,9999)/C146) -> 2.24 | M146: m | AJ146: Isabel
A147: =IF(COUNTIF($B$1:B147,TRUE)=COUNTIF($B$1:B146,TRUE),"",COUNTIF($B$1:B147,TRUE)) ->  | B147: =Worksheet!$D$12 -> FALSE | C147: 1000 | D147: =1000*L147 -> 3010 | E147: m | F147: = | G147: 3 | H147: km | I147: 10 | J147: m | K147: = | L147: =RANDBETWEEN(1,Worksheet!$D$5)+CHOOSE(RANDBETWEEN(1,LOG10(C147)),RANDBETWEEN(1,9)/10^RANDBETWEEN(1,LOG10(C147)),RANDBETWEEN(1,99)/10^RANDBETWEEN(2,LOG10(C147)),RANDBETWEEN(0,999)/10^RANDBETWEEN(3,LOG10(C147)),RANDBETWEEN(0,9999)/C147) -> 3.01 | M147: km | AJ147: Maisie
A148: =IF(COUNTIF($B$1:B148,TRUE)=COUNTIF($B$1:B147,TRUE),"",COUNTIF($B$1:B148,TRUE)) -> 74 | B148: =Worksheet!$B$12 -> TRUE | C148: 100 | D148: =100*L148 -> 510 | E148: cm | F148: = | G148: =INT(L148) -> 5 | H148: m | I148: 10 | J148: cm | K148: = | L148: =RANDBETWEEN(1,Worksheet!$D$5)+CHOOSE(RANDBETWEEN(1,LOG10(C148)),RANDBETWEEN(1,9)/10^RANDBETWEEN(1,LOG10(C148)),RANDBETWEEN(1,99)/10^RANDBETWEEN(2,LOG10(C148)),RANDBETWEEN(0,999)/10^RANDBETWEEN(3,LOG10(C148)),RANDBETWEEN(0,9999)/C148) -> 5.1 | M148: m | AJ148: Poppy
A149: =IF(COUNTIF($B$1:B149,TRUE)=COUNTIF($B$1:B148,TRUE),"",COUNTIF($B$1:B149,TRUE)) ->  | B149: =Worksheet!$D$12 -> FALSE | C149: 1000 | D149: =1000*L149 -> 4400 | E149: m | F149: = | G149: 4 | H149: km | I149: 400 | J149: m | K149: = | L149: =RANDBETWEEN(1,Worksheet!$D$5)+CHOOSE(RANDBETWEEN(1,LOG10(C149)),RANDBETWEEN(1,9)/10^RANDBETWEEN(1,LOG10(C149)),RANDBETWEEN(1,99)/10^RANDBETWEEN(2,LOG10(C149)),RANDBETWEEN(0,999)/10^RANDBETWEEN(3,LOG10(C149)),RANDBETWEEN(0,9999)/C149) -> 4.4 | M149: km | AJ149: Rachael
A150: =IF(COUNTIF($B$1:B150,TRUE)=COUNTIF($B$1:B149,TRUE),"",COUNTIF($B$1:B150,TRUE)) -> 75 | B150: =Worksheet!$B$12 -> TRUE | C150: 100 | D150: =100*L150 -> 506 | E150: cm | F150: = | G150: =INT(L150) -> 5 | H150: m | I150: =IF((L150-INT(L150))*C150=0,0,(L150-INT(L150))*C150) -> 6 | J150: cm | K150: = | L150: =RANDBETWEEN(1,Worksheet!$D$5)+CHOOSE(RANDBETWEEN(1,LOG10(C150)),RANDBETWEEN(1,9)/10^RANDBETWEEN(1,LOG10(C150)),RANDBETWEEN(1,99)/10^RANDBETWEEN(2,LOG10(C150)),RANDBETWEEN(0,999)/10^RANDBETWEEN(3,LOG10(C150)),RANDBETWEEN(0,9999)/C150) -> 5.06 | M150: m | AJ150: Chantelle
A151: =IF(COUNTIF($B$1:B151,TRUE)=COUNTIF($B$1:B150,TRUE),"",COUNTIF($B$1:B151,TRUE)) ->  | B151: =Worksheet!$D$12 -> FALSE | C151: 1000 | D151: =1000*L151 -> 3011 | E151: m | F151: = | G151: 3 | H151: km | I151: 11 | J151: m | K151: = | L151: =RANDBETWEEN(1,Worksheet!$D$5)+CHOOSE(RANDBETWEEN(1,LOG10(C151)),RANDBETWEEN(1,9)/10^RANDBETWEEN(1,LOG10(C151)),RANDBETWEEN(1,99)/10^RANDBETWEEN(2,LOG10(C151)),RANDBETWEEN(0,999)/10^RANDBETWEEN(3,LOG10(C151)),RANDBETWEEN(0,9999)/C151) -> 3.011 | M151: km | AJ151: Chloe
A152: =IF(COUNTIF($B$1:B152,TRUE)=COUNTIF($B$1:B151,TRUE),"",COUNTIF($B$1:B152,TRUE)) -> 76 | B152: =Worksheet!$B$12 -> TRUE | C152: 100 | D152: =100*L152 -> 407 | E152: cm | F152: = | G152: =INT(L152) -> 4 | H152: m | I152: 7 | J152: cm | K152: = | L152: =RANDBETWEEN(1,Worksheet!$D$5)+CHOOSE(RANDBETWEEN(1,LOG10(C152)),RANDBETWEEN(1,9)/10^RANDBETWEEN(1,LOG10(C152)),RANDBETWEEN(1,99)/10^RANDBETWEEN(2,LOG10(C152)),RANDBETWEEN(0,999)/10^RANDBETWEEN(3,LOG10(C152)),RANDBETWEEN(0,9999)/C152) -> 4.07 | M152: m | AJ152: Emily
A153: =IF(COUNTIF($B$1:B153,TRUE)=COUNTIF($B$1:B152,TRUE),"",COUNTIF($B$1:B153,TRUE)) ->  | B153: =Worksheet!$D$12 -> FALSE | C153: 1000 | D153: =1000*L153 -> 2900 | E153: m | F153: = | G153: 2 | H153: km | I153: 900 | J153: m | K153: = | L153: =RANDBETWEEN(1,Worksheet!$D$5)+CHOOSE(RANDBETWEEN(1,LOG10(C153)),RANDBETWEEN(1,9)/10^RANDBETWEEN(1,LOG10(C153)),RANDBETWEEN(1,99)/10^RANDBETWEEN(2,LOG10(C153)),RANDBETWEEN(0,999)/10^RANDBETWEEN(3,LOG10(C153)),RANDBETWEEN(0,9999)/C153) -> 2.9 | M153: km | AJ153: Megan
A154: =IF(COUNTIF($B$1:B154,TRUE)=COUNTIF($B$1:B153,TRUE),"",COUNTIF($B$1:B154,TRUE)) -> 77 | B154: =Worksheet!$B$12 -> TRUE | C154: 100 | D154: =100*L154 -> 288 | E154: cm | F154: = | G154: =INT(L154) -> 2 | H154: m | I154: 88 | J154: cm | K154: = | L154: =RANDBETWEEN(1,Worksheet!$D$5)+CHOOSE(RANDBETWEEN(1,LOG10(C154)),RANDBETWEEN(1,9)/10^RANDBETWEEN(1,LOG10(C154)),RANDBETWEEN(1,99)/10^RANDBETWEEN(2,LOG10(C154)),RANDBETWEEN(0,999)/10^RANDBETWEEN(3,LOG10(C154)),RANDBETWEEN(0,9999)/C154) -> 2.88 | M154: m | AJ154: Jessica
A155: =IF(COUNTIF($B$1:B155,TRUE)=COUNTIF($B$1:B154,TRUE),"",COUNTIF($B$1:B155,TRUE)) ->  | B155: =Worksheet!$D$12 -> FALSE | C155: 1000 | D155: =1000*L155 -> 4008 | E155: m | F155: = | G155: 4 | H155: km | I155: 8 | J155: m | K155: = | L155: =RANDBETWEEN(1,Worksheet!$D$5)+CHOOSE(RANDBETWEEN(1,LOG10(C155)),RANDBETWEEN(1,9)/10^RANDBETWEEN(1,LOG10(C155)),RANDBETWEEN(1,99)/10^RANDBETWEEN(2,LOG10(C155)),RANDBETWEEN(0,999)/10^RANDBETWEEN(3,LOG10(C155)),RANDBETWEEN(0,9999)/C155) -> 4.008 | M155: km | AJ155: Sophie
A156: =IF(COUNTIF($B$1:B156,TRUE)=COUNTIF($B$1:B155,TRUE),"",COUNTIF($B$1:B156,TRUE)) -> 78 | B156: =Worksheet!$B$12 -> TRUE | C156: 100 | D156: =100*L156 -> 501 | E156: cm | F156: = | G156: =INT(L156) -> 5 | H156: m | I156: 1 | J156: cm | K156: = | L156: =RANDBETWEEN(1,Worksheet!$D$5)+CHOOSE(RANDBETWEEN(1,LOG10(C156)),RANDBETWEEN(1,9)/10^RANDBETWEEN(1,LOG10(C156)),RANDBETWEEN(1,99)/10^RANDBETWEEN(2,LOG10(C156)),RANDBETWEEN(0,999)/10^RANDBETWEEN(3,LOG10(C156)),RANDBETWEEN(0,9999)/C156) -> 5.01 | M156: m | AJ156: Charlotte
A157: =IF(COUNTIF($B$1:B157,TRUE)=COUNTIF($B$1:B156,TRUE),"",COUNTIF($B$1:B157,TRUE)) ->  | B157: =Worksheet!$D$12 -> FALSE | C157: 1000 | D157: =1000*L157 -> 5089 | E157: m | F157: = | G157: 5 | H157: km | I157: 89 | J157: m | K157: = | L157: =RANDBETWEEN(1,Worksheet!$D$5)+CHOOSE(RANDBETWEEN(1,LOG10(C157)),RANDBETWEEN(1,9)/10^RANDBETWEEN(1,LOG10(C157)),RANDBETWEEN(1,99)/10^RANDBETWEEN(2,LOG10(C157)),RANDBETWEEN(0,999)/10^RANDBETWEEN(3,LOG10(C157)),RANDBETWEEN(0,9999)/C157) -> 5.089 | M157: km | AJ157: Hannah
A158: =IF(COUNTIF($B$1:B158,TRUE)=COUNTIF($B$1:B157,TRUE),"",COUNTIF($B$1:B158,TRUE)) -> 79 | B158: =Worksheet!$B$12 -> TRUE | C158: 100 | D158: =100*L158 -> 237 | E158: cm | F158: = | G158: =INT(L158) -> 2 | H158: m | I158: 37 | J158: cm | K158: = | L158: =RANDBETWEEN(1,Worksheet!$D$5)+CHOOSE(RANDBETWEEN(1,LOG10(C158)),RANDBETWEEN(1,9)/10^RANDBETWEEN(1,LOG10(C158)),RANDBETWEEN(1,99)/10^RANDBETWEEN(2,LOG10(C158)),RANDBETWEEN(0,999)/10^RANDBETWEEN(3,LOG10(C158)),RANDBETWEEN(0,9999)/C158) -> 2.37 | M158: m | AJ158: Lauren
A159: =IF(COUNTIF($B$1:B159,TRUE)=COUNTIF($B$1:B158,TRUE),"",COUNTIF($B$1:B159,TRUE)) ->  | B159: =Worksheet!$D$12 -> FALSE | C159: 1000 | D159: =1000*L159 -> 5002 | E159: m | F159: = | G159: 5 | H159: km | I159: 2 | J159: m | K159: = | L159: =RANDBETWEEN(1,Worksheet!$D$5)+CHOOSE(RANDBETWEEN(1,LOG10(C159)),RANDBETWEEN(1,9)/10^RANDBETWEEN(1,LOG10(C159)),RANDBETWEEN(1,99)/10^RANDBETWEEN(2,LOG10(C159)),RANDBETWEEN(0,999)/10^RANDBETWEEN(3,LOG10(C159)),RANDBETWEEN(0,9999)/C159) -> 5.002 | M159: km | AJ159: Rebecca
A160: =IF(COUNTIF($B$1:B160,TRUE)=COUNTIF($B$1:B159,TRUE),"",COUNTIF($B$1:B160,TRUE)) -> 80 | B160: =Worksheet!$B$12 -> TRUE | C160: 100 | D160: =100*L160 -> 103 | E160: cm | F160: = | G160: =INT(L160) -> 1 | H160: m | I160: 3 | J160: cm | K160: = | L160: =RANDBETWEEN(1,Worksheet!$D$5)+CHOOSE(RANDBETWEEN(1,LOG10(C160)),RANDBETWEEN(1,9)/10^RANDBETWEEN(1,LOG10(C160)),RANDBETWEEN(1,99)/10^RANDBETWEEN(2,LOG10(C160)),RANDBETWEEN(0,999)/10^RANDBETWEEN(3,LOG10(C160)),RANDBETWEEN(0,9999)/C160) -> 1.03 | M160: m | AJ160: Lucy
A161: =IF(COUNTIF($B$1:B161,TRUE)=COUNTIF($B$1:B160,TRUE),"",COUNTIF($B$1:B161,TRUE)) ->  | B161: =Worksheet!$D$12 -> FALSE | C161: 1000 | D161: =1000*L161 -> 2440 | E161: m | F161: = | G161: 2 | H161: km | I161: 440 | J161: m | K161: = | L161: =RANDBETWEEN(1,Worksheet!$D$5)+CHOOSE(RANDBETWEEN(1,LOG10(C161)),RANDBETWEEN(1,9)/10^RANDBETWEEN(1,LOG10(C161)),RANDBETWEEN(1,99)/10^RANDBETWEEN(2,LOG10(C161)),RANDBETWEEN(0,999)/10^RANDBETWEEN(3,LOG10(C161)),RANDBETWEEN(0,9999)/C161) -> 2.44 | M161: km | AJ161: Amy
A162: =IF(COUNTIF($B$1:B162,TRUE)=COUNTIF($B$1:B161,TRUE),"",COUNTIF($B$1:B162,TRUE)) -> 81 | B162: =Worksheet!$B$12 -> TRUE | C162: 100 | D162: =100*L162 -> 514 | E162: cm | F162: = | G162: 5 | H162: m | I162: 14 | J162: cm | K162: = | L162: =RANDBETWEEN(1,Worksheet!$D$5)+CHOOSE(RANDBETWEEN(1,LOG10(C162)),RANDBETWEEN(1,9)/10^RANDBETWEEN(1,LOG10(C162)),RANDBETWEEN(1,99)/10^RANDBETWEEN(2,LOG10(C162)),RANDBETWEEN(0,999)/10^RANDBETWEEN(3,LOG10(C162)),RANDBETWEEN(0,9999)/C162) -> 5.14 | M162: m | AJ162: Georgia
A163: =IF(COUNTIF($B$1:B163,TRUE)=COUNTIF($B$1:B162,TRUE),"",COUNTIF($B$1:B163,TRUE)) ->  | B163: =Worksheet!$D$12 -> FALSE | C163: 1000 | D163: =1000*L163 -> 2050 | E163: m | F163: = | G163: 2 | H163: km | I163: 50 | J163: m | K163: = | L163: =RANDBETWEEN(1,Worksheet!$D$5)+CHOOSE(RANDBETWEEN(1,LOG10(C163)),RANDBETWEEN(1,9)/10^RANDBETWEEN(1,LOG10(C163)),RANDBETWEEN(1,99)/10^RANDBETWEEN(2,LOG10(C163)),RANDBETWEEN(0,999)/10^RANDBETWEEN(3,LOG10(C163)),RANDBETWEEN(0,9999)/C163) -> 2.05 | M163: km | AJ163: Katie
A164: =IF(COUNTIF($B$1:B164,TRUE)=COUNTIF($B$1:B163,TRUE),"",COUNTIF($B$1:B164,TRUE)) -> 82 | B164: =Worksheet!$B$12 -> TRUE | C164: 100 | D164: =100*L164 -> 409 | E164: cm | F164: = | G164: 4 | H164: m | I164: 9 | J164: cm | K164: = | L164: =RANDBETWEEN(1,Worksheet!$D$5)+CHOOSE(RANDBETWEEN(1,LOG10(C164)),RANDBETWEEN(1,9)/10^RANDBETWEEN(1,LOG10(C164)),RANDBETWEEN(1,99)/10^RANDBETWEEN(2,LOG10(C164)),RANDBETWEEN(0,999)/10^RANDBETWEEN(3,LOG10(C164)),RANDBETWEEN(0,9999)/C164) -> 4.09 | M164: m | AJ164: Bethany
A165: =IF(COUNTIF($B$1:B165,TRUE)=COUNTIF($B$1:B164,TRUE),"",COUNTIF($B$1:B165,TRUE)) ->  | B165: =Worksheet!$D$12 -> FALSE | C165: 1000 | D165: =1000*L165 -> 5314 | E165: m | F165: = | G165: 5 | H165: km | I165: 314 | J165: m | K165: = | L165: =RANDBETWEEN(1,Worksheet!$D$5)+CHOOSE(RANDBETWEEN(1,LOG10(C165)),RANDBETWEEN(1,9)/10^RANDBETWEEN(1,LOG10(C165)),RANDBETWEEN(1,99)/10^RANDBETWEEN(2,LOG10(C165)),RANDBETWEEN(0,999)/10^RANDBETWEEN(3,LOG10(C165)),RANDBETWEEN(0,9999)/C165) -> 5.314 | M165: km | AJ165: Emma
A166: =IF(COUNTIF($B$1:B166,TRUE)=COUNTIF($B$1:B165,TRUE),"",COUNTIF($B$1:B166,TRUE)) -> 83 | B166: =Worksheet!$B$12 -> TRUE | C166: 100 | D166: =100*L166 -> 594 | E166: cm | F166: = | G166: 5 | H166: m | I166: 94 | J166: cm | K166: = | L166: =RANDBETWEEN(1,Worksheet!$D$5)+CHOOSE(RANDBETWEEN(1,LOG10(C166)),RANDBETWEEN(1,9)/10^RANDBETWEEN(1,LOG10(C166)),RANDBETWEEN(1,99)/10^RANDBETWEEN(2,LOG10(C166)),RANDBETWEEN(0,999)/10^RANDBETWEEN(3,LOG10(C166)),RANDBETWEEN(0,9999)/C166) -> 5.94 | M166: m | AJ166: Olivia
A167: =IF(COUNTIF($B$1:B167,TRUE)=COUNTIF($B$1:B166,TRUE),"",COUNTIF($B$1:B167,TRUE)) ->  | B167: =Worksheet!$D$12 -> FALSE | C167: 1000 | D167: =1000*L167 -> 3090 | E167: m | F167: = | G167: 3 | H167: km | I167: 90 | J167: m | K167: = | L167: =RANDBETWEEN(1,Worksheet!$D$5)+CHOOSE(RANDBETWEEN(1,LOG10(C167)),RANDBETWEEN(1,9)/10^RANDBETWEEN(1,LOG10(C167)),RANDBETWEEN(1,99)/10^RANDBETWEEN(2,LOG10(C167)),RANDBETWEEN(0,999)/10^RANDBETWEEN(3,LOG10(C167)),RANDBETWEEN(0,9999)/C167) -> 3.09 | M167: km | AJ167: Courtney
A168: =IF(COUNTIF($B$1:B168,TRUE)=COUNTIF($B$1:B167,TRUE),"",COUNTIF($B$1:B168,TRUE)) -> 84 | B168: =Worksheet!$B$12 -> TRUE | C168: 100 | D168: =100*L168 -> 502 | E168: cm | F168: = | G168: 5 | H168: m | I168: 2 | J168: cm | K168: = | L168: =RANDBETWEEN(1,Worksheet!$D$5)+CHOOSE(RANDBETWEEN(1,LOG10(C168)),RANDBETWEEN(1,9)/10^RANDBETWEEN(1,LOG10(C168)),RANDBETWEEN(1,99)/10^RANDBETWEEN(2,LOG10(C168)),RANDBETWEEN(0,999)/10^RANDBETWEEN(3,LOG10(C168)),RANDBETWEEN(0,9999)/C168) -> 5.02 | M168: m | AJ168: Shannon
A169: =IF(COUNTIF($B$1:B169,TRUE)=COUNTIF($B$1:B168,TRUE),"",COUNTIF($B$1:B169,TRUE)) ->  | B169: =Worksheet!$D$12 -> FALSE | C169: 1000 | D169: =1000*L169 -> 5003 | E169: m | F169: = | G169: 5 | H169: km | I169: 3 | J169: m | K169: = | L169: =RANDBETWEEN(1,Worksheet!$D$5)+CHOOSE(RANDBETWEEN(1,LOG10(C169)),RANDBETWEEN(1,9)/10^RANDBETWEEN(1,LOG10(C169)),RANDBETWEEN(1,99)/10^RANDBETWEEN(2,LOG10(C169)),RANDBETWEEN(0,999)/10^RANDBETWEEN(3,LOG10(C169)),RANDBETWEEN(0,9999)/C169) -> 5.003 | M169: km | AJ169: Eleanor
A170: =IF(COUNTIF($B$1:B170,TRUE)=COUNTIF($B$1:B169,TRUE),"",COUNTIF($B$1:B170,TRUE)) -> 85 | B170: =Worksheet!$B$12 -> TRUE | C170: 100 | D170: =100*L170 -> 147 | E170: cm | F170: = | G170: 1 | H170: m | I170: 47 | J170: cm | K170: = | L170: =RANDBETWEEN(1,Worksheet!$D$5)+CHOOSE(RANDBETWEEN(1,LOG10(C170)),RANDBETWEEN(1,9)/10^RANDBETWEEN(1,LOG10(C170)),RANDBETWEEN(1,99)/10^RANDBETWEEN(2,LOG10(C170)),RANDBETWEEN(0,999)/10^RANDBETWEEN(3,LOG10(C170)),RANDBETWEEN(0,9999)/C170) -> 1.47 | M170: m | AJ170: Jade
A171: =IF(COUNTIF($B$1:B171,TRUE)=COUNTIF($B$1:B170,TRUE),"",COUNTIF($B$1:B171,TRUE)) ->  | B171: =Worksheet!$D$12 -> FALSE | C171: 1000 | D171: =1000*L171 -> 1040 | E171: m | F171: = | G171: 1 | H171: km | I171: 40 | J171: m | K171: = | L171: =RANDBETWEEN(1,Worksheet!$D$5)+CHOOSE(RANDBETWEEN(1,LOG10(C171)),RANDBETWEEN(1,9)/10^RANDBETWEEN(1,LOG10(C171)),RANDBETWEEN(1,99)/10^RANDBETWEEN(2,LOG10(C171)),RANDBETWEEN(0,999)/10^RANDBETWEEN(3,LOG10(C171)),RANDBETWEEN(0,9999)/C171) -> 1.04 | M171: km | AJ171: Ellie
A172: =IF(COUNTIF($B$1:B172,TRUE)=COUNTIF($B$1:B171,TRUE),"",COUNTIF($B$1:B172,TRUE)) -> 86 | B172: =Worksheet!$B$12 -> TRUE | C172: 100 | D172: =100*L172 -> 210 | E172: cm | F172: = | G172: 2 | H172: m | I172: 10 | J172: cm | K172: = | L172: =RANDBETWEEN(1,Worksheet!$D$5)+CHOOSE(RANDBETWEEN(1,LOG10(C172)),RANDBETWEEN(1,9)/10^RANDBETWEEN(1,LOG10(C172)),RANDBETWEEN(1,99)/10^RANDBETWEEN(2,LOG10(C172)),RANDBETWEEN(0,999)/10^RANDBETWEEN(3,LOG10(C172)),RANDBETWEEN(0,9999)/C172) -> 2.1 | M172: m | AJ172: Abigail
A173: =IF(COUNTIF($B$1:B173,TRUE)=COUNTIF($B$1:B172,TRUE),"",COUNTIF($B$1:B173,TRUE)) ->  | B173: =Worksheet!$D$12 -> FALSE | C173: 1000 | D173: =1000*L173 -> 5473 | E173: m | F173: = | G173: 5 | H173: km | I173: 473 | J173: m | K173: = | L173: =RANDBETWEEN(1,Worksheet!$D$5)+CHOOSE(RANDBETWEEN(1,LOG10(C173)),RANDBETWEEN(1,9)/10^RANDBETWEEN(1,LOG10(C173)),RANDBETWEEN(1,99)/10^RANDBETWEEN(2,LOG10(C173)),RANDBETWEEN(0,999)/10^RANDBETWEEN(3,LOG10(C173)),RANDBETWEEN(0,9999)/C173) -> 5.473 | M173: km | AJ173: Holly
A174: =IF(COUNTIF($B$1:B174,TRUE)=COUNTIF($B$1:B173,TRUE),"",COUNTIF($B$1:B174,TRUE)) -> 87 | B174: =Worksheet!$B$12 -> TRUE | C174: 100 | D174: =100*L174 -> 398 | E174: cm | F174: = | G174: 3 | H174: m | I174: 98 | J174: cm | K174: = | L174: =RANDBETWEEN(1,Worksheet!$D$5)+CHOOSE(RANDBETWEEN(1,LOG10(C174)),RANDBETWEEN(1,9)/10^RANDBETWEEN(1,LOG10(C174)),RANDBETWEEN(1,99)/10^RANDBETWEEN(2,LOG10(C174)),RANDBETWEEN(0,999)/10^RANDBETWEEN(3,LOG10(C174)),RANDBETWEEN(0,9999)/C174) -> 3.98 | M174: m | AJ174: Molly
A175: =IF(COUNTIF($B$1:B175,TRUE)=COUNTIF($B$1:B174,TRUE),"",COUNTIF($B$1:B175,TRUE)) ->  | B175: =Worksheet!$D$12 -> FALSE | C175: 1000 | D175: =1000*L175 -> 3005 | E175: m | F175: = | G175: 3 | H175: km | I175: 5 | J175: m | K175: = | L175: =RANDBETWEEN(1,Worksheet!$D$5)+CHOOSE(RANDBETWEEN(1,LOG10(C175)),RANDBETWEEN(1,9)/10^RANDBETWEEN(1,LOG10(C175)),RANDBETWEEN(1,99)/10^RANDBETWEEN(2,LOG10(C175)),RANDBETWEEN(0,999)/10^RANDBETWEEN(3,LOG10(C175)),RANDBETWEEN(0,9999)/C175) -> 3.005 | M175: km | AJ175: Laura
AJ176: Alice
AJ177: Sarah
AJ178: Caitlin
AJ179: Rachel
AJ180: Elizabeth
AJ181: Amber
AJ182: Paige
AJ183: Georgina
AJ184: Danielle
AJ185: Grace
AJ186: Nicole
AJ187: Natasha
AJ188: Ella
AJ189: Chelsea
AJ190: Leah
AJ191: Victoria
AJ192: Anna
AJ193: Phoebe
AJ194: Samantha
AJ195: Zoe
AJ196: Alexandra
AJ197: Jasmine
AJ198: Amelia
AJ199: Louise
AJ200: Lydia
